{"text_format":"1","workbook":"xlsx","n_sheets":13,"sheets":["Datapoints","Assertions","General data","Index","Taxonomy","XBRL Errors","Info","T9004HK1","T9004HK2A","T9004HK2B","T9004HK3A","T9004HK3B","Data types and cell colors"],"not_rendered":{"charts":0,"images":5,"macros":1,"external_links":5,"defined_names":52,"comments":0,"pivot_tables":0},"unopened":[],"bounds":{"document_bytes":16777216,"sheet_cells":100000,"rows_first":2000,"rows_last":500,"rows_between":2000,"halvings":0,"cell_chars":16384,"cell_head_chars":4096},"cells_cut":0,"cells_raw":0,"read":"whole","date_system":"1900"}

{"sheet":"Datapoints","index":0,"n_rows":291,"n_cols":23,"rows_kept":291,"cut":false,"hidden":true,"merged":[]}
["Table","Sheet","Key(s)","Row","Column","Cell","Duplicate","{Metric}","dnb_dim:dim013 {Remaining maturity}","dnb_dim:dim037 {Denomination currency}","dnb_dim:dim038 {Collateral and/or guarantees}","dnb_dim:dim039 {Interest rate methodology}","dnb_dim:dim040 {Balance side}","dnb_dim:dim041 {Balance item}","dnb_dim:dim044 {Counterparty country/group}","dnb_dim:dim046 {Measure}","dnb_dim:dim047 {Type of measure}","dnb_dim:dim048 {Amount category}","dnb_dim:dim051 {Counterparty sector}","dnb_dim:dim052 {Original maturity}","dnb_dim:dim053 {Interest rate reset}","dnb_dim:dim054 {Period of notice}","dnb_dim:dim055 {Interest rate fixation}"]
["T9004HK1","","","010","010","D13",null,"dnb_met:pi001 {Weighted percentage}","dnb_dom009:mem006 {<= 1 year}","dnb_dom003:EUR {Euro}",null,"dnb_dom026:mem001 {Annualised agreed rate}","dnb_dom027:mem001 {Assets}","dnb_dom028:mem009 {Loans granted and deposits placed}","dnb_dom030:mem253 {Inside EMU area}","dnb_dom031:mem001 {Outstanding}","dnb_dom032:mem001 {End of period}",null,"dnb_dom008:mem032 {Non-financial corporations}","dnb_dom009:mem004 {> 1 year}"]
["T9004HK1","","","010","020","E13",null,"dnb_met:pi001 {Weighted percentage}","dnb_dom009:mem006 {<= 1 year}","dnb_dom003:EUR {Euro}",null,"dnb_dom026:mem001 {Annualised agreed rate}","dnb_dom027:mem001 {Assets}","dnb_dom028:mem009 {Loans granted and deposits placed}","dnb_dom030:mem253 {Inside EMU area}","dnb_dom031:mem001 {Outstanding}","dnb_dom032:mem001 {End of period}",null,"dnb_dom008:mem035 {Households}","dnb_dom009:mem004 {> 1 year}"]
["T9004HK1","","","020","010","D15",null,"dnb_met:pi001 {Weighted percentage}","dnb_dom009:mem004 {> 1 year}","dnb_dom003:EUR {Euro}",null,"dnb_dom026:mem001 {Annualised agreed rate}","dnb_dom027:mem001 {Assets}","dnb_dom028:mem009 {Loans granted and deposits placed}","dnb_dom030:mem253 {Inside EMU area}","dnb_dom031:mem001 {Outstanding}","dnb_dom032:mem001 {End of period}",null,"dnb_dom008:mem032 {Non-financial corporations}","dnb_dom009:mem004 {> 1 year}","dnb_dom035:mem001 {within 12 months}"]
["T9004HK1","","","020","020","E15",null,"dnb_met:pi001 {Weighted percentage}","dnb_dom009:mem004 {> 1 year}","dnb_dom003:EUR {Euro}",null,"dnb_dom026:mem001 {Annualised agreed rate}","dnb_dom027:mem001 {Assets}","dnb_dom028:mem009 {Loans granted and deposits placed}","dnb_dom030:mem253 {Inside EMU area}","dnb_dom031:mem001 {Outstanding}","dnb_dom032:mem001 {End of period}",null,"dnb_dom008:mem035 {Households}","dnb_dom009:mem004 {> 1 year}","dnb_dom035:mem001 {within 12 months}"]
["T9004HK1","","","030","010","D16",null,"dnb_met:pi001 {Weighted percentage}","dnb_dom009:mem004 {> 1 year}","dnb_dom003:EUR {Euro}",null,"dnb_dom026:mem001 {Annualised agreed rate}","dnb_dom027:mem001 {Assets}","dnb_dom028:mem009 {Loans granted and deposits placed}","dnb_dom030:mem253 {Inside EMU area}","dnb_dom031:mem001 {Outstanding}","dnb_dom032:mem001 {End of period}",null,"dnb_dom008:mem032 {Non-financial corporations}","dnb_dom009:mem004 {> 1 year}","dnb_dom035:mem002 {not within 12 months}"]
["T9004HK1","","","030","020","E16",null,"dnb_met:pi001 {Weighted percentage}","dnb_dom009:mem004 {> 1 year}","dnb_dom003:EUR {Euro}",null,"dnb_dom026:mem001 {Annualised agreed rate}","dnb_dom027:mem001 {Assets}","dnb_dom028:mem009 {Loans granted and deposits placed}","dnb_dom030:mem253 {Inside EMU area}","dnb_dom031:mem001 {Outstanding}","dnb_dom032:mem001 {End of period}",null,"dnb_dom008:mem035 {Households}","dnb_dom009:mem004 {> 1 year}","dnb_dom035:mem002 {not within 12 months}"]
["T9004HK1","","","040","010","D19",null,"dnb_met:pi001 {Weighted percentage}","dnb_dom009:mem009 {<= 2 years}","dnb_dom003:EUR {Euro}",null,"dnb_dom026:mem001 {Annualised agreed rate}","dnb_dom027:mem001 {Assets}","dnb_dom028:mem009 {Loans granted and deposits placed}","dnb_dom030:mem253 {Inside EMU area}","dnb_dom031:mem001 {Outstanding}","dnb_dom032:mem001 {End of period}",null,"dnb_dom008:mem032 {Non-financial corporations}","dnb_dom009:mem005 {> 2 years}"]
["T9004HK1","","","040","020","E19",null,"dnb_met:pi001 {Weighted percentage}","dnb_dom009:mem009 {<= 2 years}","dnb_dom003:EUR {Euro}",null,"dnb_dom026:mem001 {Annualised agreed rate}","dnb_dom027:mem001 {Assets}","dnb_dom028:mem009 {Loans granted and deposits placed}","dnb_dom030:mem253 {Inside EMU area}","dnb_dom031:mem001 {Outstanding}","dnb_dom032:mem001 {End of period}",null,"dnb_dom008:mem035 {Households}","dnb_dom009:mem005 {> 2 years}"]
["T9004HK1","","","050","010","D21",null,"dnb_met:pi001 {Weighted percentage}","dnb_dom009:mem005 {> 2 years}","dnb_dom003:EUR {Euro}",null,"dnb_dom026:mem001 {Annualised agreed rate}","dnb_dom027:mem001 {Assets}","dnb_dom028:mem009 {Loans granted and deposits placed}","dnb_dom030:mem253 {Inside EMU area}","dnb_dom031:mem001 {Outstanding}","dnb_dom032:mem001 {End of period}",null,"dnb_dom008:mem032 {Non-financial corporations}","dnb_dom009:mem005 {> 2 years}","dnb_dom035:mem003 {within 24 months}"]
["T9004HK1","","","050","020","E21",null,"dnb_met:pi001 {Weighted percentage}","dnb_dom009:mem005 {> 2 years}","dnb_dom003:EUR {Euro}",null,"dnb_dom026:mem001 {Annualised agreed rate}","dnb_dom027:mem001 {Assets}","dnb_dom028:mem009 {Loans granted and deposits placed}","dnb_dom030:mem253 {Inside EMU area}","dnb_dom031:mem001 {Outstanding}","dnb_dom032:mem001 {End of period}",null,"dnb_dom008:mem035 {Households}","dnb_dom009:mem005 {> 2 years}","dnb_dom035:mem003 {within 24 months}"]
["T9004HK1","","","060","010","D22",null,"dnb_met:pi001 {Weighted percentage}","dnb_dom009:mem005 {> 2 years}","dnb_dom003:EUR {Euro}",null,"dnb_dom026:mem001 {Annualised agreed rate}","dnb_dom027:mem001 {Assets}","dnb_dom028:mem009 {Loans granted and deposits placed}","dnb_dom030:mem253 {Inside EMU area}","dnb_dom031:mem001 {Outstanding}","dnb_dom032:mem001 {End of period}",null,"dnb_dom008:mem032 {Non-financial corporations}","dnb_dom009:mem005 {> 2 years}","dnb_dom035:mem004 {not within 24 months}"]
["T9004HK1","","","060","020","E22",null,"dnb_met:pi001 {Weighted percentage}","dnb_dom009:mem005 {> 2 years}","dnb_dom003:EUR {Euro}",null,"dnb_dom026:mem001 {Annualised agreed rate}","dnb_dom027:mem001 {Assets}","dnb_dom028:mem009 {Loans granted and deposits placed}","dnb_dom030:mem253 {Inside EMU area}","dnb_dom031:mem001 {Outstanding}","dnb_dom032:mem001 {End of period}",null,"dnb_dom008:mem035 {Households}","dnb_dom009:mem005 {> 2 years}","dnb_dom035:mem004 {not within 24 months}"]
["T9004HK1","","","070","020","E25",null,"dnb_met:pi001 {Weighted percentage}",null,"dnb_dom003:EUR {Euro}",null,"dnb_dom026:mem001 {Annualised agreed rate}","dnb_dom027:mem001 {Assets}","dnb_dom028:mem015 {Loans for house purchases}","dnb_dom030:mem253 {Inside EMU area}","dnb_dom031:mem001 {Outstanding}","dnb_dom032:mem001 {End of period}",null,"dnb_dom008:mem035 {Households}","dnb_dom009:mem006 {<= 1 year}"]
["T9004HK1","","","080","020","E26",null,"dnb_met:pi001 {Weighted percentage}",null,"dnb_dom003:EUR {Euro}",null,"dnb_dom026:mem001 {Annualised agreed rate}","dnb_dom027:mem001 {Assets}","dnb_dom028:mem015 {Loans for house purchases}","dnb_dom030:mem253 {Inside EMU area}","dnb_dom031:mem001 {Outstanding}","dnb_dom032:mem001 {End of period}",null,"dnb_dom008:mem035 {Households}","dnb_dom009:mem007 {> 1 year and <= 5 years}"]
["T9004HK1","","","090","020","E27",null,"dnb_met:pi001 {Weighted percentage}",null,"dnb_dom003:EUR {Euro}",null,"dnb_dom026:mem001 {Annualised agreed rate}","dnb_dom027:mem001 {Assets}","dnb_dom028:mem015 {Loans for house purchases}","dnb_dom030:mem253 {Inside EMU area}","dnb_dom031:mem001 {Outstanding}","dnb_dom032:mem001 {End of period}",null,"dnb_dom008:mem035 {Households}","dnb_dom009:mem008 {> 5 years}"]
["T9004HK1","","","100","020","E30",null,"dnb_met:pi001 {Weighted percentage}",null,"dnb_dom003:EUR {Euro}",null,"dnb_dom026:mem001 {Annualised agreed rate}","dnb_dom027:mem001 {Assets}","dnb_dom028:mem016 {Loans for consumption (personal)}","dnb_dom030:mem253 {Inside EMU area}","dnb_dom031:mem001 {Outstanding}","dnb_dom032:mem001 {End of period}",null,"dnb_dom008:mem035 {Households}","dnb_dom009:mem006 {<= 1 year}"]
["T9004HK1","","","110","020","E31",null,"dnb_met:pi001 {Weighted percentage}",null,"dnb_dom003:EUR {Euro}",null,"dnb_dom026:mem001 {Annualised agreed rate}","dnb_dom027:mem001 {Assets}","dnb_dom028:mem016 {Loans for consumption (personal)}","dnb_dom030:mem253 {Inside EMU area}","dnb_dom031:mem001 {Outstanding}","dnb_dom032:mem001 {End of period}",null,"dnb_dom008:mem035 {Households}","dnb_dom009:mem007 {> 1 year and <= 5 years}"]
["T9004HK1","","","120","020","E32",null,"dnb_met:pi001 {Weighted percentage}",null,"dnb_dom003:EUR {Euro}",null,"dnb_dom026:mem001 {Annualised agreed rate}","dnb_dom027:mem001 {Assets}","dnb_dom028:mem016 {Loans for consumption (personal)}","dnb_dom030:mem253 {Inside EMU area}","dnb_dom031:mem001 {Outstanding}","dnb_dom032:mem001 {End of period}",null,"dnb_dom008:mem035 {Households}","dnb_dom009:mem008 {> 5 years}"]
["T9004HK1","","","130","010","D34",null,"dnb_met:pi001 {Weighted percentage}",null,"dnb_dom003:EUR {Euro}",null,"dnb_dom026:mem001 {Annualised agreed rate}","dnb_dom027:mem001 {Assets}","dnb_dom028:mem017 {Revolving loans}","dnb_dom030:mem253 {Inside EMU area}","dnb_dom031:mem001 {Outstanding}","dnb_dom032:mem001 {End of period}",null,"dnb_dom008:mem032 {Non-financial corporations}"]
["T9004HK1","","","130","020","E34",null,"dnb_met:pi001 {Weighted percentage}",null,"dnb_dom003:EUR {Euro}",null,"dnb_dom026:mem001 {Annualised agreed rate}","dnb_dom027:mem001 {Assets}","dnb_dom028:mem017 {Revolving loans}","dnb_dom030:mem253 {Inside EMU area}","dnb_dom031:mem001 {Outstanding}","dnb_dom032:mem001 {End of period}",null,"dnb_dom008:mem035 {Households}"]
["T9004HK1","","","140","010","D36",null,"dnb_met:pi001 {Weighted percentage}",null,"dnb_dom003:EUR {Euro}",null,"dnb_dom026:mem001 {Annualised agreed rate}","dnb_dom027:mem001 {Assets}","dnb_dom028:mem018 {Overdrafts}","dnb_dom030:mem253 {Inside EMU area}","dnb_dom031:mem001 {Outstanding}","dnb_dom032:mem001 {End of period}",null,"dnb_dom008:mem032 {Non-financial corporations}"]
["T9004HK1","","","140","020","E36",null,"dnb_met:pi001 {Weighted percentage}",null,"dnb_dom003:EUR {Euro}",null,"dnb_dom026:mem001 {Annualised agreed rate}","dnb_dom027:mem001 {Assets}","dnb_dom028:mem018 {Overdrafts}","dnb_dom030:mem253 {Inside EMU area}","dnb_dom031:mem001 {Outstanding}","dnb_dom032:mem001 {End of period}",null,"dnb_dom008:mem035 {Households}"]
["T9004HK1","","","150","010","D38",null,"dnb_met:pi001 {Weighted percentage}",null,"dnb_dom003:EUR {Euro}",null,"dnb_dom026:mem001 {Annualised agreed rate}","dnb_dom027:mem001 {Assets}","dnb_dom028:mem021 {Extended credit}","dnb_dom030:mem253 {Inside EMU area}","dnb_dom031:mem001 {Outstanding}","dnb_dom032:mem001 {End of period}",null,"dnb_dom008:mem032 {Non-financial corporations}"]
["T9004HK1","","","150","020","E38",null,"dnb_met:pi001 {Weighted percentage}",null,"dnb_dom003:EUR {Euro}",null,"dnb_dom026:mem001 {Annualised agreed rate}","dnb_dom027:mem001 {Assets}","dnb_dom028:mem021 {Extended credit}","dnb_dom030:mem253 {Inside EMU area}","dnb_dom031:mem001 {Outstanding}","dnb_dom032:mem001 {End of period}",null,"dnb_dom008:mem035 {Households}"]
["T9004HK1","","","160","010","D41",null,"dnb_met:pi001 {Weighted percentage}",null,"dnb_dom003:EUR {Euro}",null,"dnb_dom026:mem001 {Annualised agreed rate}","dnb_dom027:mem001 {Assets}","dnb_dom028:mem022 {Other loans}","dnb_dom030:mem253 {Inside EMU area}","dnb_dom031:mem001 {Outstanding}","dnb_dom032:mem001 {End of period}",null,"dnb_dom008:mem032 {Non-financial corporations}","dnb_dom009:mem006 {<= 1 year}"]
["T9004HK1","","","160","020","E41",null,"dnb_met:pi001 {Weighted percentage}",null,"dnb_dom003:EUR {Euro}",null,"dnb_dom026:mem001 {Annualised agreed rate}","dnb_dom027:mem001 {Assets}","dnb_dom028:mem022 {Other loans}","dnb_dom030:mem253 {Inside EMU area}","dnb_dom031:mem001 {Outstanding}","dnb_dom032:mem001 {End of period}",null,"dnb_dom008:mem035 {Households}","dnb_dom009:mem006 {<= 1 year}"]
["T9004HK1","","","170","010","D42",null,"dnb_met:pi001 {Weighted percentage}",null,"dnb_dom003:EUR {Euro}",null,"dnb_dom026:mem001 {Annualised agreed rate}","dnb_dom027:mem001 {Assets}","dnb_dom028:mem022 {Other loans}","dnb_dom030:mem253 {Inside EMU area}","dnb_dom031:mem001 {Outstanding}","dnb_dom032:mem001 {End of period}",null,"dnb_dom008:mem032 {Non-financial corporations}","dnb_dom009:mem007 {> 1 year and <= 5 years}"]
["T9004HK1","","","170","020","E42",null,"dnb_met:pi001 {Weighted percentage}",null,"dnb_dom003:EUR {Euro}",null,"dnb_dom026:mem001 {Annualised agreed rate}","dnb_dom027:mem001 {Assets}","dnb_dom028:mem022 {Other loans}","dnb_dom030:mem253 {Inside EMU area}","dnb_dom031:mem001 {Outstanding}","dnb_dom032:mem001 {End of period}",null,"dnb_dom008:mem035 {Households}","dnb_dom009:mem007 {> 1 year and <= 5 years}"]
["T9004HK1","","","180","010","D43",null,"dnb_met:pi001 {Weighted percentage}",null,"dnb_dom003:EUR {Euro}",null,"dnb_dom026:mem001 {Annualised agreed rate}","dnb_dom027:mem001 {Assets}","dnb_dom028:mem022 {Other loans}","dnb_dom030:mem253 {Inside EMU area}","dnb_dom031:mem001 {Outstanding}","dnb_dom032:mem001 {End of period}",null,"dnb_dom008:mem032 {Non-financial corporations}","dnb_dom009:mem008 {> 5 years}"]
["T9004HK1","","","180","020","E43",null,"dnb_met:pi001 {Weighted percentage}",null,"dnb_dom003:EUR {Euro}",null,"dnb_dom026:mem001 {Annualised agreed rate}","dnb_dom027:mem001 {Assets}","dnb_dom028:mem022 {Other loans}","dnb_dom030:mem253 {Inside EMU area}","dnb_dom031:mem001 {Outstanding}","dnb_dom032:mem001 {End of period}",null,"dnb_dom008:mem035 {Households}","dnb_dom009:mem008 {> 5 years}"]
["T9004HK1","","","190","010","D47",null,"dnb_met:pi001 {Weighted percentage}",null,"dnb_dom003:EUR {Euro}",null,"dnb_dom026:mem001 {Annualised agreed rate}","dnb_dom027:mem002 {Liabilities}","dnb_dom028:mem043 {Overnight deposits liabilities}","dnb_dom030:mem253 {Inside EMU area}","dnb_dom031:mem001 {Outstanding}","dnb_dom032:mem001 {End of period}",null,"dnb_dom008:mem032 {Non-financial corporations}"]
["T9004HK1","","","190","020","E47",null,"dnb_met:pi001 {Weighted percentage}",null,"dnb_dom003:EUR {Euro}",null,"dnb_dom026:mem001 {Annualised agreed rate}","dnb_dom027:mem002 {Liabilities}","dnb_dom028:mem043 {Overnight deposits liabilities}","dnb_dom030:mem253 {Inside EMU area}","dnb_dom031:mem001 {Outstanding}","dnb_dom032:mem001 {End of period}",null,"dnb_dom008:mem035 {Households}"]
["T9004HK1","","","200","010","D50",null,"dnb_met:pi001 {Weighted percentage}",null,"dnb_dom003:EUR {Euro}",null,"dnb_dom026:mem001 {Annualised agreed rate}","dnb_dom027:mem002 {Liabilities}","dnb_dom028:mem045 {Deposits with agreed maturity}","dnb_dom030:mem253 {Inside EMU area}","dnb_dom031:mem001 {Outstanding}","dnb_dom032:mem001 {End of period}",null,"dnb_dom008:mem032 {Non-financial corporations}","dnb_dom009:mem009 {<= 2 years}"]
["T9004HK1","","","200","020","E50",null,"dnb_met:pi001 {Weighted percentage}",null,"dnb_dom003:EUR {Euro}",null,"dnb_dom026:mem001 {Annualised agreed rate}","dnb_dom027:mem002 {Liabilities}","dnb_dom028:mem045 {Deposits with agreed maturity}","dnb_dom030:mem253 {Inside EMU area}","dnb_dom031:mem001 {Outstanding}","dnb_dom032:mem001 {End of period}",null,"dnb_dom008:mem035 {Households}","dnb_dom009:mem009 {<= 2 years}"]
["T9004HK1","","","210","010","D51",null,"dnb_met:pi001 {Weighted percentage}",null,"dnb_dom003:EUR {Euro}",null,"dnb_dom026:mem001 {Annualised agreed rate}","dnb_dom027:mem002 {Liabilities}","dnb_dom028:mem045 {Deposits with agreed maturity}","dnb_dom030:mem253 {Inside EMU area}","dnb_dom031:mem001 {Outstanding}","dnb_dom032:mem001 {End of period}",null,"dnb_dom008:mem032 {Non-financial corporations}","dnb_dom009:mem005 {> 2 years}"]
["T9004HK1","","","210","020","E51",null,"dnb_met:pi001 {Weighted percentage}",null,"dnb_dom003:EUR {Euro}",null,"dnb_dom026:mem001 {Annualised agreed rate}","dnb_dom027:mem002 {Liabilities}","dnb_dom028:mem045 {Deposits with agreed maturity}","dnb_dom030:mem253 {Inside EMU area}","dnb_dom031:mem001 {Outstanding}","dnb_dom032:mem001 {End of period}",null,"dnb_dom008:mem035 {Households}","dnb_dom009:mem005 {> 2 years}"]
["T9004HK1","","","220","010","D54",null,"dnb_met:pi001 {Weighted percentage}",null,"dnb_dom003:EUR {Euro}",null,"dnb_dom026:mem001 {Annualised agreed rate}","dnb_dom027:mem002 {Liabilities}","dnb_dom028:mem046 {Deposits redeemable at notice}","dnb_dom030:mem253 {Inside EMU area}","dnb_dom031:mem001 {Outstanding}","dnb_dom032:mem001 {End of period}",null,"dnb_dom008:mem032 {Non-financial corporations}",null,null,"dnb_dom009:mem012 {<= 3 months}"]
["T9004HK1","","","220","020","E54",null,"dnb_met:pi001 {Weighted percentage}",null,"dnb_dom003:EUR {Euro}",null,"dnb_dom026:mem001 {Annualised agreed rate}","dnb_dom027:mem002 {Liabilities}","dnb_dom028:mem046 {Deposits redeemable at notice}","dnb_dom030:mem253 {Inside EMU area}","dnb_dom031:mem001 {Outstanding}","dnb_dom032:mem001 {End of period}",null,"dnb_dom008:mem035 {Households}",null,null,"dnb_dom009:mem012 {<= 3 months}"]
["T9004HK1","","","230","010","D55",null,"dnb_met:pi001 {Weighted percentage}",null,"dnb_dom003:EUR {Euro}",null,"dnb_dom026:mem001 {Annualised agreed rate}","dnb_dom027:mem002 {Liabilities}","dnb_dom028:mem046 {Deposits redeemable at notice}","dnb_dom030:mem253 {Inside EMU area}","dnb_dom031:mem001 {Outstanding}","dnb_dom032:mem001 {End of period}",null,"dnb_dom008:mem032 {Non-financial corporations}",null,null,"dnb_dom009:mem013 {> 3 months}"]
["T9004HK1","","","230","020","E55",null,"dnb_met:pi001 {Weighted percentage}",null,"dnb_dom003:EUR {Euro}",null,"dnb_dom026:mem001 {Annualised agreed rate}","dnb_dom027:mem002 {Liabilities}","dnb_dom028:mem046 {Deposits redeemable at notice}","dnb_dom030:mem253 {Inside EMU area}","dnb_dom031:mem001 {Outstanding}","dnb_dom032:mem001 {End of period}",null,"dnb_dom008:mem035 {Households}",null,null,"dnb_dom009:mem013 {> 3 months}"]
["T9004HK1","","","240","010","D57",null,"dnb_met:pi001 {Weighted percentage}",null,"dnb_dom003:EUR {Euro}",null,"dnb_dom026:mem001 {Annualised agreed rate}","dnb_dom027:mem002 {Liabilities}","dnb_dom028:mem047 {Repos liabilities}","dnb_dom030:mem253 {Inside EMU area}","dnb_dom031:mem001 {Outstanding}","dnb_dom032:mem001 {End of period}",null,"dnb_dom008:mem032 {Non-financial corporations}"]
["T9004HK1","","","240","020","E57",null,"dnb_met:pi001 {Weighted percentage}",null,"dnb_dom003:EUR {Euro}",null,"dnb_dom026:mem001 {Annualised agreed rate}","dnb_dom027:mem002 {Liabilities}","dnb_dom028:mem047 {Repos liabilities}","dnb_dom030:mem253 {Inside EMU area}","dnb_dom031:mem001 {Outstanding}","dnb_dom032:mem001 {End of period}",null,"dnb_dom008:mem035 {Households}"]
["T9004HK1","","","250","010","D59",null,"dnb_met:pi001 {Weighted percentage}",null,"dnb_dom003:EUR {Euro}",null,"dnb_dom026:mem001 {Annualised agreed rate}","dnb_dom027:mem002 {Liabilities}","dnb_dom028:mem049 {Long term loans received}","dnb_dom030:mem253 {Inside EMU area}","dnb_dom031:mem001 {Outstanding}","dnb_dom032:mem001 {End of period}",null,"dnb_dom008:mem032 {Non-financial corporations}","dnb_dom009:mem005 {> 2 years}"]
["T9004HK1","","","250","020","E59",null,"dnb_met:pi001 {Weighted percentage}",null,"dnb_dom003:EUR {Euro}",null,"dnb_dom026:mem001 {Annualised agreed rate}","dnb_dom027:mem002 {Liabilities}","dnb_dom028:mem049 {Long term loans received}","dnb_dom030:mem253 {Inside EMU area}","dnb_dom031:mem001 {Outstanding}","dnb_dom032:mem001 {End of period}",null,"dnb_dom008:mem035 {Households}","dnb_dom009:mem005 {> 2 years}"]
["T9004HK2A","","","010","010","D13",null,"dnb_met:pi001 {Weighted percentage}",null,"dnb_dom003:EUR {Euro}",null,"dnb_dom026:mem001 {Annualised agreed rate}","dnb_dom027:mem001 {Assets}","dnb_dom028:mem022 {Other loans}","dnb_dom030:mem253 {Inside EMU area}","dnb_dom031:mem002 {Renegotiations and pure new business}","dnb_dom032:mem002 {Transaction}","dnb_dom033:mem001 {<= 0.25 million}","dnb_dom008:mem032 {Non-financial corporations}",null,null,null,"dnb_dom009:mem012 {<= 3 months}"]
["T9004HK2A","","","010","020","E13",null,"dnb_met:pi001 {Weighted percentage}",null,"dnb_dom003:EUR {Euro}",null,"dnb_dom026:mem001 {Annualised agreed rate}","dnb_dom027:mem001 {Assets}","dnb_dom028:mem022 {Other loans}","dnb_dom030:mem253 {Inside EMU area}","dnb_dom031:mem003 {Renegotiations}","dnb_dom032:mem002 {Transaction}","dnb_dom033:mem001 {<= 0.25 million}","dnb_dom008:mem032 {Non-financial corporations}",null,null,null,"dnb_dom009:mem012 {<= 3 months}"]
["T9004HK2A","","","010","030","F13",null,"dnb_met:mi004 {Amount}",null,"dnb_dom003:EUR {Euro}",null,null,"dnb_dom027:mem001 {Assets}","dnb_dom028:mem022 {Other loans}","dnb_dom030:mem253 {Inside EMU area}","dnb_dom031:mem002 {Renegotiations and pure new business}","dnb_dom032:mem002 {Transaction}","dnb_dom033:mem001 {<= 0.25 million}","dnb_dom008:mem032 {Non-financial corporations}",null,null,null,"dnb_dom009:mem012 {<= 3 months}"]
["T9004HK2A","","","010","040","G13",null,"dnb_met:mi004 {Amount}",null,"dnb_dom003:EUR {Euro}",null,null,"dnb_dom027:mem001 {Assets}","dnb_dom028:mem022 {Other loans}","dnb_dom030:mem253 {Inside EMU area}","dnb_dom031:mem003 {Renegotiations}","dnb_dom032:mem002 {Transaction}","dnb_dom033:mem001 {<= 0.25 million}","dnb_dom008:mem032 {Non-financial corporations}",null,null,null,"dnb_dom009:mem012 {<= 3 months}"]
["T9004HK2A","","","020","010","D14",null,"dnb_met:pi001 {Weighted percentage}",null,"dnb_dom003:EUR {Euro}",null,"dnb_dom026:mem001 {Annualised agreed rate}","dnb_dom027:mem001 {Assets}","dnb_dom028:mem022 {Other loans}","dnb_dom030:mem253 {Inside EMU area}","dnb_dom031:mem002 {Renegotiations and pure new business}","dnb_dom032:mem002 {Transaction}","dnb_dom033:mem001 {<= 0.25 million}","dnb_dom008:mem032 {Non-financial corporations}",null,null,null,"dnb_dom009:mem015 {> 3 months and <= 1 year}"]
["T9004HK2A","","","020","020","E14",null,"dnb_met:pi001 {Weighted percentage}",null,"dnb_dom003:EUR {Euro}",null,"dnb_dom026:mem001 {Annualised agreed rate}","dnb_dom027:mem001 {Assets}","dnb_dom028:mem022 {Other loans}","dnb_dom030:mem253 {Inside EMU area}","dnb_dom031:mem003 {Renegotiations}","dnb_dom032:mem002 {Transaction}","dnb_dom033:mem001 {<= 0.25 million}","dnb_dom008:mem032 {Non-financial corporations}",null,null,null,"dnb_dom009:mem015 {> 3 months and <= 1 year}"]
["T9004HK2A","","","020","030","F14",null,"dnb_met:mi004 {Amount}",null,"dnb_dom003:EUR {Euro}",null,null,"dnb_dom027:mem001 {Assets}","dnb_dom028:mem022 {Other loans}","dnb_dom030:mem253 {Inside EMU area}","dnb_dom031:mem002 {Renegotiations and pure new business}","dnb_dom032:mem002 {Transaction}","dnb_dom033:mem001 {<= 0.25 million}","dnb_dom008:mem032 {Non-financial corporations}",null,null,null,"dnb_dom009:mem015 {> 3 months and <= 1 year}"]
["T9004HK2A","","","020","040","G14",null,"dnb_met:mi004 {Amount}",null,"dnb_dom003:EUR {Euro}",null,null,"dnb_dom027:mem001 {Assets}","dnb_dom028:mem022 {Other loans}","dnb_dom030:mem253 {Inside EMU area}","dnb_dom031:mem003 {Renegotiations}","dnb_dom032:mem002 {Transaction}","dnb_dom033:mem001 {<= 0.25 million}","dnb_dom008:mem032 {Non-financial corporations}",null,null,null,"dnb_dom009:mem015 {> 3 months and <= 1 year}"]
["T9004HK2A","","","030","010","D15",null,"dnb_met:pi001 {Weighted percentage}",null,"dnb_dom003:EUR {Euro}",null,"dnb_dom026:mem001 {Annualised agreed rate}","dnb_dom027:mem001 {Assets}","dnb_dom028:mem022 {Other loans}","dnb_dom030:mem253 {Inside EMU area}","dnb_dom031:mem002 {Renegotiations and pure new business}","dnb_dom032:mem002 {Transaction}","dnb_dom033:mem001 {<= 0.25 million}","dnb_dom008:mem032 {Non-financial corporations}",null,null,null,"dnb_dom009:mem016 {> 1 year and <= 3 years}"]
["T9004HK2A","","","030","020","E15",null,"dnb_met:pi001 {Weighted percentage}",null,"dnb_dom003:EUR {Euro}",null,"dnb_dom026:mem001 {Annualised agreed rate}","dnb_dom027:mem001 {Assets}","dnb_dom028:mem022 {Other loans}","dnb_dom030:mem253 {Inside EMU area}","dnb_dom031:mem003 {Renegotiations}","dnb_dom032:mem002 {Transaction}","dnb_dom033:mem001 {<= 0.25 million}","dnb_dom008:mem032 {Non-financial corporations}",null,null,null,"dnb_dom009:mem016 {> 1 year and <= 3 years}"]
["T9004HK2A","","","030","030","F15",null,"dnb_met:mi004 {Amount}",null,"dnb_dom003:EUR {Euro}",null,null,"dnb_dom027:mem001 {Assets}","dnb_dom028:mem022 {Other loans}","dnb_dom030:mem253 {Inside EMU area}","dnb_dom031:mem002 {Renegotiations and pure new business}","dnb_dom032:mem002 {Transaction}","dnb_dom033:mem001 {<= 0.25 million}","dnb_dom008:mem032 {Non-financial corporations}",null,null,null,"dnb_dom009:mem016 {> 1 year and <= 3 years}"]
["T9004HK2A","","","030","040","G15",null,"dnb_met:mi004 {Amount}",null,"dnb_dom003:EUR {Euro}",null,null,"dnb_dom027:mem001 {Assets}","dnb_dom028:mem022 {Other loans}","dnb_dom030:mem253 {Inside EMU area}","dnb_dom031:mem003 {Renegotiations}","dnb_dom032:mem002 {Transaction}","dnb_dom033:mem001 {<= 0.25 million}","dnb_dom008:mem032 {Non-financial corporations}",null,null,null,"dnb_dom009:mem016 {> 1 year and <= 3 years}"]
["T9004HK2A","","","040","010","D16",null,"dnb_met:pi001 {Weighted percentage}",null,"dnb_dom003:EUR {Euro}",null,"dnb_dom026:mem001 {Annualised agreed rate}","dnb_dom027:mem001 {Assets}","dnb_dom028:mem022 {Other loans}","dnb_dom030:mem253 {Inside EMU area}","dnb_dom031:mem002 {Renegotiations and pure new business}","dnb_dom032:mem002 {Transaction}","dnb_dom033:mem001 {<= 0.25 million}","dnb_dom008:mem032 {Non-financial corporations}",null,null,null,"dnb_dom009:mem017 {> 3 years and <= 5 years}"]
["T9004HK2A","","","040","020","E16",null,"dnb_met:pi001 {Weighted percentage}",null,"dnb_dom003:EUR {Euro}",null,"dnb_dom026:mem001 {Annualised agreed rate}","dnb_dom027:mem001 {Assets}","dnb_dom028:mem022 {Other loans}","dnb_dom030:mem253 {Inside EMU area}","dnb_dom031:mem003 {Renegotiations}","dnb_dom032:mem002 {Transaction}","dnb_dom033:mem001 {<= 0.25 million}","dnb_dom008:mem032 {Non-financial corporations}",null,null,null,"dnb_dom009:mem017 {> 3 years and <= 5 years}"]
["T9004HK2A","","","040","030","F16",null,"dnb_met:mi004 {Amount}",null,"dnb_dom003:EUR {Euro}",null,null,"dnb_dom027:mem001 {Assets}","dnb_dom028:mem022 {Other loans}","dnb_dom030:mem253 {Inside EMU area}","dnb_dom031:mem002 {Renegotiations and pure new business}","dnb_dom032:mem002 {Transaction}","dnb_dom033:mem001 {<= 0.25 million}","dnb_dom008:mem032 {Non-financial corporations}",null,null,null,"dnb_dom009:mem017 {> 3 years and <= 5 years}"]
["T9004HK2A","","","040","040","G16",null,"dnb_met:mi004 {Amount}",null,"dnb_dom003:EUR {Euro}",null,null,"dnb_dom027:mem001 {Assets}","dnb_dom028:mem022 {Other loans}","dnb_dom030:mem253 {Inside EMU area}","dnb_dom031:mem003 {Renegotiations}","dnb_dom032:mem002 {Transaction}","dnb_dom033:mem001 {<= 0.25 million}","dnb_dom008:mem032 {Non-financial corporations}",null,null,null,"dnb_dom009:mem017 {> 3 years and <= 5 years}"]
["T9004HK2A","","","050","010","D17",null,"dnb_met:pi001 {Weighted percentage}",null,"dnb_dom003:EUR {Euro}",null,"dnb_dom026:mem001 {Annualised agreed rate}","dnb_dom027:mem001 {Assets}","dnb_dom028:mem022 {Other loans}","dnb_dom030:mem253 {Inside EMU area}","dnb_dom031:mem002 {Renegotiations and pure new business}","dnb_dom032:mem002 {Transaction}","dnb_dom033:mem001 {<= 0.25 million}","dnb_dom008:mem032 {Non-financial corporations}",null,null,null,"dnb_dom009:mem018 {> 5 years and <= 10 years}"]
["T9004HK2A","","","050","020","E17",null,"dnb_met:pi001 {Weighted percentage}",null,"dnb_dom003:EUR {Euro}",null,"dnb_dom026:mem001 {Annualised agreed rate}","dnb_dom027:mem001 {Assets}","dnb_dom028:mem022 {Other loans}","dnb_dom030:mem253 {Inside EMU area}","dnb_dom031:mem003 {Renegotiations}","dnb_dom032:mem002 {Transaction}","dnb_dom033:mem001 {<= 0.25 million}","dnb_dom008:mem032 {Non-financial corporations}",null,null,null,"dnb_dom009:mem018 {> 5 years and <= 10 years}"]
["T9004HK2A","","","050","030","F17",null,"dnb_met:mi004 {Amount}",null,"dnb_dom003:EUR {Euro}",null,null,"dnb_dom027:mem001 {Assets}","dnb_dom028:mem022 {Other loans}","dnb_dom030:mem253 {Inside EMU area}","dnb_dom031:mem002 {Renegotiations and pure new business}","dnb_dom032:mem002 {Transaction}","dnb_dom033:mem001 {<= 0.25 million}","dnb_dom008:mem032 {Non-financial corporations}",null,null,null,"dnb_dom009:mem018 {> 5 years and <= 10 years}"]
["T9004HK2A","","","050","040","G17",null,"dnb_met:mi004 {Amount}",null,"dnb_dom003:EUR {Euro}",null,null,"dnb_dom027:mem001 {Assets}","dnb_dom028:mem022 {Other loans}","dnb_dom030:mem253 {Inside EMU area}","dnb_dom031:mem003 {Renegotiations}","dnb_dom032:mem002 {Transaction}","dnb_dom033:mem001 {<= 0.25 million}","dnb_dom008:mem032 {Non-financial corporations}",null,null,null,"dnb_dom009:mem018 {> 5 years and <= 10 years}"]
["T9004HK2A","","","060","010","D18",null,"dnb_met:pi001 {Weighted percentage}",null,"dnb_dom003:EUR {Euro}",null,"dnb_dom026:mem001 {Annualised agreed rate}","dnb_dom027:mem001 {Assets}","dnb_dom028:mem022 {Other loans}","dnb_dom030:mem253 {Inside EMU area}","dnb_dom031:mem002 {Renegotiations and pure new business}","dnb_dom032:mem002 {Transaction}","dnb_dom033:mem001 {<= 0.25 million}","dnb_dom008:mem032 {Non-financial corporations}",null,null,null,"dnb_dom009:mem019 {> 10 years}"]
["T9004HK2A","","","060","020","E18",null,"dnb_met:pi001 {Weighted percentage}",null,"dnb_dom003:EUR {Euro}",null,"dnb_dom026:mem001 {Annualised agreed rate}","dnb_dom027:mem001 {Assets}","dnb_dom028:mem022 {Other loans}","dnb_dom030:mem253 {Inside EMU area}","dnb_dom031:mem003 {Renegotiations}","dnb_dom032:mem002 {Transaction}","dnb_dom033:mem001 {<= 0.25 million}","dnb_dom008:mem032 {Non-financial corporations}",null,null,null,"dnb_dom009:mem019 {> 10 years}"]
["T9004HK2A","","","060","030","F18",null,"dnb_met:mi004 {Amount}",null,"dnb_dom003:EUR {Euro}",null,null,"dnb_dom027:mem001 {Assets}","dnb_dom028:mem022 {Other loans}","dnb_dom030:mem253 {Inside EMU area}","dnb_dom031:mem002 {Renegotiations and pure new business}","dnb_dom032:mem002 {Transaction}","dnb_dom033:mem001 {<= 0.25 million}","dnb_dom008:mem032 {Non-financial corporations}",null,null,null,"dnb_dom009:mem019 {> 10 years}"]
["T9004HK2A","","","060","040","G18",null,"dnb_met:mi004 {Amount}",null,"dnb_dom003:EUR {Euro}",null,null,"dnb_dom027:mem001 {Assets}","dnb_dom028:mem022 {Other loans}","dnb_dom030:mem253 {Inside EMU area}","dnb_dom031:mem003 {Renegotiations}","dnb_dom032:mem002 {Transaction}","dnb_dom033:mem001 {<= 0.25 million}","dnb_dom008:mem032 {Non-financial corporations}",null,null,null,"dnb_dom009:mem019 {> 10 years}"]
["T9004HK2A","","","070","010","D20",null,"dnb_met:pi001 {Weighted percentage}",null,"dnb_dom003:EUR {Euro}",null,"dnb_dom026:mem001 {Annualised agreed rate}","dnb_dom027:mem001 {Assets}","dnb_dom028:mem022 {Other loans}","dnb_dom030:mem253 {Inside EMU area}","dnb_dom031:mem002 {Renegotiations and pure new business}","dnb_dom032:mem002 {Transaction}","dnb_dom033:mem001 {<= 0.25 million}","dnb_dom008:mem032 {Non-financial corporations}","dnb_dom009:mem006 {<= 1 year}"]
["T9004HK2A","","","070","030","F20",null,"dnb_met:mi004 {Amount}",null,"dnb_dom003:EUR {Euro}",null,null,"dnb_dom027:mem001 {Assets}","dnb_dom028:mem022 {Other loans}","dnb_dom030:mem253 {Inside EMU area}","dnb_dom031:mem002 {Renegotiations and pure new business}","dnb_dom032:mem002 {Transaction}","dnb_dom033:mem001 {<= 0.25 million}","dnb_dom008:mem032 {Non-financial corporations}","dnb_dom009:mem006 {<= 1 year}"]
["T9004HK2A","","","080","010","D21",null,"dnb_met:pi001 {Weighted percentage}",null,"dnb_dom003:EUR {Euro}",null,"dnb_dom026:mem001 {Annualised agreed rate}","dnb_dom027:mem001 {Assets}","dnb_dom028:mem022 {Other loans}","dnb_dom030:mem253 {Inside EMU area}","dnb_dom031:mem002 {Renegotiations and pure new business}","dnb_dom032:mem002 {Transaction}","dnb_dom033:mem001 {<= 0.25 million}","dnb_dom008:mem032 {Non-financial corporations}","dnb_dom009:mem004 {> 1 year}"]
["T9004HK2A","","","080","030","F21",null,"dnb_met:mi004 {Amount}",null,"dnb_dom003:EUR {Euro}",null,null,"dnb_dom027:mem001 {Assets}","dnb_dom028:mem022 {Other loans}","dnb_dom030:mem253 {Inside EMU area}","dnb_dom031:mem002 {Renegotiations and pure new business}","dnb_dom032:mem002 {Transaction}","dnb_dom033:mem001 {<= 0.25 million}","dnb_dom008:mem032 {Non-financial corporations}","dnb_dom009:mem004 {> 1 year}"]
["T9004HK2A","","","090","010","D22",null,"dnb_met:pi001 {Weighted percentage}",null,"dnb_dom003:EUR {Euro}",null,"dnb_dom026:mem001 {Annualised agreed rate}","dnb_dom027:mem001 {Assets}","dnb_dom028:mem022 {Other loans}","dnb_dom030:mem253 {Inside EMU area}","dnb_dom031:mem002 {Renegotiations and pure new business}","dnb_dom032:mem002 {Transaction}","dnb_dom033:mem001 {<= 0.25 million}","dnb_dom008:mem032 {Non-financial corporations}","dnb_dom009:mem004 {> 1 year}",null,null,"dnb_dom009:mem006 {<= 1 year}"]
["T9004HK2A","","","090","030","F22",null,"dnb_met:mi004 {Amount}",null,"dnb_dom003:EUR {Euro}",null,null,"dnb_dom027:mem001 {Assets}","dnb_dom028:mem022 {Other loans}","dnb_dom030:mem253 {Inside EMU area}","dnb_dom031:mem002 {Renegotiations and pure new business}","dnb_dom032:mem002 {Transaction}","dnb_dom033:mem001 {<= 0.25 million}","dnb_dom008:mem032 {Non-financial corporations}","dnb_dom009:mem004 {> 1 year}",null,null,"dnb_dom009:mem006 {<= 1 year}"]
["T9004HK2A","","","100","010","D23",null,"dnb_met:pi001 {Weighted percentage}",null,"dnb_dom003:EUR {Euro}",null,"dnb_dom026:mem001 {Annualised agreed rate}","dnb_dom027:mem001 {Assets}","dnb_dom028:mem022 {Other loans}","dnb_dom030:mem253 {Inside EMU area}","dnb_dom031:mem002 {Renegotiations and pure new business}","dnb_dom032:mem002 {Transaction}","dnb_dom033:mem001 {<= 0.25 million}","dnb_dom008:mem032 {Non-financial corporations}","dnb_dom009:mem004 {> 1 year}",null,null,"dnb_dom009:mem007 {> 1 year and <= 5 years}"]
["T9004HK2A","","","100","030","F23",null,"dnb_met:mi004 {Amount}",null,"dnb_dom003:EUR {Euro}",null,null,"dnb_dom027:mem001 {Assets}","dnb_dom028:mem022 {Other loans}","dnb_dom030:mem253 {Inside EMU area}","dnb_dom031:mem002 {Renegotiations and pure new business}","dnb_dom032:mem002 {Transaction}","dnb_dom033:mem001 {<= 0.25 million}","dnb_dom008:mem032 {Non-financial corporations}","dnb_dom009:mem004 {> 1 year}",null,null,"dnb_dom009:mem007 {> 1 year and <= 5 years}"]
["T9004HK2A","","","110","010","D24",null,"dnb_met:pi001 {Weighted percentage}",null,"dnb_dom003:EUR {Euro}",null,"dnb_dom026:mem001 {Annualised agreed rate}","dnb_dom027:mem001 {Assets}","dnb_dom028:mem022 {Other loans}","dnb_dom030:mem253 {Inside EMU area}","dnb_dom031:mem002 {Renegotiations and pure new business}","dnb_dom032:mem002 {Transaction}","dnb_dom033:mem001 {<= 0.25 million}","dnb_dom008:mem032 {Non-financial corporations}","dnb_dom009:mem004 {> 1 year}",null,null,"dnb_dom009:mem008 {> 5 years}"]
["T9004HK2A","","","110","030","F24",null,"dnb_met:mi004 {Amount}",null,"dnb_dom003:EUR {Euro}",null,null,"dnb_dom027:mem001 {Assets}","dnb_dom028:mem022 {Other loans}","dnb_dom030:mem253 {Inside EMU area}","dnb_dom031:mem002 {Renegotiations and pure new business}","dnb_dom032:mem002 {Transaction}","dnb_dom033:mem001 {<= 0.25 million}","dnb_dom008:mem032 {Non-financial corporations}","dnb_dom009:mem004 {> 1 year}",null,null,"dnb_dom009:mem008 {> 5 years}"]
["T9004HK2A","","","120","010","D27",null,"dnb_met:pi001 {Weighted percentage}",null,"dnb_dom003:EUR {Euro}",null,"dnb_dom026:mem001 {Annualised agreed rate}","dnb_dom027:mem001 {Assets}","dnb_dom028:mem022 {Other loans}","dnb_dom030:mem253 {Inside EMU area}","dnb_dom031:mem002 {Renegotiations and pure new business}","dnb_dom032:mem002 {Transaction}","dnb_dom033:mem002 {> 0.25 and <= 1 million}","dnb_dom008:mem032 {Non-financial corporations}",null,null,null,"dnb_dom009:mem012 {<= 3 months}"]
["T9004HK2A","","","120","020","E27",null,"dnb_met:pi001 {Weighted percentage}",null,"dnb_dom003:EUR {Euro}",null,"dnb_dom026:mem001 {Annualised agreed rate}","dnb_dom027:mem001 {Assets}","dnb_dom028:mem022 {Other loans}","dnb_dom030:mem253 {Inside EMU area}","dnb_dom031:mem003 {Renegotiations}","dnb_dom032:mem002 {Transaction}","dnb_dom033:mem002 {> 0.25 and <= 1 million}","dnb_dom008:mem032 {Non-financial corporations}",null,null,null,"dnb_dom009:mem012 {<= 3 months}"]
["T9004HK2A","","","120","030","F27",null,"dnb_met:mi004 {Amount}",null,"dnb_dom003:EUR {Euro}",null,null,"dnb_dom027:mem001 {Assets}","dnb_dom028:mem022 {Other loans}","dnb_dom030:mem253 {Inside EMU area}","dnb_dom031:mem002 {Renegotiations and pure new business}","dnb_dom032:mem002 {Transaction}","dnb_dom033:mem002 {> 0.25 and <= 1 million}","dnb_dom008:mem032 {Non-financial corporations}",null,null,null,"dnb_dom009:mem012 {<= 3 months}"]
["T9004HK2A","","","120","040","G27",null,"dnb_met:mi004 {Amount}",null,"dnb_dom003:EUR {Euro}",null,null,"dnb_dom027:mem001 {Assets}","dnb_dom028:mem022 {Other loans}","dnb_dom030:mem253 {Inside EMU area}","dnb_dom031:mem003 {Renegotiations}","dnb_dom032:mem002 {Transaction}","dnb_dom033:mem002 {> 0.25 and <= 1 million}","dnb_dom008:mem032 {Non-financial corporations}",null,null,null,"dnb_dom009:mem012 {<= 3 months}"]
["T9004HK2A","","","130","010","D28",null,"dnb_met:pi001 {Weighted percentage}",null,"dnb_dom003:EUR {Euro}",null,"dnb_dom026:mem001 {Annualised agreed rate}","dnb_dom027:mem001 {Assets}","dnb_dom028:mem022 {Other loans}","dnb_dom030:mem253 {Inside EMU area}","dnb_dom031:mem002 {Renegotiations and pure new business}","dnb_dom032:mem002 {Transaction}","dnb_dom033:mem002 {> 0.25 and <= 1 million}","dnb_dom008:mem032 {Non-financial corporations}",null,null,null,"dnb_dom009:mem015 {> 3 months and <= 1 year}"]
["T9004HK2A","","","130","020","E28",null,"dnb_met:pi001 {Weighted percentage}",null,"dnb_dom003:EUR {Euro}",null,"dnb_dom026:mem001 {Annualised agreed rate}","dnb_dom027:mem001 {Assets}","dnb_dom028:mem022 {Other loans}","dnb_dom030:mem253 {Inside EMU area}","dnb_dom031:mem003 {Renegotiations}","dnb_dom032:mem002 {Transaction}","dnb_dom033:mem002 {> 0.25 and <= 1 million}","dnb_dom008:mem032 {Non-financial corporations}",null,null,null,"dnb_dom009:mem015 {> 3 months and <= 1 year}"]
["T9004HK2A","","","130","030","F28",null,"dnb_met:mi004 {Amount}",null,"dnb_dom003:EUR {Euro}",null,null,"dnb_dom027:mem001 {Assets}","dnb_dom028:mem022 {Other loans}","dnb_dom030:mem253 {Inside EMU area}","dnb_dom031:mem002 {Renegotiations and pure new business}","dnb_dom032:mem002 {Transaction}","dnb_dom033:mem002 {> 0.25 and <= 1 million}","dnb_dom008:mem032 {Non-financial corporations}",null,null,null,"dnb_dom009:mem015 {> 3 months and <= 1 year}"]
["T9004HK2A","","","130","040","G28",null,"dnb_met:mi004 {Amount}",null,"dnb_dom003:EUR {Euro}",null,null,"dnb_dom027:mem001 {Assets}","dnb_dom028:mem022 {Other loans}","dnb_dom030:mem253 {Inside EMU area}","dnb_dom031:mem003 {Renegotiations}","dnb_dom032:mem002 {Transaction}","dnb_dom033:mem002 {> 0.25 and <= 1 million}","dnb_dom008:mem032 {Non-financial corporations}",null,null,null,"dnb_dom009:mem015 {> 3 months and <= 1 year}"]
["T9004HK2A","","","140","010","D29",null,"dnb_met:pi001 {Weighted percentage}",null,"dnb_dom003:EUR {Euro}",null,"dnb_dom026:mem001 {Annualised agreed rate}","dnb_dom027:mem001 {Assets}","dnb_dom028:mem022 {Other loans}","dnb_dom030:mem253 {Inside EMU area}","dnb_dom031:mem002 {Renegotiations and pure new business}","dnb_dom032:mem002 {Transaction}","dnb_dom033:mem002 {> 0.25 and <= 1 million}","dnb_dom008:mem032 {Non-financial corporations}",null,null,null,"dnb_dom009:mem016 {> 1 year and <= 3 years}"]
["T9004HK2A","","","140","020","E29",null,"dnb_met:pi001 {Weighted percentage}",null,"dnb_dom003:EUR {Euro}",null,"dnb_dom026:mem001 {Annualised agreed rate}","dnb_dom027:mem001 {Assets}","dnb_dom028:mem022 {Other loans}","dnb_dom030:mem253 {Inside EMU area}","dnb_dom031:mem003 {Renegotiations}","dnb_dom032:mem002 {Transaction}","dnb_dom033:mem002 {> 0.25 and <= 1 million}","dnb_dom008:mem032 {Non-financial corporations}",null,null,null,"dnb_dom009:mem016 {> 1 year and <= 3 years}"]
["T9004HK2A","","","140","030","F29",null,"dnb_met:mi004 {Amount}",null,"dnb_dom003:EUR {Euro}",null,null,"dnb_dom027:mem001 {Assets}","dnb_dom028:mem022 {Other loans}","dnb_dom030:mem253 {Inside EMU area}","dnb_dom031:mem002 {Renegotiations and pure new business}","dnb_dom032:mem002 {Transaction}","dnb_dom033:mem002 {> 0.25 and <= 1 million}","dnb_dom008:mem032 {Non-financial corporations}",null,null,null,"dnb_dom009:mem016 {> 1 year and <= 3 years}"]
["T9004HK2A","","","140","040","G29",null,"dnb_met:mi004 {Amount}",null,"dnb_dom003:EUR {Euro}",null,null,"dnb_dom027:mem001 {Assets}","dnb_dom028:mem022 {Other loans}","dnb_dom030:mem253 {Inside EMU area}","dnb_dom031:mem003 {Renegotiations}","dnb_dom032:mem002 {Transaction}","dnb_dom033:mem002 {> 0.25 and <= 1 million}","dnb_dom008:mem032 {Non-financial corporations}",null,null,null,"dnb_dom009:mem016 {> 1 year and <= 3 years}"]
["T9004HK2A","","","150","010","D30",null,"dnb_met:pi001 {Weighted percentage}",null,"dnb_dom003:EUR {Euro}",null,"dnb_dom026:mem001 {Annualised agreed rate}","dnb_dom027:mem001 {Assets}","dnb_dom028:mem022 {Other loans}","dnb_dom030:mem253 {Inside EMU area}","dnb_dom031:mem002 {Renegotiations and pure new business}","dnb_dom032:mem002 {Transaction}","dnb_dom033:mem002 {> 0.25 and <= 1 million}","dnb_dom008:mem032 {Non-financial corporations}",null,null,null,"dnb_dom009:mem017 {> 3 years and <= 5 years}"]
["T9004HK2A","","","150","020","E30",null,"dnb_met:pi001 {Weighted percentage}",null,"dnb_dom003:EUR {Euro}",null,"dnb_dom026:mem001 {Annualised agreed rate}","dnb_dom027:mem001 {Assets}","dnb_dom028:mem022 {Other loans}","dnb_dom030:mem253 {Inside EMU area}","dnb_dom031:mem003 {Renegotiations}","dnb_dom032:mem002 {Transaction}","dnb_dom033:mem002 {> 0.25 and <= 1 million}","dnb_dom008:mem032 {Non-financial corporations}",null,null,null,"dnb_dom009:mem017 {> 3 years and <= 5 years}"]
["T9004HK2A","","","150","030","F30",null,"dnb_met:mi004 {Amount}",null,"dnb_dom003:EUR {Euro}",null,null,"dnb_dom027:mem001 {Assets}","dnb_dom028:mem022 {Other loans}","dnb_dom030:mem253 {Inside EMU area}","dnb_dom031:mem002 {Renegotiations and pure new business}","dnb_dom032:mem002 {Transaction}","dnb_dom033:mem002 {> 0.25 and <= 1 million}","dnb_dom008:mem032 {Non-financial corporations}",null,null,null,"dnb_dom009:mem017 {> 3 years and <= 5 years}"]
["T9004HK2A","","","150","040","G30",null,"dnb_met:mi004 {Amount}",null,"dnb_dom003:EUR {Euro}",null,null,"dnb_dom027:mem001 {Assets}","dnb_dom028:mem022 {Other loans}","dnb_dom030:mem253 {Inside EMU area}","dnb_dom031:mem003 {Renegotiations}","dnb_dom032:mem002 {Transaction}","dnb_dom033:mem002 {> 0.25 and <= 1 million}","dnb_dom008:mem032 {Non-financial corporations}",null,null,null,"dnb_dom009:mem017 {> 3 years and <= 5 years}"]
["T9004HK2A","","","160","010","D31",null,"dnb_met:pi001 {Weighted percentage}",null,"dnb_dom003:EUR {Euro}",null,"dnb_dom026:mem001 {Annualised agreed rate}","dnb_dom027:mem001 {Assets}","dnb_dom028:mem022 {Other loans}","dnb_dom030:mem253 {Inside EMU area}","dnb_dom031:mem002 {Renegotiations and pure new business}","dnb_dom032:mem002 {Transaction}","dnb_dom033:mem002 {> 0.25 and <= 1 million}","dnb_dom008:mem032 {Non-financial corporations}",null,null,null,"dnb_dom009:mem018 {> 5 years and <= 10 years}"]
["T9004HK2A","","","160","020","E31",null,"dnb_met:pi001 {Weighted percentage}",null,"dnb_dom003:EUR {Euro}",null,"dnb_dom026:mem001 {Annualised agreed rate}","dnb_dom027:mem001 {Assets}","dnb_dom028:mem022 {Other loans}","dnb_dom030:mem253 {Inside EMU area}","dnb_dom031:mem003 {Renegotiations}","dnb_dom032:mem002 {Transaction}","dnb_dom033:mem002 {> 0.25 and <= 1 million}","dnb_dom008:mem032 {Non-financial corporations}",null,null,null,"dnb_dom009:mem018 {> 5 years and <= 10 years}"]
["T9004HK2A","","","160","030","F31",null,"dnb_met:mi004 {Amount}",null,"dnb_dom003:EUR {Euro}",null,null,"dnb_dom027:mem001 {Assets}","dnb_dom028:mem022 {Other loans}","dnb_dom030:mem253 {Inside EMU area}","dnb_dom031:mem002 {Renegotiations and pure new business}","dnb_dom032:mem002 {Transaction}","dnb_dom033:mem002 {> 0.25 and <= 1 million}","dnb_dom008:mem032 {Non-financial corporations}",null,null,null,"dnb_dom009:mem018 {> 5 years and <= 10 years}"]
["T9004HK2A","","","160","040","G31",null,"dnb_met:mi004 {Amount}",null,"dnb_dom003:EUR {Euro}",null,null,"dnb_dom027:mem001 {Assets}","dnb_dom028:mem022 {Other loans}","dnb_dom030:mem253 {Inside EMU area}","dnb_dom031:mem003 {Renegotiations}","dnb_dom032:mem002 {Transaction}","dnb_dom033:mem002 {> 0.25 and <= 1 million}","dnb_dom008:mem032 {Non-financial corporations}",null,null,null,"dnb_dom009:mem018 {> 5 years and <= 10 years}"]
["T9004HK2A","","","170","010","D32",null,"dnb_met:pi001 {Weighted percentage}",null,"dnb_dom003:EUR {Euro}",null,"dnb_dom026:mem001 {Annualised agreed rate}","dnb_dom027:mem001 {Assets}","dnb_dom028:mem022 {Other loans}","dnb_dom030:mem253 {Inside EMU area}","dnb_dom031:mem002 {Renegotiations and pure new business}","dnb_dom032:mem002 {Transaction}","dnb_dom033:mem002 {> 0.25 and <= 1 million}","dnb_dom008:mem032 {Non-financial corporations}",null,null,null,"dnb_dom009:mem019 {> 10 years}"]
["T9004HK2A","","","170","020","E32",null,"dnb_met:pi001 {Weighted percentage}",null,"dnb_dom003:EUR {Euro}",null,"dnb_dom026:mem001 {Annualised agreed rate}","dnb_dom027:mem001 {Assets}","dnb_dom028:mem022 {Other loans}","dnb_dom030:mem253 {Inside EMU area}","dnb_dom031:mem003 {Renegotiations}","dnb_dom032:mem002 {Transaction}","dnb_dom033:mem002 {> 0.25 and <= 1 million}","dnb_dom008:mem032 {Non-financial corporations}",null,null,null,"dnb_dom009:mem019 {> 10 years}"]
["T9004HK2A","","","170","030","F32",null,"dnb_met:mi004 {Amount}",null,"dnb_dom003:EUR {Euro}",null,null,"dnb_dom027:mem001 {Assets}","dnb_dom028:mem022 {Other loans}","dnb_dom030:mem253 {Inside EMU area}","dnb_dom031:mem002 {Renegotiations and pure new business}","dnb_dom032:mem002 {Transaction}","dnb_dom033:mem002 {> 0.25 and <= 1 million}","dnb_dom008:mem032 {Non-financial corporations}",null,null,null,"dnb_dom009:mem019 {> 10 years}"]
["T9004HK2A","","","170","040","G32",null,"dnb_met:mi004 {Amount}",null,"dnb_dom003:EUR {Euro}",null,null,"dnb_dom027:mem001 {Assets}","dnb_dom028:mem022 {Other loans}","dnb_dom030:mem253 {Inside EMU area}","dnb_dom031:mem003 {Renegotiations}","dnb_dom032:mem002 {Transaction}","dnb_dom033:mem002 {> 0.25 and <= 1 million}","dnb_dom008:mem032 {Non-financial corporations}",null,null,null,"dnb_dom009:mem019 {> 10 years}"]
["T9004HK2A","","","180","010","D34",null,"dnb_met:pi001 {Weighted percentage}",null,"dnb_dom003:EUR {Euro}",null,"dnb_dom026:mem001 {Annualised agreed rate}","dnb_dom027:mem001 {Assets}","dnb_dom028:mem022 {Other loans}","dnb_dom030:mem253 {Inside EMU area}","dnb_dom031:mem002 {Renegotiations and pure new business}","dnb_dom032:mem002 {Transaction}","dnb_dom033:mem002 {> 0.25 and <= 1 million}","dnb_dom008:mem032 {Non-financial corporations}","dnb_dom009:mem006 {<= 1 year}"]
["T9004HK2A","","","180","030","F34",null,"dnb_met:mi004 {Amount}",null,"dnb_dom003:EUR {Euro}",null,null,"dnb_dom027:mem001 {Assets}","dnb_dom028:mem022 {Other loans}","dnb_dom030:mem253 {Inside EMU area}","dnb_dom031:mem002 {Renegotiations and pure new business}","dnb_dom032:mem002 {Transaction}","dnb_dom033:mem002 {> 0.25 and <= 1 million}","dnb_dom008:mem032 {Non-financial corporations}","dnb_dom009:mem006 {<= 1 year}"]
["T9004HK2A","","","190","010","D35",null,"dnb_met:pi001 {Weighted percentage}",null,"dnb_dom003:EUR {Euro}",null,"dnb_dom026:mem001 {Annualised agreed rate}","dnb_dom027:mem001 {Assets}","dnb_dom028:mem022 {Other loans}","dnb_dom030:mem253 {Inside EMU area}","dnb_dom031:mem002 {Renegotiations and pure new business}","dnb_dom032:mem002 {Transaction}","dnb_dom033:mem002 {> 0.25 and <= 1 million}","dnb_dom008:mem032 {Non-financial corporations}","dnb_dom009:mem004 {> 1 year}"]
["T9004HK2A","","","190","030","F35",null,"dnb_met:mi004 {Amount}",null,"dnb_dom003:EUR {Euro}",null,null,"dnb_dom027:mem001 {Assets}","dnb_dom028:mem022 {Other loans}","dnb_dom030:mem253 {Inside EMU area}","dnb_dom031:mem002 {Renegotiations and pure new business}","dnb_dom032:mem002 {Transaction}","dnb_dom033:mem002 {> 0.25 and <= 1 million}","dnb_dom008:mem032 {Non-financial corporations}","dnb_dom009:mem004 {> 1 year}"]
["T9004HK2A","","","200","010","D36",null,"dnb_met:pi001 {Weighted percentage}",null,"dnb_dom003:EUR {Euro}",null,"dnb_dom026:mem001 {Annualised agreed rate}","dnb_dom027:mem001 {Assets}","dnb_dom028:mem022 {Other loans}","dnb_dom030:mem253 {Inside EMU area}","dnb_dom031:mem002 {Renegotiations and pure new business}","dnb_dom032:mem002 {Transaction}","dnb_dom033:mem002 {> 0.25 and <= 1 million}","dnb_dom008:mem032 {Non-financial corporations}","dnb_dom009:mem004 {> 1 year}",null,null,"dnb_dom009:mem006 {<= 1 year}"]
["T9004HK2A","","","200","030","F36",null,"dnb_met:mi004 {Amount}",null,"dnb_dom003:EUR {Euro}",null,null,"dnb_dom027:mem001 {Assets}","dnb_dom028:mem022 {Other loans}","dnb_dom030:mem253 {Inside EMU area}","dnb_dom031:mem002 {Renegotiations and pure new business}","dnb_dom032:mem002 {Transaction}","dnb_dom033:mem002 {> 0.25 and <= 1 million}","dnb_dom008:mem032 {Non-financial corporations}","dnb_dom009:mem004 {> 1 year}",null,null,"dnb_dom009:mem006 {<= 1 year}"]
["T9004HK2A","","","210","010","D37",null,"dnb_met:pi001 {Weighted percentage}",null,"dnb_dom003:EUR {Euro}",null,"dnb_dom026:mem001 {Annualised agreed rate}","dnb_dom027:mem001 {Assets}","dnb_dom028:mem022 {Other loans}","dnb_dom030:mem253 {Inside EMU area}","dnb_dom031:mem002 {Renegotiations and pure new business}","dnb_dom032:mem002 {Transaction}","dnb_dom033:mem002 {> 0.25 and <= 1 million}","dnb_dom008:mem032 {Non-financial corporations}","dnb_dom009:mem004 {> 1 year}",null,null,"dnb_dom009:mem007 {> 1 year and <= 5 years}"]
["T9004HK2A","","","210","030","F37",null,"dnb_met:mi004 {Amount}",null,"dnb_dom003:EUR {Euro}",null,null,"dnb_dom027:mem001 {Assets}","dnb_dom028:mem022 {Other loans}","dnb_dom030:mem253 {Inside EMU area}","dnb_dom031:mem002 {Renegotiations and pure new business}","dnb_dom032:mem002 {Transaction}","dnb_dom033:mem002 {> 0.25 and <= 1 million}","dnb_dom008:mem032 {Non-financial corporations}","dnb_dom009:mem004 {> 1 year}",null,null,"dnb_dom009:mem007 {> 1 year and <= 5 years}"]
["T9004HK2A","","","220","010","D38",null,"dnb_met:pi001 {Weighted percentage}",null,"dnb_dom003:EUR {Euro}",null,"dnb_dom026:mem001 {Annualised agreed rate}","dnb_dom027:mem001 {Assets}","dnb_dom028:mem022 {Other loans}","dnb_dom030:mem253 {Inside EMU area}","dnb_dom031:mem002 {Renegotiations and pure new business}","dnb_dom032:mem002 {Transaction}","dnb_dom033:mem002 {> 0.25 and <= 1 million}","dnb_dom008:mem032 {Non-financial corporations}","dnb_dom009:mem004 {> 1 year}",null,null,"dnb_dom009:mem008 {> 5 years}"]
["T9004HK2A","","","220","030","F38",null,"dnb_met:mi004 {Amount}",null,"dnb_dom003:EUR {Euro}",null,null,"dnb_dom027:mem001 {Assets}","dnb_dom028:mem022 {Other loans}","dnb_dom030:mem253 {Inside EMU area}","dnb_dom031:mem002 {Renegotiations and pure new business}","dnb_dom032:mem002 {Transaction}","dnb_dom033:mem002 {> 0.25 and <= 1 million}","dnb_dom008:mem032 {Non-financial corporations}","dnb_dom009:mem004 {> 1 year}",null,null,"dnb_dom009:mem008 {> 5 years}"]
["T9004HK2A","","","230","010","D41",null,"dnb_met:pi001 {Weighted percentage}",null,"dnb_dom003:EUR {Euro}",null,"dnb_dom026:mem001 {Annualised agreed rate}","dnb_dom027:mem001 {Assets}","dnb_dom028:mem022 {Other loans}","dnb_dom030:mem253 {Inside EMU area}","dnb_dom031:mem002 {Renegotiations and pure new business}","dnb_dom032:mem002 {Transaction}","dnb_dom033:mem003 {> 1 million}","dnb_dom008:mem032 {Non-financial corporations}",null,null,null,"dnb_dom009:mem012 {<= 3 months}"]
["T9004HK2A","","","230","020","E41",null,"dnb_met:pi001 {Weighted percentage}",null,"dnb_dom003:EUR {Euro}",null,"dnb_dom026:mem001 {Annualised agreed rate}","dnb_dom027:mem001 {Assets}","dnb_dom028:mem022 {Other loans}","dnb_dom030:mem253 {Inside EMU area}","dnb_dom031:mem003 {Renegotiations}","dnb_dom032:mem002 {Transaction}","dnb_dom033:mem003 {> 1 million}","dnb_dom008:mem032 {Non-financial corporations}",null,null,null,"dnb_dom009:mem012 {<= 3 months}"]
["T9004HK2A","","","230","030","F41",null,"dnb_met:mi004 {Amount}",null,"dnb_dom003:EUR {Euro}",null,null,"dnb_dom027:mem001 {Assets}","dnb_dom028:mem022 {Other loans}","dnb_dom030:mem253 {Inside EMU area}","dnb_dom031:mem002 {Renegotiations and pure new business}","dnb_dom032:mem002 {Transaction}","dnb_dom033:mem003 {> 1 million}","dnb_dom008:mem032 {Non-financial corporations}",null,null,null,"dnb_dom009:mem012 {<= 3 months}"]
["T9004HK2A","","","230","040","G41",null,"dnb_met:mi004 {Amount}",null,"dnb_dom003:EUR {Euro}",null,null,"dnb_dom027:mem001 {Assets}","dnb_dom028:mem022 {Other loans}","dnb_dom030:mem253 {Inside EMU area}","dnb_dom031:mem003 {Renegotiations}","dnb_dom032:mem002 {Transaction}","dnb_dom033:mem003 {> 1 million}","dnb_dom008:mem032 {Non-financial corporations}",null,null,null,"dnb_dom009:mem012 {<= 3 months}"]
["T9004HK2A","","","240","010","D42",null,"dnb_met:pi001 {Weighted percentage}",null,"dnb_dom003:EUR {Euro}",null,"dnb_dom026:mem001 {Annualised agreed rate}","dnb_dom027:mem001 {Assets}","dnb_dom028:mem022 {Other loans}","dnb_dom030:mem253 {Inside EMU area}","dnb_dom031:mem002 {Renegotiations and pure new business}","dnb_dom032:mem002 {Transaction}","dnb_dom033:mem003 {> 1 million}","dnb_dom008:mem032 {Non-financial corporations}",null,null,null,"dnb_dom009:mem015 {> 3 months and <= 1 year}"]
["T9004HK2A","","","240","020","E42",null,"dnb_met:pi001 {Weighted percentage}",null,"dnb_dom003:EUR {Euro}",null,"dnb_dom026:mem001 {Annualised agreed rate}","dnb_dom027:mem001 {Assets}","dnb_dom028:mem022 {Other loans}","dnb_dom030:mem253 {Inside EMU area}","dnb_dom031:mem003 {Renegotiations}","dnb_dom032:mem002 {Transaction}","dnb_dom033:mem003 {> 1 million}","dnb_dom008:mem032 {Non-financial corporations}",null,null,null,"dnb_dom009:mem015 {> 3 months and <= 1 year}"]
["T9004HK2A","","","240","030","F42",null,"dnb_met:mi004 {Amount}",null,"dnb_dom003:EUR {Euro}",null,null,"dnb_dom027:mem001 {Assets}","dnb_dom028:mem022 {Other loans}","dnb_dom030:mem253 {Inside EMU area}","dnb_dom031:mem002 {Renegotiations and pure new business}","dnb_dom032:mem002 {Transaction}","dnb_dom033:mem003 {> 1 million}","dnb_dom008:mem032 {Non-financial corporations}",null,null,null,"dnb_dom009:mem015 {> 3 months and <= 1 year}"]
["T9004HK2A","","","240","040","G42",null,"dnb_met:mi004 {Amount}",null,"dnb_dom003:EUR {Euro}",null,null,"dnb_dom027:mem001 {Assets}","dnb_dom028:mem022 {Other loans}","dnb_dom030:mem253 {Inside EMU area}","dnb_dom031:mem003 {Renegotiations}","dnb_dom032:mem002 {Transaction}","dnb_dom033:mem003 {> 1 million}","dnb_dom008:mem032 {Non-financial corporations}",null,null,null,"dnb_dom009:mem015 {> 3 months and <= 1 year}"]
["T9004HK2A","","","250","010","D43",null,"dnb_met:pi001 {Weighted percentage}",null,"dnb_dom003:EUR {Euro}",null,"dnb_dom026:mem001 {Annualised agreed rate}","dnb_dom027:mem001 {Assets}","dnb_dom028:mem022 {Other loans}","dnb_dom030:mem253 {Inside EMU area}","dnb_dom031:mem002 {Renegotiations and pure new business}","dnb_dom032:mem002 {Transaction}","dnb_dom033:mem003 {> 1 million}","dnb_dom008:mem032 {Non-financial corporations}",null,null,null,"dnb_dom009:mem016 {> 1 year and <= 3 years}"]
["T9004HK2A","","","250","020","E43",null,"dnb_met:pi001 {Weighted percentage}",null,"dnb_dom003:EUR {Euro}",null,"dnb_dom026:mem001 {Annualised agreed rate}","dnb_dom027:mem001 {Assets}","dnb_dom028:mem022 {Other loans}","dnb_dom030:mem253 {Inside EMU area}","dnb_dom031:mem003 {Renegotiations}","dnb_dom032:mem002 {Transaction}","dnb_dom033:mem003 {> 1 million}","dnb_dom008:mem032 {Non-financial corporations}",null,null,null,"dnb_dom009:mem016 {> 1 year and <= 3 years}"]
["T9004HK2A","","","250","030","F43",null,"dnb_met:mi004 {Amount}",null,"dnb_dom003:EUR {Euro}",null,null,"dnb_dom027:mem001 {Assets}","dnb_dom028:mem022 {Other loans}","dnb_dom030:mem253 {Inside EMU area}","dnb_dom031:mem002 {Renegotiations and pure new business}","dnb_dom032:mem002 {Transaction}","dnb_dom033:mem003 {> 1 million}","dnb_dom008:mem032 {Non-financial corporations}",null,null,null,"dnb_dom009:mem016 {> 1 year and <= 3 years}"]
["T9004HK2A","","","250","040","G43",null,"dnb_met:mi004 {Amount}",null,"dnb_dom003:EUR {Euro}",null,null,"dnb_dom027:mem001 {Assets}","dnb_dom028:mem022 {Other loans}","dnb_dom030:mem253 {Inside EMU area}","dnb_dom031:mem003 {Renegotiations}","dnb_dom032:mem002 {Transaction}","dnb_dom033:mem003 {> 1 million}","dnb_dom008:mem032 {Non-financial corporations}",null,null,null,"dnb_dom009:mem016 {> 1 year and <= 3 years}"]
["T9004HK2A","","","260","010","D44",null,"dnb_met:pi001 {Weighted percentage}",null,"dnb_dom003:EUR {Euro}",null,"dnb_dom026:mem001 {Annualised agreed rate}","dnb_dom027:mem001 {Assets}","dnb_dom028:mem022 {Other loans}","dnb_dom030:mem253 {Inside EMU area}","dnb_dom031:mem002 {Renegotiations and pure new business}","dnb_dom032:mem002 {Transaction}","dnb_dom033:mem003 {> 1 million}","dnb_dom008:mem032 {Non-financial corporations}",null,null,null,"dnb_dom009:mem017 {> 3 years and <= 5 years}"]
["T9004HK2A","","","260","020","E44",null,"dnb_met:pi001 {Weighted percentage}",null,"dnb_dom003:EUR {Euro}",null,"dnb_dom026:mem001 {Annualised agreed rate}","dnb_dom027:mem001 {Assets}","dnb_dom028:mem022 {Other loans}","dnb_dom030:mem253 {Inside EMU area}","dnb_dom031:mem003 {Renegotiations}","dnb_dom032:mem002 {Transaction}","dnb_dom033:mem003 {> 1 million}","dnb_dom008:mem032 {Non-financial corporations}",null,null,null,"dnb_dom009:mem017 {> 3 years and <= 5 years}"]
["T9004HK2A","","","260","030","F44",null,"dnb_met:mi004 {Amount}",null,"dnb_dom003:EUR {Euro}",null,null,"dnb_dom027:mem001 {Assets}","dnb_dom028:mem022 {Other loans}","dnb_dom030:mem253 {Inside EMU area}","dnb_dom031:mem002 {Renegotiations and pure new business}","dnb_dom032:mem002 {Transaction}","dnb_dom033:mem003 {> 1 million}","dnb_dom008:mem032 {Non-financial corporations}",null,null,null,"dnb_dom009:mem017 {> 3 years and <= 5 years}"]
["T9004HK2A","","","260","040","G44",null,"dnb_met:mi004 {Amount}",null,"dnb_dom003:EUR {Euro}",null,null,"dnb_dom027:mem001 {Assets}","dnb_dom028:mem022 {Other loans}","dnb_dom030:mem253 {Inside EMU area}","dnb_dom031:mem003 {Renegotiations}","dnb_dom032:mem002 {Transaction}","dnb_dom033:mem003 {> 1 million}","dnb_dom008:mem032 {Non-financial corporations}",null,null,null,"dnb_dom009:mem017 {> 3 years and <= 5 years}"]
["T9004HK2A","","","270","010","D45",null,"dnb_met:pi001 {Weighted percentage}",null,"dnb_dom003:EUR {Euro}",null,"dnb_dom026:mem001 {Annualised agreed rate}","dnb_dom027:mem001 {Assets}","dnb_dom028:mem022 {Other loans}","dnb_dom030:mem253 {Inside EMU area}","dnb_dom031:mem002 {Renegotiations and pure new business}","dnb_dom032:mem002 {Transaction}","dnb_dom033:mem003 {> 1 million}","dnb_dom008:mem032 {Non-financial corporations}",null,null,null,"dnb_dom009:mem018 {> 5 years and <= 10 years}"]
["T9004HK2A","","","270","020","E45",null,"dnb_met:pi001 {Weighted percentage}",null,"dnb_dom003:EUR {Euro}",null,"dnb_dom026:mem001 {Annualised agreed rate}","dnb_dom027:mem001 {Assets}","dnb_dom028:mem022 {Other loans}","dnb_dom030:mem253 {Inside EMU area}","dnb_dom031:mem003 {Renegotiations}","dnb_dom032:mem002 {Transaction}","dnb_dom033:mem003 {> 1 million}","dnb_dom008:mem032 {Non-financial corporations}",null,null,null,"dnb_dom009:mem018 {> 5 years and <= 10 years}"]
["T9004HK2A","","","270","030","F45",null,"dnb_met:mi004 {Amount}",null,"dnb_dom003:EUR {Euro}",null,null,"dnb_dom027:mem001 {Assets}","dnb_dom028:mem022 {Other loans}","dnb_dom030:mem253 {Inside EMU area}","dnb_dom031:mem002 {Renegotiations and pure new business}","dnb_dom032:mem002 {Transaction}","dnb_dom033:mem003 {> 1 million}","dnb_dom008:mem032 {Non-financial corporations}",null,null,null,"dnb_dom009:mem018 {> 5 years and <= 10 years}"]
["T9004HK2A","","","270","040","G45",null,"dnb_met:mi004 {Amount}",null,"dnb_dom003:EUR {Euro}",null,null,"dnb_dom027:mem001 {Assets}","dnb_dom028:mem022 {Other loans}","dnb_dom030:mem253 {Inside EMU area}","dnb_dom031:mem003 {Renegotiations}","dnb_dom032:mem002 {Transaction}","dnb_dom033:mem003 {> 1 million}","dnb_dom008:mem032 {Non-financial corporations}",null,null,null,"dnb_dom009:mem018 {> 5 years and <= 10 years}"]
["T9004HK2A","","","280","010","D46",null,"dnb_met:pi001 {Weighted percentage}",null,"dnb_dom003:EUR {Euro}",null,"dnb_dom026:mem001 {Annualised agreed rate}","dnb_dom027:mem001 {Assets}","dnb_dom028:mem022 {Other loans}","dnb_dom030:mem253 {Inside EMU area}","dnb_dom031:mem002 {Renegotiations and pure new business}","dnb_dom032:mem002 {Transaction}","dnb_dom033:mem003 {> 1 million}","dnb_dom008:mem032 {Non-financial corporations}",null,null,null,"dnb_dom009:mem019 {> 10 years}"]
["T9004HK2A","","","280","020","E46",null,"dnb_met:pi001 {Weighted percentage}",null,"dnb_dom003:EUR {Euro}",null,"dnb_dom026:mem001 {Annualised agreed rate}","dnb_dom027:mem001 {Assets}","dnb_dom028:mem022 {Other loans}","dnb_dom030:mem253 {Inside EMU area}","dnb_dom031:mem003 {Renegotiations}","dnb_dom032:mem002 {Transaction}","dnb_dom033:mem003 {> 1 million}","dnb_dom008:mem032 {Non-financial corporations}",null,null,null,"dnb_dom009:mem019 {> 10 years}"]
["T9004HK2A","","","280","030","F46",null,"dnb_met:mi004 {Amount}",null,"dnb_dom003:EUR {Euro}",null,null,"dnb_dom027:mem001 {Assets}","dnb_dom028:mem022 {Other loans}","dnb_dom030:mem253 {Inside EMU area}","dnb_dom031:mem002 {Renegotiations and pure new business}","dnb_dom032:mem002 {Transaction}","dnb_dom033:mem003 {> 1 million}","dnb_dom008:mem032 {Non-financial corporations}",null,null,null,"dnb_dom009:mem019 {> 10 years}"]
["T9004HK2A","","","280","040","G46",null,"dnb_met:mi004 {Amount}",null,"dnb_dom003:EUR {Euro}",null,null,"dnb_dom027:mem001 {Assets}","dnb_dom028:mem022 {Other loans}","dnb_dom030:mem253 {Inside EMU area}","dnb_dom031:mem003 {Renegotiations}","dnb_dom032:mem002 {Transaction}","dnb_dom033:mem003 {> 1 million}","dnb_dom008:mem032 {Non-financial corporations}",null,null,null,"dnb_dom009:mem019 {> 10 years}"]
["T9004HK2A","","","290","010","D48",null,"dnb_met:pi001 {Weighted percentage}",null,"dnb_dom003:EUR {Euro}",null,"dnb_dom026:mem001 {Annualised agreed rate}","dnb_dom027:mem001 {Assets}","dnb_dom028:mem022 {Other loans}","dnb_dom030:mem253 {Inside EMU area}","dnb_dom031:mem002 {Renegotiations and pure new business}","dnb_dom032:mem002 {Transaction}","dnb_dom033:mem003 {> 1 million}","dnb_dom008:mem032 {Non-financial corporations}","dnb_dom009:mem006 {<= 1 year}"]
["T9004HK2A","","","290","030","F48",null,"dnb_met:mi004 {Amount}",null,"dnb_dom003:EUR {Euro}",null,null,"dnb_dom027:mem001 {Assets}","dnb_dom028:mem022 {Other loans}","dnb_dom030:mem253 {Inside EMU area}","dnb_dom031:mem002 {Renegotiations and pure new business}","dnb_dom032:mem002 {Transaction}","dnb_dom033:mem003 {> 1 million}","dnb_dom008:mem032 {Non-financial corporations}","dnb_dom009:mem006 {<= 1 year}"]
["T9004HK2A","","","300","010","D49",null,"dnb_met:pi001 {Weighted percentage}",null,"dnb_dom003:EUR {Euro}",null,"dnb_dom026:mem001 {Annualised agreed rate}","dnb_dom027:mem001 {Assets}","dnb_dom028:mem022 {Other loans}","dnb_dom030:mem253 {Inside EMU area}","dnb_dom031:mem002 {Renegotiations and pure new business}","dnb_dom032:mem002 {Transaction}","dnb_dom033:mem003 {> 1 million}","dnb_dom008:mem032 {Non-financial corporations}","dnb_dom009:mem004 {> 1 year}"]
["T9004HK2A","","","300","030","F49",null,"dnb_met:mi004 {Amount}",null,"dnb_dom003:EUR {Euro}",null,null,"dnb_dom027:mem001 {Assets}","dnb_dom028:mem022 {Other loans}","dnb_dom030:mem253 {Inside EMU area}","dnb_dom031:mem002 {Renegotiations and pure new business}","dnb_dom032:mem002 {Transaction}","dnb_dom033:mem003 {> 1 million}","dnb_dom008:mem032 {Non-financial corporations}","dnb_dom009:mem004 {> 1 year}"]
["T9004HK2A","","","310","010","D50",null,"dnb_met:pi001 {Weighted percentage}",null,"dnb_dom003:EUR {Euro}",null,"dnb_dom026:mem001 {Annualised agreed rate}","dnb_dom027:mem001 {Assets}","dnb_dom028:mem022 {Other loans}","dnb_dom030:mem253 {Inside EMU area}","dnb_dom031:mem002 {Renegotiations and pure new business}","dnb_dom032:mem002 {Transaction}","dnb_dom033:mem003 {> 1 million}","dnb_dom008:mem032 {Non-financial corporations}","dnb_dom009:mem004 {> 1 year}",null,null,"dnb_dom009:mem006 {<= 1 year}"]
["T9004HK2A","","","310","030","F50",null,"dnb_met:mi004 {Amount}",null,"dnb_dom003:EUR {Euro}",null,null,"dnb_dom027:mem001 {Assets}","dnb_dom028:mem022 {Other loans}","dnb_dom030:mem253 {Inside EMU area}","dnb_dom031:mem002 {Renegotiations and pure new business}","dnb_dom032:mem002 {Transaction}","dnb_dom033:mem003 {> 1 million}","dnb_dom008:mem032 {Non-financial corporations}","dnb_dom009:mem004 {> 1 year}",null,null,"dnb_dom009:mem006 {<= 1 year}"]
["T9004HK2A","","","320","010","D51",null,"dnb_met:pi001 {Weighted percentage}",null,"dnb_dom003:EUR {Euro}",null,"dnb_dom026:mem001 {Annualised agreed rate}","dnb_dom027:mem001 {Assets}","dnb_dom028:mem022 {Other loans}","dnb_dom030:mem253 {Inside EMU area}","dnb_dom031:mem002 {Renegotiations and pure new business}","dnb_dom032:mem002 {Transaction}","dnb_dom033:mem003 {> 1 million}","dnb_dom008:mem032 {Non-financial corporations}","dnb_dom009:mem004 {> 1 year}",null,null,"dnb_dom009:mem007 {> 1 year and <= 5 years}"]
["T9004HK2A","","","320","030","F51",null,"dnb_met:mi004 {Amount}",null,"dnb_dom003:EUR {Euro}",null,null,"dnb_dom027:mem001 {Assets}","dnb_dom028:mem022 {Other loans}","dnb_dom030:mem253 {Inside EMU area}","dnb_dom031:mem002 {Renegotiations and pure new business}","dnb_dom032:mem002 {Transaction}","dnb_dom033:mem003 {> 1 million}","dnb_dom008:mem032 {Non-financial corporations}","dnb_dom009:mem004 {> 1 year}",null,null,"dnb_dom009:mem007 {> 1 year and <= 5 years}"]
["T9004HK2A","","","330","010","D52",null,"dnb_met:pi001 {Weighted percentage}",null,"dnb_dom003:EUR {Euro}",null,"dnb_dom026:mem001 {Annualised agreed rate}","dnb_dom027:mem001 {Assets}","dnb_dom028:mem022 {Other loans}","dnb_dom030:mem253 {Inside EMU area}","dnb_dom031:mem002 {Renegotiations and pure new business}","dnb_dom032:mem002 {Transaction}","dnb_dom033:mem003 {> 1 million}","dnb_dom008:mem032 {Non-financial corporations}","dnb_dom009:mem004 {> 1 year}",null,null,"dnb_dom009:mem008 {> 5 years}"]
["T9004HK2A","","","330","030","F52",null,"dnb_met:mi004 {Amount}",null,"dnb_dom003:EUR {Euro}",null,null,"dnb_dom027:mem001 {Assets}","dnb_dom028:mem022 {Other loans}","dnb_dom030:mem253 {Inside EMU area}","dnb_dom031:mem002 {Renegotiations and pure new business}","dnb_dom032:mem002 {Transaction}","dnb_dom033:mem003 {> 1 million}","dnb_dom008:mem032 {Non-financial corporations}","dnb_dom009:mem004 {> 1 year}",null,null,"dnb_dom009:mem008 {> 5 years}"]
["T9004HK2A","","","340","010","D57",null,"dnb_met:pi001 {Weighted percentage}",null,"dnb_dom003:EUR {Euro}",null,"dnb_dom026:mem001 {Annualised agreed rate}","dnb_dom027:mem002 {Liabilities}","dnb_dom028:mem045 {Deposits with agreed maturity}","dnb_dom030:mem253 {Inside EMU area}","dnb_dom031:mem002 {Renegotiations and pure new business}","dnb_dom032:mem002 {Transaction}",null,"dnb_dom008:mem032 {Non-financial corporations}","dnb_dom009:mem006 {<= 1 year}"]
["T9004HK2A","","","340","030","F57",null,"dnb_met:mi004 {Amount}",null,"dnb_dom003:EUR {Euro}",null,null,"dnb_dom027:mem002 {Liabilities}","dnb_dom028:mem045 {Deposits with agreed maturity}","dnb_dom030:mem253 {Inside EMU area}","dnb_dom031:mem002 {Renegotiations and pure new business}","dnb_dom032:mem002 {Transaction}",null,"dnb_dom008:mem032 {Non-financial corporations}","dnb_dom009:mem006 {<= 1 year}"]
["T9004HK2A","","","350","010","D58",null,"dnb_met:pi001 {Weighted percentage}",null,"dnb_dom003:EUR {Euro}",null,"dnb_dom026:mem001 {Annualised agreed rate}","dnb_dom027:mem002 {Liabilities}","dnb_dom028:mem045 {Deposits with agreed maturity}","dnb_dom030:mem253 {Inside EMU area}","dnb_dom031:mem002 {Renegotiations and pure new business}","dnb_dom032:mem002 {Transaction}",null,"dnb_dom008:mem032 {Non-financial corporations}","dnb_dom009:mem010 {> 1 year and <= 2 years}"]
["T9004HK2A","","","350","030","F58",null,"dnb_met:mi004 {Amount}",null,"dnb_dom003:EUR {Euro}",null,null,"dnb_dom027:mem002 {Liabilities}","dnb_dom028:mem045 {Deposits with agreed maturity}","dnb_dom030:mem253 {Inside EMU area}","dnb_dom031:mem002 {Renegotiations and pure new business}","dnb_dom032:mem002 {Transaction}",null,"dnb_dom008:mem032 {Non-financial corporations}","dnb_dom009:mem010 {> 1 year and <= 2 years}"]
["T9004HK2A","","","360","010","D59",null,"dnb_met:pi001 {Weighted percentage}",null,"dnb_dom003:EUR {Euro}",null,"dnb_dom026:mem001 {Annualised agreed rate}","dnb_dom027:mem002 {Liabilities}","dnb_dom028:mem045 {Deposits with agreed maturity}","dnb_dom030:mem253 {Inside EMU area}","dnb_dom031:mem002 {Renegotiations and pure new business}","dnb_dom032:mem002 {Transaction}",null,"dnb_dom008:mem032 {Non-financial corporations}","dnb_dom009:mem005 {> 2 years}"]
["T9004HK2A","","","360","030","F59",null,"dnb_met:mi004 {Amount}",null,"dnb_dom003:EUR {Euro}",null,null,"dnb_dom027:mem002 {Liabilities}","dnb_dom028:mem045 {Deposits with agreed maturity}","dnb_dom030:mem253 {Inside EMU area}","dnb_dom031:mem002 {Renegotiations and pure new business}","dnb_dom032:mem002 {Transaction}",null,"dnb_dom008:mem032 {Non-financial corporations}","dnb_dom009:mem005 {> 2 years}"]
["T9004HK2A","","","370","010","D61",null,"dnb_met:pi001 {Weighted percentage}",null,"dnb_dom003:EUR {Euro}",null,"dnb_dom026:mem001 {Annualised agreed rate}","dnb_dom027:mem002 {Liabilities}","dnb_dom028:mem047 {Repos liabilities}","dnb_dom030:mem253 {Inside EMU area}","dnb_dom031:mem002 {Renegotiations and pure new business}","dnb_dom032:mem002 {Transaction}",null,"dnb_dom008:mem032 {Non-financial corporations}"]
["T9004HK2A","","","370","030","F61",null,"dnb_met:mi004 {Amount}",null,"dnb_dom003:EUR {Euro}",null,null,"dnb_dom027:mem002 {Liabilities}","dnb_dom028:mem047 {Repos liabilities}","dnb_dom030:mem253 {Inside EMU area}","dnb_dom031:mem002 {Renegotiations and pure new business}","dnb_dom032:mem002 {Transaction}",null,"dnb_dom008:mem032 {Non-financial corporations}"]
["T9004HK2A","","","380","010","D63",null,"dnb_met:pi001 {Weighted percentage}",null,"dnb_dom003:EUR {Euro}",null,"dnb_dom026:mem001 {Annualised agreed rate}","dnb_dom027:mem002 {Liabilities}","dnb_dom028:mem049 {Long term loans received}","dnb_dom030:mem253 {Inside EMU area}","dnb_dom031:mem002 {Renegotiations and pure new business}","dnb_dom032:mem002 {Transaction}",null,"dnb_dom008:mem032 {Non-financial corporations}","dnb_dom009:mem005 {> 2 years}"]
["T9004HK2A","","","380","030","F63",null,"dnb_met:mi004 {Amount}",null,"dnb_dom003:EUR {Euro}",null,null,"dnb_dom027:mem002 {Liabilities}","dnb_dom028:mem049 {Long term loans received}","dnb_dom030:mem253 {Inside EMU area}","dnb_dom031:mem002 {Renegotiations and pure new business}","dnb_dom032:mem002 {Transaction}",null,"dnb_dom008:mem032 {Non-financial corporations}","dnb_dom009:mem005 {> 2 years}"]
["T9004HK2B","","","010","010","D13",null,"dnb_met:pi001 {Weighted percentage}",null,"dnb_dom003:EUR {Euro}",null,"dnb_dom026:mem001 {Annualised agreed rate}","dnb_dom027:mem001 {Assets}","dnb_dom028:mem015 {Loans for house purchases}","dnb_dom030:mem253 {Inside EMU area}","dnb_dom031:mem002 {Renegotiations and pure new business}","dnb_dom032:mem002 {Transaction}",null,"dnb_dom008:mem035 {Households}",null,null,null,"dnb_dom009:mem006 {<= 1 year}"]
["T9004HK2B","","","010","020","E13",null,"dnb_met:pi001 {Weighted percentage}",null,"dnb_dom003:EUR {Euro}",null,"dnb_dom026:mem001 {Annualised agreed rate}","dnb_dom027:mem001 {Assets}","dnb_dom028:mem015 {Loans for house purchases}","dnb_dom030:mem253 {Inside EMU area}","dnb_dom031:mem003 {Renegotiations}","dnb_dom032:mem002 {Transaction}",null,"dnb_dom008:mem035 {Households}",null,null,null,"dnb_dom009:mem006 {<= 1 year}"]
["T9004HK2B","","","010","030","F13",null,"dnb_met:mi004 {Amount}",null,"dnb_dom003:EUR {Euro}",null,"dnb_dom026:mem001 {Annualised agreed rate}","dnb_dom027:mem001 {Assets}","dnb_dom028:mem015 {Loans for house purchases}","dnb_dom030:mem253 {Inside EMU area}","dnb_dom031:mem002 {Renegotiations and pure new business}","dnb_dom032:mem002 {Transaction}",null,"dnb_dom008:mem035 {Households}",null,null,null,"dnb_dom009:mem006 {<= 1 year}"]
["T9004HK2B","","","010","040","G13",null,"dnb_met:mi004 {Amount}",null,"dnb_dom003:EUR {Euro}",null,"dnb_dom026:mem001 {Annualised agreed rate}","dnb_dom027:mem001 {Assets}","dnb_dom028:mem015 {Loans for house purchases}","dnb_dom030:mem253 {Inside EMU area}","dnb_dom031:mem003 {Renegotiations}","dnb_dom032:mem002 {Transaction}",null,"dnb_dom008:mem035 {Households}",null,null,null,"dnb_dom009:mem006 {<= 1 year}"]
["T9004HK2B","","","020","010","D14",null,"dnb_met:pi001 {Weighted percentage}",null,"dnb_dom003:EUR {Euro}",null,"dnb_dom026:mem001 {Annualised agreed rate}","dnb_dom027:mem001 {Assets}","dnb_dom028:mem015 {Loans for house purchases}","dnb_dom030:mem253 {Inside EMU area}","dnb_dom031:mem002 {Renegotiations and pure new business}","dnb_dom032:mem002 {Transaction}",null,"dnb_dom008:mem035 {Households}",null,null,null,"dnb_dom009:mem007 {> 1 year and <= 5 years}"]
["T9004HK2B","","","020","020","E14",null,"dnb_met:pi001 {Weighted percentage}",null,"dnb_dom003:EUR {Euro}",null,"dnb_dom026:mem001 {Annualised agreed rate}","dnb_dom027:mem001 {Assets}","dnb_dom028:mem015 {Loans for house purchases}","dnb_dom030:mem253 {Inside EMU area}","dnb_dom031:mem003 {Renegotiations}","dnb_dom032:mem002 {Transaction}",null,"dnb_dom008:mem035 {Households}",null,null,null,"dnb_dom009:mem007 {> 1 year and <= 5 years}"]
["T9004HK2B","","","020","030","F14",null,"dnb_met:mi004 {Amount}",null,"dnb_dom003:EUR {Euro}",null,"dnb_dom026:mem001 {Annualised agreed rate}","dnb_dom027:mem001 {Assets}","dnb_dom028:mem015 {Loans for house purchases}","dnb_dom030:mem253 {Inside EMU area}","dnb_dom031:mem002 {Renegotiations and pure new business}","dnb_dom032:mem002 {Transaction}",null,"dnb_dom008:mem035 {Households}",null,null,null,"dnb_dom009:mem007 {> 1 year and <= 5 years}"]
["T9004HK2B","","","020","040","G14",null,"dnb_met:mi004 {Amount}",null,"dnb_dom003:EUR {Euro}",null,"dnb_dom026:mem001 {Annualised agreed rate}","dnb_dom027:mem001 {Assets}","dnb_dom028:mem015 {Loans for house purchases}","dnb_dom030:mem253 {Inside EMU area}","dnb_dom031:mem003 {Renegotiations}","dnb_dom032:mem002 {Transaction}",null,"dnb_dom008:mem035 {Households}",null,null,null,"dnb_dom009:mem007 {> 1 year and <= 5 years}"]
["T9004HK2B","","","030","010","D15",null,"dnb_met:pi001 {Weighted percentage}",null,"dnb_dom003:EUR {Euro}",null,"dnb_dom026:mem001 {Annualised agreed rate}","dnb_dom027:mem001 {Assets}","dnb_dom028:mem015 {Loans for house purchases}","dnb_dom030:mem253 {Inside EMU area}","dnb_dom031:mem002 {Renegotiations and pure new business}","dnb_dom032:mem002 {Transaction}",null,"dnb_dom008:mem035 {Households}",null,null,null,"dnb_dom009:mem018 {> 5 years and <= 10 years}"]
["T9004HK2B","","","030","020","E15",null,"dnb_met:pi001 {Weighted percentage}",null,"dnb_dom003:EUR {Euro}",null,"dnb_dom026:mem001 {Annualised agreed rate}","dnb_dom027:mem001 {Assets}","dnb_dom028:mem015 {Loans for house purchases}","dnb_dom030:mem253 {Inside EMU area}","dnb_dom031:mem003 {Renegotiations}","dnb_dom032:mem002 {Transaction}",null,"dnb_dom008:mem035 {Households}",null,null,null,"dnb_dom009:mem018 {> 5 years and <= 10 years}"]
["T9004HK2B","","","030","030","F15",null,"dnb_met:mi004 {Amount}",null,"dnb_dom003:EUR {Euro}",null,"dnb_dom026:mem001 {Annualised agreed rate}","dnb_dom027:mem001 {Assets}","dnb_dom028:mem015 {Loans for house purchases}","dnb_dom030:mem253 {Inside EMU area}","dnb_dom031:mem002 {Renegotiations and pure new business}","dnb_dom032:mem002 {Transaction}",null,"dnb_dom008:mem035 {Households}",null,null,null,"dnb_dom009:mem018 {> 5 years and <= 10 years}"]
["T9004HK2B","","","030","040","G15",null,"dnb_met:mi004 {Amount}",null,"dnb_dom003:EUR {Euro}",null,"dnb_dom026:mem001 {Annualised agreed rate}","dnb_dom027:mem001 {Assets}","dnb_dom028:mem015 {Loans for house purchases}","dnb_dom030:mem253 {Inside EMU area}","dnb_dom031:mem003 {Renegotiations}","dnb_dom032:mem002 {Transaction}",null,"dnb_dom008:mem035 {Households}",null,null,null,"dnb_dom009:mem018 {> 5 years and <= 10 years}"]
["T9004HK2B","","","040","010","D16",null,"dnb_met:pi001 {Weighted percentage}",null,"dnb_dom003:EUR {Euro}",null,"dnb_dom026:mem001 {Annualised agreed rate}","dnb_dom027:mem001 {Assets}","dnb_dom028:mem015 {Loans for house purchases}","dnb_dom030:mem253 {Inside EMU area}","dnb_dom031:mem002 {Renegotiations and pure new business}","dnb_dom032:mem002 {Transaction}",null,"dnb_dom008:mem035 {Households}",null,null,null,"dnb_dom009:mem019 {> 10 years}"]
["T9004HK2B","","","040","020","E16",null,"dnb_met:pi001 {Weighted percentage}",null,"dnb_dom003:EUR {Euro}",null,"dnb_dom026:mem001 {Annualised agreed rate}","dnb_dom027:mem001 {Assets}","dnb_dom028:mem015 {Loans for house purchases}","dnb_dom030:mem253 {Inside EMU area}","dnb_dom031:mem003 {Renegotiations}","dnb_dom032:mem002 {Transaction}",null,"dnb_dom008:mem035 {Households}",null,null,null,"dnb_dom009:mem019 {> 10 years}"]
["T9004HK2B","","","040","030","F16",null,"dnb_met:mi004 {Amount}",null,"dnb_dom003:EUR {Euro}",null,"dnb_dom026:mem001 {Annualised agreed rate}","dnb_dom027:mem001 {Assets}","dnb_dom028:mem015 {Loans for house purchases}","dnb_dom030:mem253 {Inside EMU area}","dnb_dom031:mem002 {Renegotiations and pure new business}","dnb_dom032:mem002 {Transaction}",null,"dnb_dom008:mem035 {Households}",null,null,null,"dnb_dom009:mem019 {> 10 years}"]
["T9004HK2B","","","040","040","G16",null,"dnb_met:mi004 {Amount}",null,"dnb_dom003:EUR {Euro}",null,"dnb_dom026:mem001 {Annualised agreed rate}","dnb_dom027:mem001 {Assets}","dnb_dom028:mem015 {Loans for house purchases}","dnb_dom030:mem253 {Inside EMU area}","dnb_dom031:mem003 {Renegotiations}","dnb_dom032:mem002 {Transaction}",null,"dnb_dom008:mem035 {Households}",null,null,null,"dnb_dom009:mem019 {> 10 years}"]
["T9004HK2B","","","050","010","D18",null,"dnb_met:pi001 {Weighted percentage}",null,"dnb_dom003:EUR {Euro}",null,"dnb_dom026:mem002 {Annual percentage rate of charge}","dnb_dom027:mem001 {Assets}","dnb_dom028:mem015 {Loans for house purchases}","dnb_dom030:mem253 {Inside EMU area}","dnb_dom031:mem002 {Renegotiations and pure new business}","dnb_dom032:mem002 {Transaction}",null,"dnb_dom008:mem035 {Households}"]
["T9004HK2B","","","050","030","F18",null,"dnb_met:mi004 {Amount}",null,"dnb_dom003:EUR {Euro}",null,"dnb_dom026:mem002 {Annual percentage rate of charge}","dnb_dom027:mem001 {Assets}","dnb_dom028:mem015 {Loans for house purchases}","dnb_dom030:mem253 {Inside EMU area}","dnb_dom031:mem002 {Renegotiations and pure new business}","dnb_dom032:mem002 {Transaction}",null,"dnb_dom008:mem035 {Households}"]
["T9004HK2B","","","060","010","D21",null,"dnb_met:pi001 {Weighted percentage}",null,"dnb_dom003:EUR {Euro}",null,"dnb_dom026:mem001 {Annualised agreed rate}","dnb_dom027:mem001 {Assets}","dnb_dom028:mem016 {Loans for consumption (personal)}","dnb_dom030:mem253 {Inside EMU area}","dnb_dom031:mem002 {Renegotiations and pure new business}","dnb_dom032:mem002 {Transaction}",null,"dnb_dom008:mem035 {Households}",null,null,null,"dnb_dom009:mem006 {<= 1 year}"]
["T9004HK2B","","","060","020","E21",null,"dnb_met:pi001 {Weighted percentage}",null,"dnb_dom003:EUR {Euro}",null,"dnb_dom026:mem001 {Annualised agreed rate}","dnb_dom027:mem001 {Assets}","dnb_dom028:mem016 {Loans for consumption (personal)}","dnb_dom030:mem253 {Inside EMU area}","dnb_dom031:mem003 {Renegotiations}","dnb_dom032:mem002 {Transaction}",null,"dnb_dom008:mem035 {Households}",null,null,null,"dnb_dom009:mem006 {<= 1 year}"]
["T9004HK2B","","","060","030","F21",null,"dnb_met:mi004 {Amount}",null,"dnb_dom003:EUR {Euro}",null,"dnb_dom026:mem001 {Annualised agreed rate}","dnb_dom027:mem001 {Assets}","dnb_dom028:mem016 {Loans for consumption (personal)}","dnb_dom030:mem253 {Inside EMU area}","dnb_dom031:mem002 {Renegotiations and pure new business}","dnb_dom032:mem002 {Transaction}",null,"dnb_dom008:mem035 {Households}",null,null,null,"dnb_dom009:mem006 {<= 1 year}"]
["T9004HK2B","","","060","040","G21",null,"dnb_met:mi004 {Amount}",null,"dnb_dom003:EUR {Euro}",null,"dnb_dom026:mem001 {Annualised agreed rate}","dnb_dom027:mem001 {Assets}","dnb_dom028:mem016 {Loans for consumption (personal)}","dnb_dom030:mem253 {Inside EMU area}","dnb_dom031:mem003 {Renegotiations}","dnb_dom032:mem002 {Transaction}",null,"dnb_dom008:mem035 {Households}",null,null,null,"dnb_dom009:mem006 {<= 1 year}"]
["T9004HK2B","","","070","010","D22",null,"dnb_met:pi001 {Weighted percentage}",null,"dnb_dom003:EUR {Euro}",null,"dnb_dom026:mem001 {Annualised agreed rate}","dnb_dom027:mem001 {Assets}","dnb_dom028:mem016 {Loans for consumption (personal)}","dnb_dom030:mem253 {Inside EMU area}","dnb_dom031:mem002 {Renegotiations and pure new business}","dnb_dom032:mem002 {Transaction}",null,"dnb_dom008:mem035 {Households}",null,null,null,"dnb_dom009:mem007 {> 1 year and <= 5 years}"]
["T9004HK2B","","","070","020","E22",null,"dnb_met:pi001 {Weighted percentage}",null,"dnb_dom003:EUR {Euro}",null,"dnb_dom026:mem001 {Annualised agreed rate}","dnb_dom027:mem001 {Assets}","dnb_dom028:mem016 {Loans for consumption (personal)}","dnb_dom030:mem253 {Inside EMU area}","dnb_dom031:mem003 {Renegotiations}","dnb_dom032:mem002 {Transaction}",null,"dnb_dom008:mem035 {Households}",null,null,null,"dnb_dom009:mem007 {> 1 year and <= 5 years}"]
["T9004HK2B","","","070","030","F22",null,"dnb_met:mi004 {Amount}",null,"dnb_dom003:EUR {Euro}",null,"dnb_dom026:mem001 {Annualised agreed rate}","dnb_dom027:mem001 {Assets}","dnb_dom028:mem016 {Loans for consumption (personal)}","dnb_dom030:mem253 {Inside EMU area}","dnb_dom031:mem002 {Renegotiations and pure new business}","dnb_dom032:mem002 {Transaction}",null,"dnb_dom008:mem035 {Households}",null,null,null,"dnb_dom009:mem007 {> 1 year and <= 5 years}"]
["T9004HK2B","","","070","040","G22",null,"dnb_met:mi004 {Amount}",null,"dnb_dom003:EUR {Euro}",null,"dnb_dom026:mem001 {Annualised agreed rate}","dnb_dom027:mem001 {Assets}","dnb_dom028:mem016 {Loans for consumption (personal)}","dnb_dom030:mem253 {Inside EMU area}","dnb_dom031:mem003 {Renegotiations}","dnb_dom032:mem002 {Transaction}",null,"dnb_dom008:mem035 {Households}",null,null,null,"dnb_dom009:mem007 {> 1 year and <= 5 years}"]
["T9004HK2B","","","080","010","D23",null,"dnb_met:pi001 {Weighted percentage}",null,"dnb_dom003:EUR {Euro}",null,"dnb_dom026:mem001 {Annualised agreed rate}","dnb_dom027:mem001 {Assets}","dnb_dom028:mem016 {Loans for consumption (personal)}","dnb_dom030:mem253 {Inside EMU area}","dnb_dom031:mem002 {Renegotiations and pure new business}","dnb_dom032:mem002 {Transaction}",null,"dnb_dom008:mem035 {Households}",null,null,null,"dnb_dom009:mem008 {> 5 years}"]
["T9004HK2B","","","080","020","E23",null,"dnb_met:pi001 {Weighted percentage}",null,"dnb_dom003:EUR {Euro}",null,"dnb_dom026:mem001 {Annualised agreed rate}","dnb_dom027:mem001 {Assets}","dnb_dom028:mem016 {Loans for consumption (personal)}","dnb_dom030:mem253 {Inside EMU area}","dnb_dom031:mem003 {Renegotiations}","dnb_dom032:mem002 {Transaction}",null,"dnb_dom008:mem035 {Households}",null,null,null,"dnb_dom009:mem008 {> 5 years}"]
["T9004HK2B","","","080","030","F23",null,"dnb_met:mi004 {Amount}",null,"dnb_dom003:EUR {Euro}",null,"dnb_dom026:mem001 {Annualised agreed rate}","dnb_dom027:mem001 {Assets}","dnb_dom028:mem016 {Loans for consumption (personal)}","dnb_dom030:mem253 {Inside EMU area}","dnb_dom031:mem002 {Renegotiations and pure new business}","dnb_dom032:mem002 {Transaction}",null,"dnb_dom008:mem035 {Households}",null,null,null,"dnb_dom009:mem008 {> 5 years}"]
["T9004HK2B","","","080","040","G23",null,"dnb_met:mi004 {Amount}",null,"dnb_dom003:EUR {Euro}",null,"dnb_dom026:mem001 {Annualised agreed rate}","dnb_dom027:mem001 {Assets}","dnb_dom028:mem016 {Loans for consumption (personal)}","dnb_dom030:mem253 {Inside EMU area}","dnb_dom031:mem003 {Renegotiations}","dnb_dom032:mem002 {Transaction}",null,"dnb_dom008:mem035 {Households}",null,null,null,"dnb_dom009:mem008 {> 5 years}"]
["T9004HK2B","","","090","010","D25",null,"dnb_met:pi001 {Weighted percentage}",null,"dnb_dom003:EUR {Euro}",null,"dnb_dom026:mem002 {Annual percentage rate of charge}","dnb_dom027:mem001 {Assets}","dnb_dom028:mem016 {Loans for consumption (personal)}","dnb_dom030:mem253 {Inside EMU area}","dnb_dom031:mem002 {Renegotiations and pure new business}","dnb_dom032:mem002 {Transaction}",null,"dnb_dom008:mem035 {Households}"]
["T9004HK2B","","","090","030","F25",null,"dnb_met:mi004 {Amount}",null,"dnb_dom003:EUR {Euro}",null,"dnb_dom026:mem002 {Annual percentage rate of charge}","dnb_dom027:mem001 {Assets}","dnb_dom028:mem016 {Loans for consumption (personal)}","dnb_dom030:mem253 {Inside EMU area}","dnb_dom031:mem002 {Renegotiations and pure new business}","dnb_dom032:mem002 {Transaction}",null,"dnb_dom008:mem035 {Households}"]
["T9004HK2B","","","100","010","D28",null,"dnb_met:pi001 {Weighted percentage}",null,"dnb_dom003:EUR {Euro}",null,"dnb_dom026:mem001 {Annualised agreed rate}","dnb_dom027:mem001 {Assets}","dnb_dom028:mem022 {Other loans}","dnb_dom030:mem253 {Inside EMU area}","dnb_dom031:mem002 {Renegotiations and pure new business}","dnb_dom032:mem002 {Transaction}",null,"dnb_dom008:mem035 {Households}",null,null,null,"dnb_dom009:mem006 {<= 1 year}"]
["T9004HK2B","","","100","020","E28",null,"dnb_met:pi001 {Weighted percentage}",null,"dnb_dom003:EUR {Euro}",null,"dnb_dom026:mem001 {Annualised agreed rate}","dnb_dom027:mem001 {Assets}","dnb_dom028:mem022 {Other loans}","dnb_dom030:mem253 {Inside EMU area}","dnb_dom031:mem003 {Renegotiations}","dnb_dom032:mem002 {Transaction}",null,"dnb_dom008:mem035 {Households}",null,null,null,"dnb_dom009:mem006 {<= 1 year}"]
["T9004HK2B","","","100","030","F28",null,"dnb_met:mi004 {Amount}",null,"dnb_dom003:EUR {Euro}",null,"dnb_dom026:mem001 {Annualised agreed rate}","dnb_dom027:mem001 {Assets}","dnb_dom028:mem022 {Other loans}","dnb_dom030:mem253 {Inside EMU area}","dnb_dom031:mem002 {Renegotiations and pure new business}","dnb_dom032:mem002 {Transaction}",null,"dnb_dom008:mem035 {Households}",null,null,null,"dnb_dom009:mem006 {<= 1 year}"]
["T9004HK2B","","","100","040","G28",null,"dnb_met:mi004 {Amount}",null,"dnb_dom003:EUR {Euro}",null,"dnb_dom026:mem001 {Annualised agreed rate}","dnb_dom027:mem001 {Assets}","dnb_dom028:mem022 {Other loans}","dnb_dom030:mem253 {Inside EMU area}","dnb_dom031:mem003 {Renegotiations}","dnb_dom032:mem002 {Transaction}",null,"dnb_dom008:mem035 {Households}",null,null,null,"dnb_dom009:mem006 {<= 1 year}"]
["T9004HK2B","","","110","010","D29",null,"dnb_met:pi001 {Weighted percentage}",null,"dnb_dom003:EUR {Euro}",null,"dnb_dom026:mem001 {Annualised agreed rate}","dnb_dom027:mem001 {Assets}","dnb_dom028:mem022 {Other loans}","dnb_dom030:mem253 {Inside EMU area}","dnb_dom031:mem002 {Renegotiations and pure new business}","dnb_dom032:mem002 {Transaction}",null,"dnb_dom008:mem035 {Households}",null,null,null,"dnb_dom009:mem007 {> 1 year and <= 5 years}"]
["T9004HK2B","","","110","020","E29",null,"dnb_met:pi001 {Weighted percentage}",null,"dnb_dom003:EUR {Euro}",null,"dnb_dom026:mem001 {Annualised agreed rate}","dnb_dom027:mem001 {Assets}","dnb_dom028:mem022 {Other loans}","dnb_dom030:mem253 {Inside EMU area}","dnb_dom031:mem003 {Renegotiations}","dnb_dom032:mem002 {Transaction}",null,"dnb_dom008:mem035 {Households}",null,null,null,"dnb_dom009:mem007 {> 1 year and <= 5 years}"]
["T9004HK2B","","","110","030","F29",null,"dnb_met:mi004 {Amount}",null,"dnb_dom003:EUR {Euro}",null,"dnb_dom026:mem001 {Annualised agreed rate}","dnb_dom027:mem001 {Assets}","dnb_dom028:mem022 {Other loans}","dnb_dom030:mem253 {Inside EMU area}","dnb_dom031:mem002 {Renegotiations and pure new business}","dnb_dom032:mem002 {Transaction}",null,"dnb_dom008:mem035 {Households}",null,null,null,"dnb_dom009:mem007 {> 1 year and <= 5 years}"]
["T9004HK2B","","","110","040","G29",null,"dnb_met:mi004 {Amount}",null,"dnb_dom003:EUR {Euro}",null,"dnb_dom026:mem001 {Annualised agreed rate}","dnb_dom027:mem001 {Assets}","dnb_dom028:mem022 {Other loans}","dnb_dom030:mem253 {Inside EMU area}","dnb_dom031:mem003 {Renegotiations}","dnb_dom032:mem002 {Transaction}",null,"dnb_dom008:mem035 {Households}",null,null,null,"dnb_dom009:mem007 {> 1 year and <= 5 years}"]
["T9004HK2B","","","120","010","D30",null,"dnb_met:pi001 {Weighted percentage}",null,"dnb_dom003:EUR {Euro}",null,"dnb_dom026:mem001 {Annualised agreed rate}","dnb_dom027:mem001 {Assets}","dnb_dom028:mem022 {Other loans}","dnb_dom030:mem253 {Inside EMU area}","dnb_dom031:mem002 {Renegotiations and pure new business}","dnb_dom032:mem002 {Transaction}",null,"dnb_dom008:mem035 {Households}",null,null,null,"dnb_dom009:mem008 {> 5 years}"]
["T9004HK2B","","","120","020","E30",null,"dnb_met:pi001 {Weighted percentage}",null,"dnb_dom003:EUR {Euro}",null,"dnb_dom026:mem001 {Annualised agreed rate}","dnb_dom027:mem001 {Assets}","dnb_dom028:mem022 {Other loans}","dnb_dom030:mem253 {Inside EMU area}","dnb_dom031:mem003 {Renegotiations}","dnb_dom032:mem002 {Transaction}",null,"dnb_dom008:mem035 {Households}",null,null,null,"dnb_dom009:mem008 {> 5 years}"]
["T9004HK2B","","","120","030","F30",null,"dnb_met:mi004 {Amount}",null,"dnb_dom003:EUR {Euro}",null,"dnb_dom026:mem001 {Annualised agreed rate}","dnb_dom027:mem001 {Assets}","dnb_dom028:mem022 {Other loans}","dnb_dom030:mem253 {Inside EMU area}","dnb_dom031:mem002 {Renegotiations and pure new business}","dnb_dom032:mem002 {Transaction}",null,"dnb_dom008:mem035 {Households}",null,null,null,"dnb_dom009:mem008 {> 5 years}"]
["T9004HK2B","","","120","040","G30",null,"dnb_met:mi004 {Amount}",null,"dnb_dom003:EUR {Euro}",null,"dnb_dom026:mem001 {Annualised agreed rate}","dnb_dom027:mem001 {Assets}","dnb_dom028:mem022 {Other loans}","dnb_dom030:mem253 {Inside EMU area}","dnb_dom031:mem003 {Renegotiations}","dnb_dom032:mem002 {Transaction}",null,"dnb_dom008:mem035 {Households}",null,null,null,"dnb_dom009:mem008 {> 5 years}"]
["T9004HK2B","","","130","010","D35",null,"dnb_met:pi001 {Weighted percentage}",null,"dnb_dom003:EUR {Euro}",null,"dnb_dom026:mem001 {Annualised agreed rate}","dnb_dom027:mem002 {Liabilities}","dnb_dom028:mem045 {Deposits with agreed maturity}","dnb_dom030:mem253 {Inside EMU area}","dnb_dom031:mem002 {Renegotiations and pure new business}","dnb_dom032:mem002 {Transaction}",null,"dnb_dom008:mem035 {Households}","dnb_dom009:mem006 {<= 1 year}"]
["T9004HK2B","","","130","030","F35",null,"dnb_met:mi004 {Amount}",null,"dnb_dom003:EUR {Euro}",null,"dnb_dom026:mem001 {Annualised agreed rate}","dnb_dom027:mem002 {Liabilities}","dnb_dom028:mem045 {Deposits with agreed maturity}","dnb_dom030:mem253 {Inside EMU area}","dnb_dom031:mem002 {Renegotiations and pure new business}","dnb_dom032:mem002 {Transaction}",null,"dnb_dom008:mem035 {Households}","dnb_dom009:mem006 {<= 1 year}"]
["T9004HK2B","","","140","010","D36",null,"dnb_met:pi001 {Weighted percentage}",null,"dnb_dom003:EUR {Euro}",null,"dnb_dom026:mem001 {Annualised agreed rate}","dnb_dom027:mem002 {Liabilities}","dnb_dom028:mem045 {Deposits with agreed maturity}","dnb_dom030:mem253 {Inside EMU area}","dnb_dom031:mem002 {Renegotiations and pure new business}","dnb_dom032:mem002 {Transaction}",null,"dnb_dom008:mem035 {Households}","dnb_dom009:mem010 {> 1 year and <= 2 years}"]
["T9004HK2B","","","140","030","F36",null,"dnb_met:mi004 {Amount}",null,"dnb_dom003:EUR {Euro}",null,"dnb_dom026:mem001 {Annualised agreed rate}","dnb_dom027:mem002 {Liabilities}","dnb_dom028:mem045 {Deposits with agreed maturity}","dnb_dom030:mem253 {Inside EMU area}","dnb_dom031:mem002 {Renegotiations and pure new business}","dnb_dom032:mem002 {Transaction}",null,"dnb_dom008:mem035 {Households}","dnb_dom009:mem010 {> 1 year and <= 2 years}"]
["T9004HK2B","","","150","010","D37",null,"dnb_met:pi001 {Weighted percentage}",null,"dnb_dom003:EUR {Euro}",null,"dnb_dom026:mem001 {Annualised agreed rate}","dnb_dom027:mem002 {Liabilities}","dnb_dom028:mem045 {Deposits with agreed maturity}","dnb_dom030:mem253 {Inside EMU area}","dnb_dom031:mem002 {Renegotiations and pure new business}","dnb_dom032:mem002 {Transaction}",null,"dnb_dom008:mem035 {Households}","dnb_dom009:mem005 {> 2 years}"]
["T9004HK2B","","","150","030","F37",null,"dnb_met:mi004 {Amount}",null,"dnb_dom003:EUR {Euro}",null,"dnb_dom026:mem001 {Annualised agreed rate}","dnb_dom027:mem002 {Liabilities}","dnb_dom028:mem045 {Deposits with agreed maturity}","dnb_dom030:mem253 {Inside EMU area}","dnb_dom031:mem002 {Renegotiations and pure new business}","dnb_dom032:mem002 {Transaction}",null,"dnb_dom008:mem035 {Households}","dnb_dom009:mem005 {> 2 years}"]
["T9004HK2B","","","160","010","D39",null,"dnb_met:pi001 {Weighted percentage}",null,"dnb_dom003:EUR {Euro}",null,"dnb_dom026:mem001 {Annualised agreed rate}","dnb_dom027:mem002 {Liabilities}","dnb_dom028:mem047 {Repos liabilities}","dnb_dom030:mem253 {Inside EMU area}","dnb_dom031:mem002 {Renegotiations and pure new business}","dnb_dom032:mem002 {Transaction}",null,"dnb_dom008:mem035 {Households}"]
["T9004HK2B","","","160","030","F39",null,"dnb_met:mi004 {Amount}",null,"dnb_dom003:EUR {Euro}",null,"dnb_dom026:mem001 {Annualised agreed rate}","dnb_dom027:mem002 {Liabilities}","dnb_dom028:mem047 {Repos liabilities}","dnb_dom030:mem253 {Inside EMU area}","dnb_dom031:mem002 {Renegotiations and pure new business}","dnb_dom032:mem002 {Transaction}",null,"dnb_dom008:mem035 {Households}"]
["T9004HK2B","","","170","010","D41",null,"dnb_met:pi001 {Weighted percentage}",null,"dnb_dom003:EUR {Euro}",null,"dnb_dom026:mem001 {Annualised agreed rate}","dnb_dom027:mem002 {Liabilities}","dnb_dom028:mem049 {Long term loans received}","dnb_dom030:mem253 {Inside EMU area}","dnb_dom031:mem002 {Renegotiations and pure new business}","dnb_dom032:mem002 {Transaction}",null,"dnb_dom008:mem035 {Households}","dnb_dom009:mem005 {> 2 years}"]
["T9004HK2B","","","170","030","F41",null,"dnb_met:mi004 {Amount}",null,"dnb_dom003:EUR {Euro}",null,"dnb_dom026:mem001 {Annualised agreed rate}","dnb_dom027:mem002 {Liabilities}","dnb_dom028:mem049 {Long term loans received}","dnb_dom030:mem253 {Inside EMU area}","dnb_dom031:mem002 {Renegotiations and pure new business}","dnb_dom032:mem002 {Transaction}",null,"dnb_dom008:mem035 {Households}","dnb_dom009:mem005 {> 2 years}"]
["T9004HK3A","","","010","010","D12",null,"dnb_met:pi001 {Weighted percentage}",null,"dnb_dom003:EUR {Euro}","dnb_dom025:mem001 {>= 100%}","dnb_dom026:mem001 {Annualised agreed rate}","dnb_dom027:mem001 {Assets}","dnb_dom028:mem022 {Other loans}","dnb_dom030:mem253 {Inside EMU area}","dnb_dom031:mem002 {Renegotiations and pure new business}","dnb_dom032:mem002 {Transaction}","dnb_dom033:mem001 {<= 0.25 million}","dnb_dom008:mem032 {Non-financial corporations}",null,null,null,"dnb_dom009:mem012 {<= 3 months}"]
["T9004HK3A","","","010","020","E12",null,"dnb_met:mi004 {Amount}",null,"dnb_dom003:EUR {Euro}","dnb_dom025:mem001 {>= 100%}",null,"dnb_dom027:mem001 {Assets}","dnb_dom028:mem022 {Other loans}","dnb_dom030:mem253 {Inside EMU area}","dnb_dom031:mem002 {Renegotiations and pure new business}","dnb_dom032:mem002 {Transaction}","dnb_dom033:mem001 {<= 0.25 million}","dnb_dom008:mem032 {Non-financial corporations}",null,null,null,"dnb_dom009:mem012 {<= 3 months}"]
["T9004HK3A","","","020","010","D13",null,"dnb_met:pi001 {Weighted percentage}",null,"dnb_dom003:EUR {Euro}","dnb_dom025:mem001 {>= 100%}","dnb_dom026:mem001 {Annualised agreed rate}","dnb_dom027:mem001 {Assets}","dnb_dom028:mem022 {Other loans}","dnb_dom030:mem253 {Inside EMU area}","dnb_dom031:mem002 {Renegotiations and pure new business}","dnb_dom032:mem002 {Transaction}","dnb_dom033:mem001 {<= 0.25 million}","dnb_dom008:mem032 {Non-financial corporations}",null,null,null,"dnb_dom009:mem015 {> 3 months and <= 1 year}"]
["T9004HK3A","","","020","020","E13",null,"dnb_met:mi004 {Amount}",null,"dnb_dom003:EUR {Euro}","dnb_dom025:mem001 {>= 100%}",null,"dnb_dom027:mem001 {Assets}","dnb_dom028:mem022 {Other loans}","dnb_dom030:mem253 {Inside EMU area}","dnb_dom031:mem002 {Renegotiations and pure new business}","dnb_dom032:mem002 {Transaction}","dnb_dom033:mem001 {<= 0.25 million}","dnb_dom008:mem032 {Non-financial corporations}",null,null,null,"dnb_dom009:mem015 {> 3 months and <= 1 year}"]
["T9004HK3A","","","030","010","D14",null,"dnb_met:pi001 {Weighted percentage}",null,"dnb_dom003:EUR {Euro}","dnb_dom025:mem001 {>= 100%}","dnb_dom026:mem001 {Annualised agreed rate}","dnb_dom027:mem001 {Assets}","dnb_dom028:mem022 {Other loans}","dnb_dom030:mem253 {Inside EMU area}","dnb_dom031:mem002 {Renegotiations and pure new business}","dnb_dom032:mem002 {Transaction}","dnb_dom033:mem001 {<= 0.25 million}","dnb_dom008:mem032 {Non-financial corporations}",null,null,null,"dnb_dom009:mem016 {> 1 year and <= 3 years}"]
["T9004HK3A","","","030","020","E14",null,"dnb_met:mi004 {Amount}",null,"dnb_dom003:EUR {Euro}","dnb_dom025:mem001 {>= 100%}",null,"dnb_dom027:mem001 {Assets}","dnb_dom028:mem022 {Other loans}","dnb_dom030:mem253 {Inside EMU area}","dnb_dom031:mem002 {Renegotiations and pure new business}","dnb_dom032:mem002 {Transaction}","dnb_dom033:mem001 {<= 0.25 million}","dnb_dom008:mem032 {Non-financial corporations}",null,null,null,"dnb_dom009:mem016 {> 1 year and <= 3 years}"]
["T9004HK3A","","","040","010","D15",null,"dnb_met:pi001 {Weighted percentage}",null,"dnb_dom003:EUR {Euro}","dnb_dom025:mem001 {>= 100%}","dnb_dom026:mem001 {Annualised agreed rate}","dnb_dom027:mem001 {Assets}","dnb_dom028:mem022 {Other loans}","dnb_dom030:mem253 {Inside EMU area}","dnb_dom031:mem002 {Renegotiations and pure new business}","dnb_dom032:mem002 {Transaction}","dnb_dom033:mem001 {<= 0.25 million}","dnb_dom008:mem032 {Non-financial corporations}",null,null,null,"dnb_dom009:mem017 {> 3 years and <= 5 years}"]
["T9004HK3A","","","040","020","E15",null,"dnb_met:mi004 {Amount}",null,"dnb_dom003:EUR {Euro}","dnb_dom025:mem001 {>= 100%}",null,"dnb_dom027:mem001 {Assets}","dnb_dom028:mem022 {Other loans}","dnb_dom030:mem253 {Inside EMU area}","dnb_dom031:mem002 {Renegotiations and pure new business}","dnb_dom032:mem002 {Transaction}","dnb_dom033:mem001 {<= 0.25 million}","dnb_dom008:mem032 {Non-financial corporations}",null,null,null,"dnb_dom009:mem017 {> 3 years and <= 5 years}"]
["T9004HK3A","","","050","010","D16",null,"dnb_met:pi001 {Weighted percentage}",null,"dnb_dom003:EUR {Euro}","dnb_dom025:mem001 {>= 100%}","dnb_dom026:mem001 {Annualised agreed rate}","dnb_dom027:mem001 {Assets}","dnb_dom028:mem022 {Other loans}","dnb_dom030:mem253 {Inside EMU area}","dnb_dom031:mem002 {Renegotiations and pure new business}","dnb_dom032:mem002 {Transaction}","dnb_dom033:mem001 {<= 0.25 million}","dnb_dom008:mem032 {Non-financial corporations}",null,null,null,"dnb_dom009:mem018 {> 5 years and <= 10 years}"]
["T9004HK3A","","","050","020","E16",null,"dnb_met:mi004 {Amount}",null,"dnb_dom003:EUR {Euro}","dnb_dom025:mem001 {>= 100%}",null,"dnb_dom027:mem001 {Assets}","dnb_dom028:mem022 {Other loans}","dnb_dom030:mem253 {Inside EMU area}","dnb_dom031:mem002 {Renegotiations and pure new business}","dnb_dom032:mem002 {Transaction}","dnb_dom033:mem001 {<= 0.25 million}","dnb_dom008:mem032 {Non-financial corporations}",null,null,null,"dnb_dom009:mem018 {> 5 years and <= 10 years}"]
["T9004HK3A","","","060","010","D17",null,"dnb_met:pi001 {Weighted percentage}",null,"dnb_dom003:EUR {Euro}","dnb_dom025:mem001 {>= 100%}","dnb_dom026:mem001 {Annualised agreed rate}","dnb_dom027:mem001 {Assets}","dnb_dom028:mem022 {Other loans}","dnb_dom030:mem253 {Inside EMU area}","dnb_dom031:mem002 {Renegotiations and pure new business}","dnb_dom032:mem002 {Transaction}","dnb_dom033:mem001 {<= 0.25 million}","dnb_dom008:mem032 {Non-financial corporations}",null,null,null,"dnb_dom009:mem019 {> 10 years}"]
["T9004HK3A","","","060","020","E17",null,"dnb_met:mi004 {Amount}",null,"dnb_dom003:EUR {Euro}","dnb_dom025:mem001 {>= 100%}",null,"dnb_dom027:mem001 {Assets}","dnb_dom028:mem022 {Other loans}","dnb_dom030:mem253 {Inside EMU area}","dnb_dom031:mem002 {Renegotiations and pure new business}","dnb_dom032:mem002 {Transaction}","dnb_dom033:mem001 {<= 0.25 million}","dnb_dom008:mem032 {Non-financial corporations}",null,null,null,"dnb_dom009:mem019 {> 10 years}"]
["T9004HK3A","","","070","010","D19",null,"dnb_met:pi001 {Weighted percentage}",null,"dnb_dom003:EUR {Euro}","dnb_dom025:mem001 {>= 100%}","dnb_dom026:mem001 {Annualised agreed rate}","dnb_dom027:mem001 {Assets}","dnb_dom028:mem022 {Other loans}","dnb_dom030:mem253 {Inside EMU area}","dnb_dom031:mem002 {Renegotiations and pure new business}","dnb_dom032:mem002 {Transaction}","dnb_dom033:mem001 {<= 0.25 million}","dnb_dom008:mem032 {Non-financial corporations}","dnb_dom009:mem006 {<= 1 year}"]
["T9004HK3A","","","070","020","E19",null,"dnb_met:mi004 {Amount}",null,"dnb_dom003:EUR {Euro}","dnb_dom025:mem001 {>= 100%}",null,"dnb_dom027:mem001 {Assets}","dnb_dom028:mem022 {Other loans}","dnb_dom030:mem253 {Inside EMU area}","dnb_dom031:mem002 {Renegotiations and pure new business}","dnb_dom032:mem002 {Transaction}","dnb_dom033:mem001 {<= 0.25 million}","dnb_dom008:mem032 {Non-financial corporations}","dnb_dom009:mem006 {<= 1 year}"]
["T9004HK3A","","","080","010","D20",null,"dnb_met:pi001 {Weighted percentage}",null,"dnb_dom003:EUR {Euro}","dnb_dom025:mem001 {>= 100%}","dnb_dom026:mem001 {Annualised agreed rate}","dnb_dom027:mem001 {Assets}","dnb_dom028:mem022 {Other loans}","dnb_dom030:mem253 {Inside EMU area}","dnb_dom031:mem002 {Renegotiations and pure new business}","dnb_dom032:mem002 {Transaction}","dnb_dom033:mem001 {<= 0.25 million}","dnb_dom008:mem032 {Non-financial corporations}","dnb_dom009:mem004 {> 1 year}"]
["T9004HK3A","","","080","020","E20",null,"dnb_met:mi004 {Amount}",null,"dnb_dom003:EUR {Euro}","dnb_dom025:mem001 {>= 100%}",null,"dnb_dom027:mem001 {Assets}","dnb_dom028:mem022 {Other loans}","dnb_dom030:mem253 {Inside EMU area}","dnb_dom031:mem002 {Renegotiations and pure new business}","dnb_dom032:mem002 {Transaction}","dnb_dom033:mem001 {<= 0.25 million}","dnb_dom008:mem032 {Non-financial corporations}","dnb_dom009:mem004 {> 1 year}"]
["T9004HK3A","","","090","010","D21",null,"dnb_met:pi001 {Weighted percentage}",null,"dnb_dom003:EUR {Euro}","dnb_dom025:mem001 {>= 100%}","dnb_dom026:mem001 {Annualised agreed rate}","dnb_dom027:mem001 {Assets}","dnb_dom028:mem022 {Other loans}","dnb_dom030:mem253 {Inside EMU area}","dnb_dom031:mem002 {Renegotiations and pure new business}","dnb_dom032:mem002 {Transaction}","dnb_dom033:mem001 {<= 0.25 million}","dnb_dom008:mem032 {Non-financial corporations}","dnb_dom009:mem004 {> 1 year}",null,null,"dnb_dom009:mem006 {<= 1 year}"]
["T9004HK3A","","","090","020","E21",null,"dnb_met:mi004 {Amount}",null,"dnb_dom003:EUR {Euro}","dnb_dom025:mem001 {>= 100%}",null,"dnb_dom027:mem001 {Assets}","dnb_dom028:mem022 {Other loans}","dnb_dom030:mem253 {Inside EMU area}","dnb_dom031:mem002 {Renegotiations and pure new business}","dnb_dom032:mem002 {Transaction}","dnb_dom033:mem001 {<= 0.25 million}","dnb_dom008:mem032 {Non-financial corporations}","dnb_dom009:mem004 {> 1 year}",null,null,"dnb_dom009:mem006 {<= 1 year}"]
["T9004HK3A","","","100","010","D22",null,"dnb_met:pi001 {Weighted percentage}",null,"dnb_dom003:EUR {Euro}","dnb_dom025:mem001 {>= 100%}","dnb_dom026:mem001 {Annualised agreed rate}","dnb_dom027:mem001 {Assets}","dnb_dom028:mem022 {Other loans}","dnb_dom030:mem253 {Inside EMU area}","dnb_dom031:mem002 {Renegotiations and pure new business}","dnb_dom032:mem002 {Transaction}","dnb_dom033:mem001 {<= 0.25 million}","dnb_dom008:mem032 {Non-financial corporations}","dnb_dom009:mem004 {> 1 year}",null,null,"dnb_dom009:mem007 {> 1 year and <= 5 years}"]
["T9004HK3A","","","100","020","E22",null,"dnb_met:mi004 {Amount}",null,"dnb_dom003:EUR {Euro}","dnb_dom025:mem001 {>= 100%}",null,"dnb_dom027:mem001 {Assets}","dnb_dom028:mem022 {Other loans}","dnb_dom030:mem253 {Inside EMU area}","dnb_dom031:mem002 {Renegotiations and pure new business}","dnb_dom032:mem002 {Transaction}","dnb_dom033:mem001 {<= 0.25 million}","dnb_dom008:mem032 {Non-financial corporations}","dnb_dom009:mem004 {> 1 year}",null,null,"dnb_dom009:mem007 {> 1 year and <= 5 years}"]
["T9004HK3A","","","110","010","D23",null,"dnb_met:pi001 {Weighted percentage}",null,"dnb_dom003:EUR {Euro}","dnb_dom025:mem001 {>= 100%}","dnb_dom026:mem001 {Annualised agreed rate}","dnb_dom027:mem001 {Assets}","dnb_dom028:mem022 {Other loans}","dnb_dom030:mem253 {Inside EMU area}","dnb_dom031:mem002 {Renegotiations and pure new business}","dnb_dom032:mem002 {Transaction}","dnb_dom033:mem001 {<= 0.25 million}","dnb_dom008:mem032 {Non-financial corporations}","dnb_dom009:mem004 {> 1 year}",null,null,"dnb_dom009:mem008 {> 5 years}"]
["T9004HK3A","","","110","020","E23",null,"dnb_met:mi004 {Amount}",null,"dnb_dom003:EUR {Euro}","dnb_dom025:mem001 {>= 100%}",null,"dnb_dom027:mem001 {Assets}","dnb_dom028:mem022 {Other loans}","dnb_dom030:mem253 {Inside EMU area}","dnb_dom031:mem002 {Renegotiations and pure new business}","dnb_dom032:mem002 {Transaction}","dnb_dom033:mem001 {<= 0.25 million}","dnb_dom008:mem032 {Non-financial corporations}","dnb_dom009:mem004 {> 1 year}",null,null,"dnb_dom009:mem008 {> 5 years}"]
["T9004HK3A","","","120","010","D26",null,"dnb_met:pi001 {Weighted percentage}",null,"dnb_dom003:EUR {Euro}","dnb_dom025:mem001 {>= 100%}","dnb_dom026:mem001 {Annualised agreed rate}","dnb_dom027:mem001 {Assets}","dnb_dom028:mem022 {Other loans}","dnb_dom030:mem253 {Inside EMU area}","dnb_dom031:mem002 {Renegotiations and pure new business}","dnb_dom032:mem002 {Transaction}","dnb_dom033:mem002 {> 0.25 and <= 1 million}","dnb_dom008:mem032 {Non-financial corporations}",null,null,null,"dnb_dom009:mem012 {<= 3 months}"]
["T9004HK3A","","","120","020","E26",null,"dnb_met:mi004 {Amount}",null,"dnb_dom003:EUR {Euro}","dnb_dom025:mem001 {>= 100%}",null,"dnb_dom027:mem001 {Assets}","dnb_dom028:mem022 {Other loans}","dnb_dom030:mem253 {Inside EMU area}","dnb_dom031:mem002 {Renegotiations and pure new business}","dnb_dom032:mem002 {Transaction}","dnb_dom033:mem002 {> 0.25 and <= 1 million}","dnb_dom008:mem032 {Non-financial corporations}",null,null,null,"dnb_dom009:mem012 {<= 3 months}"]
["T9004HK3A","","","130","010","D27",null,"dnb_met:pi001 {Weighted percentage}",null,"dnb_dom003:EUR {Euro}","dnb_dom025:mem001 {>= 100%}","dnb_dom026:mem001 {Annualised agreed rate}","dnb_dom027:mem001 {Assets}","dnb_dom028:mem022 {Other loans}","dnb_dom030:mem253 {Inside EMU area}","dnb_dom031:mem002 {Renegotiations and pure new business}","dnb_dom032:mem002 {Transaction}","dnb_dom033:mem002 {> 0.25 and <= 1 million}","dnb_dom008:mem032 {Non-financial corporations}",null,null,null,"dnb_dom009:mem015 {> 3 months and <= 1 year}"]
["T9004HK3A","","","130","020","E27",null,"dnb_met:mi004 {Amount}",null,"dnb_dom003:EUR {Euro}","dnb_dom025:mem001 {>= 100%}",null,"dnb_dom027:mem001 {Assets}","dnb_dom028:mem022 {Other loans}","dnb_dom030:mem253 {Inside EMU area}","dnb_dom031:mem002 {Renegotiations and pure new business}","dnb_dom032:mem002 {Transaction}","dnb_dom033:mem002 {> 0.25 and <= 1 million}","dnb_dom008:mem032 {Non-financial corporations}",null,null,null,"dnb_dom009:mem015 {> 3 months and <= 1 year}"]
["T9004HK3A","","","140","010","D28",null,"dnb_met:pi001 {Weighted percentage}",null,"dnb_dom003:EUR {Euro}","dnb_dom025:mem001 {>= 100%}","dnb_dom026:mem001 {Annualised agreed rate}","dnb_dom027:mem001 {Assets}","dnb_dom028:mem022 {Other loans}","dnb_dom030:mem253 {Inside EMU area}","dnb_dom031:mem002 {Renegotiations and pure new business}","dnb_dom032:mem002 {Transaction}","dnb_dom033:mem002 {> 0.25 and <= 1 million}","dnb_dom008:mem032 {Non-financial corporations}",null,null,null,"dnb_dom009:mem016 {> 1 year and <= 3 years}"]
["T9004HK3A","","","140","020","E28",null,"dnb_met:mi004 {Amount}",null,"dnb_dom003:EUR {Euro}","dnb_dom025:mem001 {>= 100%}",null,"dnb_dom027:mem001 {Assets}","dnb_dom028:mem022 {Other loans}","dnb_dom030:mem253 {Inside EMU area}","dnb_dom031:mem002 {Renegotiations and pure new business}","dnb_dom032:mem002 {Transaction}","dnb_dom033:mem002 {> 0.25 and <= 1 million}","dnb_dom008:mem032 {Non-financial corporations}",null,null,null,"dnb_dom009:mem016 {> 1 year and <= 3 years}"]
["T9004HK3A","","","150","010","D29",null,"dnb_met:pi001 {Weighted percentage}",null,"dnb_dom003:EUR {Euro}","dnb_dom025:mem001 {>= 100%}","dnb_dom026:mem001 {Annualised agreed rate}","dnb_dom027:mem001 {Assets}","dnb_dom028:mem022 {Other loans}","dnb_dom030:mem253 {Inside EMU area}","dnb_dom031:mem002 {Renegotiations and pure new business}","dnb_dom032:mem002 {Transaction}","dnb_dom033:mem002 {> 0.25 and <= 1 million}","dnb_dom008:mem032 {Non-financial corporations}",null,null,null,"dnb_dom009:mem017 {> 3 years and <= 5 years}"]
["T9004HK3A","","","150","020","E29",null,"dnb_met:mi004 {Amount}",null,"dnb_dom003:EUR {Euro}","dnb_dom025:mem001 {>= 100%}",null,"dnb_dom027:mem001 {Assets}","dnb_dom028:mem022 {Other loans}","dnb_dom030:mem253 {Inside EMU area}","dnb_dom031:mem002 {Renegotiations and pure new business}","dnb_dom032:mem002 {Transaction}","dnb_dom033:mem002 {> 0.25 and <= 1 million}","dnb_dom008:mem032 {Non-financial corporations}",null,null,null,"dnb_dom009:mem017 {> 3 years and <= 5 years}"]
["T9004HK3A","","","160","010","D30",null,"dnb_met:pi001 {Weighted percentage}",null,"dnb_dom003:EUR {Euro}","dnb_dom025:mem001 {>= 100%}","dnb_dom026:mem001 {Annualised agreed rate}","dnb_dom027:mem001 {Assets}","dnb_dom028:mem022 {Other loans}","dnb_dom030:mem253 {Inside EMU area}","dnb_dom031:mem002 {Renegotiations and pure new business}","dnb_dom032:mem002 {Transaction}","dnb_dom033:mem002 {> 0.25 and <= 1 million}","dnb_dom008:mem032 {Non-financial corporations}",null,null,null,"dnb_dom009:mem018 {> 5 years and <= 10 years}"]
["T9004HK3A","","","160","020","E30",null,"dnb_met:mi004 {Amount}",null,"dnb_dom003:EUR {Euro}","dnb_dom025:mem001 {>= 100%}",null,"dnb_dom027:mem001 {Assets}","dnb_dom028:mem022 {Other loans}","dnb_dom030:mem253 {Inside EMU area}","dnb_dom031:mem002 {Renegotiations and pure new business}","dnb_dom032:mem002 {Transaction}","dnb_dom033:mem002 {> 0.25 and <= 1 million}","dnb_dom008:mem032 {Non-financial corporations}",null,null,null,"dnb_dom009:mem018 {> 5 years and <= 10 years}"]
["T9004HK3A","","","170","010","D31",null,"dnb_met:pi001 {Weighted percentage}",null,"dnb_dom003:EUR {Euro}","dnb_dom025:mem001 {>= 100%}","dnb_dom026:mem001 {Annualised agreed rate}","dnb_dom027:mem001 {Assets}","dnb_dom028:mem022 {Other loans}","dnb_dom030:mem253 {Inside EMU area}","dnb_dom031:mem002 {Renegotiations and pure new business}","dnb_dom032:mem002 {Transaction}","dnb_dom033:mem002 {> 0.25 and <= 1 million}","dnb_dom008:mem032 {Non-financial corporations}",null,null,null,"dnb_dom009:mem019 {> 10 years}"]
["T9004HK3A","","","170","020","E31",null,"dnb_met:mi004 {Amount}",null,"dnb_dom003:EUR {Euro}","dnb_dom025:mem001 {>= 100%}",null,"dnb_dom027:mem001 {Assets}","dnb_dom028:mem022 {Other loans}","dnb_dom030:mem253 {Inside EMU area}","dnb_dom031:mem002 {Renegotiations and pure new business}","dnb_dom032:mem002 {Transaction}","dnb_dom033:mem002 {> 0.25 and <= 1 million}","dnb_dom008:mem032 {Non-financial corporations}",null,null,null,"dnb_dom009:mem019 {> 10 years}"]
["T9004HK3A","","","180","010","D33",null,"dnb_met:pi001 {Weighted percentage}",null,"dnb_dom003:EUR {Euro}","dnb_dom025:mem001 {>= 100%}","dnb_dom026:mem001 {Annualised agreed rate}","dnb_dom027:mem001 {Assets}","dnb_dom028:mem022 {Other loans}","dnb_dom030:mem253 {Inside EMU area}","dnb_dom031:mem002 {Renegotiations and pure new business}","dnb_dom032:mem002 {Transaction}","dnb_dom033:mem002 {> 0.25 and <= 1 million}","dnb_dom008:mem032 {Non-financial corporations}","dnb_dom009:mem006 {<= 1 year}"]
["T9004HK3A","","","180","020","E33",null,"dnb_met:mi004 {Amount}",null,"dnb_dom003:EUR {Euro}","dnb_dom025:mem001 {>= 100%}",null,"dnb_dom027:mem001 {Assets}","dnb_dom028:mem022 {Other loans}","dnb_dom030:mem253 {Inside EMU area}","dnb_dom031:mem002 {Renegotiations and pure new business}","dnb_dom032:mem002 {Transaction}","dnb_dom033:mem002 {> 0.25 and <= 1 million}","dnb_dom008:mem032 {Non-financial corporations}","dnb_dom009:mem006 {<= 1 year}"]
["T9004HK3A","","","190","010","D34",null,"dnb_met:pi001 {Weighted percentage}",null,"dnb_dom003:EUR {Euro}","dnb_dom025:mem001 {>= 100%}","dnb_dom026:mem001 {Annualised agreed rate}","dnb_dom027:mem001 {Assets}","dnb_dom028:mem022 {Other loans}","dnb_dom030:mem253 {Inside EMU area}","dnb_dom031:mem002 {Renegotiations and pure new business}","dnb_dom032:mem002 {Transaction}","dnb_dom033:mem002 {> 0.25 and <= 1 million}","dnb_dom008:mem032 {Non-financial corporations}","dnb_dom009:mem004 {> 1 year}"]
["T9004HK3A","","","190","020","E34",null,"dnb_met:mi004 {Amount}",null,"dnb_dom003:EUR {Euro}","dnb_dom025:mem001 {>= 100%}",null,"dnb_dom027:mem001 {Assets}","dnb_dom028:mem022 {Other loans}","dnb_dom030:mem253 {Inside EMU area}","dnb_dom031:mem002 {Renegotiations and pure new business}","dnb_dom032:mem002 {Transaction}","dnb_dom033:mem002 {> 0.25 and <= 1 million}","dnb_dom008:mem032 {Non-financial corporations}","dnb_dom009:mem004 {> 1 year}"]
["T9004HK3A","","","200","010","D35",null,"dnb_met:pi001 {Weighted percentage}",null,"dnb_dom003:EUR {Euro}","dnb_dom025:mem001 {>= 100%}","dnb_dom026:mem001 {Annualised agreed rate}","dnb_dom027:mem001 {Assets}","dnb_dom028:mem022 {Other loans}","dnb_dom030:mem253 {Inside EMU area}","dnb_dom031:mem002 {Renegotiations and pure new business}","dnb_dom032:mem002 {Transaction}","dnb_dom033:mem002 {> 0.25 and <= 1 million}","dnb_dom008:mem032 {Non-financial corporations}","dnb_dom009:mem004 {> 1 year}",null,null,"dnb_dom009:mem006 {<= 1 year}"]
["T9004HK3A","","","200","020","E35",null,"dnb_met:mi004 {Amount}",null,"dnb_dom003:EUR {Euro}","dnb_dom025:mem001 {>= 100%}",null,"dnb_dom027:mem001 {Assets}","dnb_dom028:mem022 {Other loans}","dnb_dom030:mem253 {Inside EMU area}","dnb_dom031:mem002 {Renegotiations and pure new business}","dnb_dom032:mem002 {Transaction}","dnb_dom033:mem002 {> 0.25 and <= 1 million}","dnb_dom008:mem032 {Non-financial corporations}","dnb_dom009:mem004 {> 1 year}",null,null,"dnb_dom009:mem006 {<= 1 year}"]
["T9004HK3A","","","210","010","D36",null,"dnb_met:pi001 {Weighted percentage}",null,"dnb_dom003:EUR {Euro}","dnb_dom025:mem001 {>= 100%}","dnb_dom026:mem001 {Annualised agreed rate}","dnb_dom027:mem001 {Assets}","dnb_dom028:mem022 {Other loans}","dnb_dom030:mem253 {Inside EMU area}","dnb_dom031:mem002 {Renegotiations and pure new business}","dnb_dom032:mem002 {Transaction}","dnb_dom033:mem002 {> 0.25 and <= 1 million}","dnb_dom008:mem032 {Non-financial corporations}","dnb_dom009:mem004 {> 1 year}",null,null,"dnb_dom009:mem007 {> 1 year and <= 5 years}"]
["T9004HK3A","","","210","020","E36",null,"dnb_met:mi004 {Amount}",null,"dnb_dom003:EUR {Euro}","dnb_dom025:mem001 {>= 100%}",null,"dnb_dom027:mem001 {Assets}","dnb_dom028:mem022 {Other loans}","dnb_dom030:mem253 {Inside EMU area}","dnb_dom031:mem002 {Renegotiations and pure new business}","dnb_dom032:mem002 {Transaction}","dnb_dom033:mem002 {> 0.25 and <= 1 million}","dnb_dom008:mem032 {Non-financial corporations}","dnb_dom009:mem004 {> 1 year}",null,null,"dnb_dom009:mem007 {> 1 year and <= 5 years}"]
["T9004HK3A","","","220","010","D37",null,"dnb_met:pi001 {Weighted percentage}",null,"dnb_dom003:EUR {Euro}","dnb_dom025:mem001 {>= 100%}","dnb_dom026:mem001 {Annualised agreed rate}","dnb_dom027:mem001 {Assets}","dnb_dom028:mem022 {Other loans}","dnb_dom030:mem253 {Inside EMU area}","dnb_dom031:mem002 {Renegotiations and pure new business}","dnb_dom032:mem002 {Transaction}","dnb_dom033:mem002 {> 0.25 and <= 1 million}","dnb_dom008:mem032 {Non-financial corporations}","dnb_dom009:mem004 {> 1 year}",null,null,"dnb_dom009:mem008 {> 5 years}"]
["T9004HK3A","","","220","020","E37",null,"dnb_met:mi004 {Amount}",null,"dnb_dom003:EUR {Euro}","dnb_dom025:mem001 {>= 100%}",null,"dnb_dom027:mem001 {Assets}","dnb_dom028:mem022 {Other loans}","dnb_dom030:mem253 {Inside EMU area}","dnb_dom031:mem002 {Renegotiations and pure new business}","dnb_dom032:mem002 {Transaction}","dnb_dom033:mem002 {> 0.25 and <= 1 million}","dnb_dom008:mem032 {Non-financial corporations}","dnb_dom009:mem004 {> 1 year}",null,null,"dnb_dom009:mem008 {> 5 years}"]
["T9004HK3A","","","230","010","D40",null,"dnb_met:pi001 {Weighted percentage}",null,"dnb_dom003:EUR {Euro}","dnb_dom025:mem001 {>= 100%}","dnb_dom026:mem001 {Annualised agreed rate}","dnb_dom027:mem001 {Assets}","dnb_dom028:mem022 {Other loans}","dnb_dom030:mem253 {Inside EMU area}","dnb_dom031:mem002 {Renegotiations and pure new business}","dnb_dom032:mem002 {Transaction}","dnb_dom033:mem003 {> 1 million}","dnb_dom008:mem032 {Non-financial corporations}",null,null,null,"dnb_dom009:mem012 {<= 3 months}"]
["T9004HK3A","","","230","020","E40",null,"dnb_met:mi004 {Amount}",null,"dnb_dom003:EUR {Euro}","dnb_dom025:mem001 {>= 100%}",null,"dnb_dom027:mem001 {Assets}","dnb_dom028:mem022 {Other loans}","dnb_dom030:mem253 {Inside EMU area}","dnb_dom031:mem002 {Renegotiations and pure new business}","dnb_dom032:mem002 {Transaction}","dnb_dom033:mem003 {> 1 million}","dnb_dom008:mem032 {Non-financial corporations}",null,null,null,"dnb_dom009:mem012 {<= 3 months}"]
["T9004HK3A","","","240","010","D41",null,"dnb_met:pi001 {Weighted percentage}",null,"dnb_dom003:EUR {Euro}","dnb_dom025:mem001 {>= 100%}","dnb_dom026:mem001 {Annualised agreed rate}","dnb_dom027:mem001 {Assets}","dnb_dom028:mem022 {Other loans}","dnb_dom030:mem253 {Inside EMU area}","dnb_dom031:mem002 {Renegotiations and pure new business}","dnb_dom032:mem002 {Transaction}","dnb_dom033:mem003 {> 1 million}","dnb_dom008:mem032 {Non-financial corporations}",null,null,null,"dnb_dom009:mem015 {> 3 months and <= 1 year}"]
["T9004HK3A","","","240","020","E41",null,"dnb_met:mi004 {Amount}",null,"dnb_dom003:EUR {Euro}","dnb_dom025:mem001 {>= 100%}",null,"dnb_dom027:mem001 {Assets}","dnb_dom028:mem022 {Other loans}","dnb_dom030:mem253 {Inside EMU area}","dnb_dom031:mem002 {Renegotiations and pure new business}","dnb_dom032:mem002 {Transaction}","dnb_dom033:mem003 {> 1 million}","dnb_dom008:mem032 {Non-financial corporations}",null,null,null,"dnb_dom009:mem015 {> 3 months and <= 1 year}"]
["T9004HK3A","","","250","010","D42",null,"dnb_met:pi001 {Weighted percentage}",null,"dnb_dom003:EUR {Euro}","dnb_dom025:mem001 {>= 100%}","dnb_dom026:mem001 {Annualised agreed rate}","dnb_dom027:mem001 {Assets}","dnb_dom028:mem022 {Other loans}","dnb_dom030:mem253 {Inside EMU area}","dnb_dom031:mem002 {Renegotiations and pure new business}","dnb_dom032:mem002 {Transaction}","dnb_dom033:mem003 {> 1 million}","dnb_dom008:mem032 {Non-financial corporations}",null,null,null,"dnb_dom009:mem016 {> 1 year and <= 3 years}"]
["T9004HK3A","","","250","020","E42",null,"dnb_met:mi004 {Amount}",null,"dnb_dom003:EUR {Euro}","dnb_dom025:mem001 {>= 100%}",null,"dnb_dom027:mem001 {Assets}","dnb_dom028:mem022 {Other loans}","dnb_dom030:mem253 {Inside EMU area}","dnb_dom031:mem002 {Renegotiations and pure new business}","dnb_dom032:mem002 {Transaction}","dnb_dom033:mem003 {> 1 million}","dnb_dom008:mem032 {Non-financial corporations}",null,null,null,"dnb_dom009:mem016 {> 1 year and <= 3 years}"]
["T9004HK3A","","","260","010","D43",null,"dnb_met:pi001 {Weighted percentage}",null,"dnb_dom003:EUR {Euro}","dnb_dom025:mem001 {>= 100%}","dnb_dom026:mem001 {Annualised agreed rate}","dnb_dom027:mem001 {Assets}","dnb_dom028:mem022 {Other loans}","dnb_dom030:mem253 {Inside EMU area}","dnb_dom031:mem002 {Renegotiations and pure new business}","dnb_dom032:mem002 {Transaction}","dnb_dom033:mem003 {> 1 million}","dnb_dom008:mem032 {Non-financial corporations}",null,null,null,"dnb_dom009:mem017 {> 3 years and <= 5 years}"]
["T9004HK3A","","","260","020","E43",null,"dnb_met:mi004 {Amount}",null,"dnb_dom003:EUR {Euro}","dnb_dom025:mem001 {>= 100%}",null,"dnb_dom027:mem001 {Assets}","dnb_dom028:mem022 {Other loans}","dnb_dom030:mem253 {Inside EMU area}","dnb_dom031:mem002 {Renegotiations and pure new business}","dnb_dom032:mem002 {Transaction}","dnb_dom033:mem003 {> 1 million}","dnb_dom008:mem032 {Non-financial corporations}",null,null,null,"dnb_dom009:mem017 {> 3 years and <= 5 years}"]
["T9004HK3A","","","270","010","D44",null,"dnb_met:pi001 {Weighted percentage}",null,"dnb_dom003:EUR {Euro}","dnb_dom025:mem001 {>= 100%}","dnb_dom026:mem001 {Annualised agreed rate}","dnb_dom027:mem001 {Assets}","dnb_dom028:mem022 {Other loans}","dnb_dom030:mem253 {Inside EMU area}","dnb_dom031:mem002 {Renegotiations and pure new business}","dnb_dom032:mem002 {Transaction}","dnb_dom033:mem003 {> 1 million}","dnb_dom008:mem032 {Non-financial corporations}",null,null,null,"dnb_dom009:mem018 {> 5 years and <= 10 years}"]
["T9004HK3A","","","270","020","E44",null,"dnb_met:mi004 {Amount}",null,"dnb_dom003:EUR {Euro}","dnb_dom025:mem001 {>= 100%}",null,"dnb_dom027:mem001 {Assets}","dnb_dom028:mem022 {Other loans}","dnb_dom030:mem253 {Inside EMU area}","dnb_dom031:mem002 {Renegotiations and pure new business}","dnb_dom032:mem002 {Transaction}","dnb_dom033:mem003 {> 1 million}","dnb_dom008:mem032 {Non-financial corporations}",null,null,null,"dnb_dom009:mem018 {> 5 years and <= 10 years}"]
["T9004HK3A","","","280","010","D45",null,"dnb_met:pi001 {Weighted percentage}",null,"dnb_dom003:EUR {Euro}","dnb_dom025:mem001 {>= 100%}","dnb_dom026:mem001 {Annualised agreed rate}","dnb_dom027:mem001 {Assets}","dnb_dom028:mem022 {Other loans}","dnb_dom030:mem253 {Inside EMU area}","dnb_dom031:mem002 {Renegotiations and pure new business}","dnb_dom032:mem002 {Transaction}","dnb_dom033:mem003 {> 1 million}","dnb_dom008:mem032 {Non-financial corporations}",null,null,null,"dnb_dom009:mem019 {> 10 years}"]
["T9004HK3A","","","280","020","E45",null,"dnb_met:mi004 {Amount}",null,"dnb_dom003:EUR {Euro}","dnb_dom025:mem001 {>= 100%}",null,"dnb_dom027:mem001 {Assets}","dnb_dom028:mem022 {Other loans}","dnb_dom030:mem253 {Inside EMU area}","dnb_dom031:mem002 {Renegotiations and pure new business}","dnb_dom032:mem002 {Transaction}","dnb_dom033:mem003 {> 1 million}","dnb_dom008:mem032 {Non-financial corporations}",null,null,null,"dnb_dom009:mem019 {> 10 years}"]
["T9004HK3A","","","290","010","D47",null,"dnb_met:pi001 {Weighted percentage}",null,"dnb_dom003:EUR {Euro}","dnb_dom025:mem001 {>= 100%}","dnb_dom026:mem001 {Annualised agreed rate}","dnb_dom027:mem001 {Assets}","dnb_dom028:mem022 {Other loans}","dnb_dom030:mem253 {Inside EMU area}","dnb_dom031:mem002 {Renegotiations and pure new business}","dnb_dom032:mem002 {Transaction}","dnb_dom033:mem003 {> 1 million}","dnb_dom008:mem032 {Non-financial corporations}","dnb_dom009:mem006 {<= 1 year}"]
["T9004HK3A","","","290","020","E47",null,"dnb_met:mi004 {Amount}",null,"dnb_dom003:EUR {Euro}","dnb_dom025:mem001 {>= 100%}",null,"dnb_dom027:mem001 {Assets}","dnb_dom028:mem022 {Other loans}","dnb_dom030:mem253 {Inside EMU area}","dnb_dom031:mem002 {Renegotiations and pure new business}","dnb_dom032:mem002 {Transaction}","dnb_dom033:mem003 {> 1 million}","dnb_dom008:mem032 {Non-financial corporations}","dnb_dom009:mem006 {<= 1 year}"]
["T9004HK3A","","","300","010","D48",null,"dnb_met:pi001 {Weighted percentage}",null,"dnb_dom003:EUR {Euro}","dnb_dom025:mem001 {>= 100%}","dnb_dom026:mem001 {Annualised agreed rate}","dnb_dom027:mem001 {Assets}","dnb_dom028:mem022 {Other loans}","dnb_dom030:mem253 {Inside EMU area}","dnb_dom031:mem002 {Renegotiations and pure new business}","dnb_dom032:mem002 {Transaction}","dnb_dom033:mem003 {> 1 million}","dnb_dom008:mem032 {Non-financial corporations}","dnb_dom009:mem004 {> 1 year}"]
["T9004HK3A","","","300","020","E48",null,"dnb_met:mi004 {Amount}",null,"dnb_dom003:EUR {Euro}","dnb_dom025:mem001 {>= 100%}",null,"dnb_dom027:mem001 {Assets}","dnb_dom028:mem022 {Other loans}","dnb_dom030:mem253 {Inside EMU area}","dnb_dom031:mem002 {Renegotiations and pure new business}","dnb_dom032:mem002 {Transaction}","dnb_dom033:mem003 {> 1 million}","dnb_dom008:mem032 {Non-financial corporations}","dnb_dom009:mem004 {> 1 year}"]
["T9004HK3A","","","310","010","D49",null,"dnb_met:pi001 {Weighted percentage}",null,"dnb_dom003:EUR {Euro}","dnb_dom025:mem001 {>= 100%}","dnb_dom026:mem001 {Annualised agreed rate}","dnb_dom027:mem001 {Assets}","dnb_dom028:mem022 {Other loans}","dnb_dom030:mem253 {Inside EMU area}","dnb_dom031:mem002 {Renegotiations and pure new business}","dnb_dom032:mem002 {Transaction}","dnb_dom033:mem003 {> 1 million}","dnb_dom008:mem032 {Non-financial corporations}","dnb_dom009:mem004 {> 1 year}",null,null,"dnb_dom009:mem006 {<= 1 year}"]
["T9004HK3A","","","310","020","E49",null,"dnb_met:mi004 {Amount}",null,"dnb_dom003:EUR {Euro}","dnb_dom025:mem001 {>= 100%}",null,"dnb_dom027:mem001 {Assets}","dnb_dom028:mem022 {Other loans}","dnb_dom030:mem253 {Inside EMU area}","dnb_dom031:mem002 {Renegotiations and pure new business}","dnb_dom032:mem002 {Transaction}","dnb_dom033:mem003 {> 1 million}","dnb_dom008:mem032 {Non-financial corporations}","dnb_dom009:mem004 {> 1 year}",null,null,"dnb_dom009:mem006 {<= 1 year}"]
["T9004HK3A","","","320","010","D50",null,"dnb_met:pi001 {Weighted percentage}",null,"dnb_dom003:EUR {Euro}","dnb_dom025:mem001 {>= 100%}","dnb_dom026:mem001 {Annualised agreed rate}","dnb_dom027:mem001 {Assets}","dnb_dom028:mem022 {Other loans}","dnb_dom030:mem253 {Inside EMU area}","dnb_dom031:mem002 {Renegotiations and pure new business}","dnb_dom032:mem002 {Transaction}","dnb_dom033:mem003 {> 1 million}","dnb_dom008:mem032 {Non-financial corporations}","dnb_dom009:mem004 {> 1 year}",null,null,"dnb_dom009:mem007 {> 1 year and <= 5 years}"]
["T9004HK3A","","","320","020","E50",null,"dnb_met:mi004 {Amount}",null,"dnb_dom003:EUR {Euro}","dnb_dom025:mem001 {>= 100%}",null,"dnb_dom027:mem001 {Assets}","dnb_dom028:mem022 {Other loans}","dnb_dom030:mem253 {Inside EMU area}","dnb_dom031:mem002 {Renegotiations and pure new business}","dnb_dom032:mem002 {Transaction}","dnb_dom033:mem003 {> 1 million}","dnb_dom008:mem032 {Non-financial corporations}","dnb_dom009:mem004 {> 1 year}",null,null,"dnb_dom009:mem007 {> 1 year and <= 5 years}"]
["T9004HK3A","","","330","010","D51",null,"dnb_met:pi001 {Weighted percentage}",null,"dnb_dom003:EUR {Euro}","dnb_dom025:mem001 {>= 100%}","dnb_dom026:mem001 {Annualised agreed rate}","dnb_dom027:mem001 {Assets}","dnb_dom028:mem022 {Other loans}","dnb_dom030:mem253 {Inside EMU area}","dnb_dom031:mem002 {Renegotiations and pure new business}","dnb_dom032:mem002 {Transaction}","dnb_dom033:mem003 {> 1 million}","dnb_dom008:mem032 {Non-financial corporations}","dnb_dom009:mem004 {> 1 year}",null,null,"dnb_dom009:mem008 {> 5 years}"]
["T9004HK3A","","","330","020","E51",null,"dnb_met:mi004 {Amount}",null,"dnb_dom003:EUR {Euro}","dnb_dom025:mem001 {>= 100%}",null,"dnb_dom027:mem001 {Assets}","dnb_dom028:mem022 {Other loans}","dnb_dom030:mem253 {Inside EMU area}","dnb_dom031:mem002 {Renegotiations and pure new business}","dnb_dom032:mem002 {Transaction}","dnb_dom033:mem003 {> 1 million}","dnb_dom008:mem032 {Non-financial corporations}","dnb_dom009:mem004 {> 1 year}",null,null,"dnb_dom009:mem008 {> 5 years}"]
["T9004HK3B","","","010","010","D12",null,"dnb_met:pi001 {Weighted percentage}",null,"dnb_dom003:EUR {Euro}","dnb_dom025:mem001 {>= 100%}","dnb_dom026:mem001 {Annualised agreed rate}","dnb_dom027:mem001 {Assets}","dnb_dom028:mem015 {Loans for house purchases}","dnb_dom030:mem253 {Inside EMU area}","dnb_dom031:mem002 {Renegotiations and pure new business}","dnb_dom032:mem002 {Transaction}",null,"dnb_dom008:mem035 {Households}",null,null,null,"dnb_dom009:mem006 {<= 1 year}"]
["T9004HK3B","","","010","020","E12",null,"dnb_met:mi004 {Amount}",null,"dnb_dom003:EUR {Euro}","dnb_dom025:mem001 {>= 100%}",null,"dnb_dom027:mem001 {Assets}","dnb_dom028:mem015 {Loans for house purchases}","dnb_dom030:mem253 {Inside EMU area}","dnb_dom031:mem002 {Renegotiations and pure new business}","dnb_dom032:mem002 {Transaction}",null,"dnb_dom008:mem035 {Households}",null,null,null,"dnb_dom009:mem006 {<= 1 year}"]
["T9004HK3B","","","020","010","D13",null,"dnb_met:pi001 {Weighted percentage}",null,"dnb_dom003:EUR {Euro}","dnb_dom025:mem001 {>= 100%}","dnb_dom026:mem001 {Annualised agreed rate}","dnb_dom027:mem001 {Assets}","dnb_dom028:mem015 {Loans for house purchases}","dnb_dom030:mem253 {Inside EMU area}","dnb_dom031:mem002 {Renegotiations and pure new business}","dnb_dom032:mem002 {Transaction}",null,"dnb_dom008:mem035 {Households}",null,null,null,"dnb_dom009:mem007 {> 1 year and <= 5 years}"]
["T9004HK3B","","","020","020","E13",null,"dnb_met:mi004 {Amount}",null,"dnb_dom003:EUR {Euro}","dnb_dom025:mem001 {>= 100%}",null,"dnb_dom027:mem001 {Assets}","dnb_dom028:mem015 {Loans for house purchases}","dnb_dom030:mem253 {Inside EMU area}","dnb_dom031:mem002 {Renegotiations and pure new business}","dnb_dom032:mem002 {Transaction}",null,"dnb_dom008:mem035 {Households}",null,null,null,"dnb_dom009:mem007 {> 1 year and <= 5 years}"]
["T9004HK3B","","","030","010","D14",null,"dnb_met:pi001 {Weighted percentage}",null,"dnb_dom003:EUR {Euro}","dnb_dom025:mem001 {>= 100%}","dnb_dom026:mem001 {Annualised agreed rate}","dnb_dom027:mem001 {Assets}","dnb_dom028:mem015 {Loans for house purchases}","dnb_dom030:mem253 {Inside EMU area}","dnb_dom031:mem002 {Renegotiations and pure new business}","dnb_dom032:mem002 {Transaction}",null,"dnb_dom008:mem035 {Households}",null,null,null,"dnb_dom009:mem018 {> 5 years and <= 10 years}"]
["T9004HK3B","","","030","020","E14",null,"dnb_met:mi004 {Amount}",null,"dnb_dom003:EUR {Euro}","dnb_dom025:mem001 {>= 100%}",null,"dnb_dom027:mem001 {Assets}","dnb_dom028:mem015 {Loans for house purchases}","dnb_dom030:mem253 {Inside EMU area}","dnb_dom031:mem002 {Renegotiations and pure new business}","dnb_dom032:mem002 {Transaction}",null,"dnb_dom008:mem035 {Households}",null,null,null,"dnb_dom009:mem018 {> 5 years and <= 10 years}"]
["T9004HK3B","","","040","010","D15",null,"dnb_met:pi001 {Weighted percentage}",null,"dnb_dom003:EUR {Euro}","dnb_dom025:mem001 {>= 100%}","dnb_dom026:mem001 {Annualised agreed rate}","dnb_dom027:mem001 {Assets}","dnb_dom028:mem015 {Loans for house purchases}","dnb_dom030:mem253 {Inside EMU area}","dnb_dom031:mem002 {Renegotiations and pure new business}","dnb_dom032:mem002 {Transaction}",null,"dnb_dom008:mem035 {Households}",null,null,null,"dnb_dom009:mem019 {> 10 years}"]
["T9004HK3B","","","040","020","E15",null,"dnb_met:mi004 {Amount}",null,"dnb_dom003:EUR {Euro}","dnb_dom025:mem001 {>= 100%}",null,"dnb_dom027:mem001 {Assets}","dnb_dom028:mem015 {Loans for house purchases}","dnb_dom030:mem253 {Inside EMU area}","dnb_dom031:mem002 {Renegotiations and pure new business}","dnb_dom032:mem002 {Transaction}",null,"dnb_dom008:mem035 {Households}",null,null,null,"dnb_dom009:mem019 {> 10 years}"]
["T9004HK3B","","","050","010","D18",null,"dnb_met:pi001 {Weighted percentage}",null,"dnb_dom003:EUR {Euro}","dnb_dom025:mem001 {>= 100%}","dnb_dom026:mem001 {Annualised agreed rate}","dnb_dom027:mem001 {Assets}","dnb_dom028:mem016 {Loans for consumption (personal)}","dnb_dom030:mem253 {Inside EMU area}","dnb_dom031:mem002 {Renegotiations and pure new business}","dnb_dom032:mem002 {Transaction}",null,"dnb_dom008:mem035 {Households}",null,null,null,"dnb_dom009:mem006 {<= 1 year}"]
["T9004HK3B","","","050","020","E18",null,"dnb_met:mi004 {Amount}",null,"dnb_dom003:EUR {Euro}","dnb_dom025:mem001 {>= 100%}",null,"dnb_dom027:mem001 {Assets}","dnb_dom028:mem016 {Loans for consumption (personal)}","dnb_dom030:mem253 {Inside EMU area}","dnb_dom031:mem002 {Renegotiations and pure new business}","dnb_dom032:mem002 {Transaction}",null,"dnb_dom008:mem035 {Households}",null,null,null,"dnb_dom009:mem006 {<= 1 year}"]
["T9004HK3B","","","060","010","D19",null,"dnb_met:pi001 {Weighted percentage}",null,"dnb_dom003:EUR {Euro}","dnb_dom025:mem001 {>= 100%}","dnb_dom026:mem001 {Annualised agreed rate}","dnb_dom027:mem001 {Assets}","dnb_dom028:mem016 {Loans for consumption (personal)}","dnb_dom030:mem253 {Inside EMU area}","dnb_dom031:mem002 {Renegotiations and pure new business}","dnb_dom032:mem002 {Transaction}",null,"dnb_dom008:mem035 {Households}",null,null,null,"dnb_dom009:mem007 {> 1 year and <= 5 years}"]
["T9004HK3B","","","060","020","E19",null,"dnb_met:mi004 {Amount}",null,"dnb_dom003:EUR {Euro}","dnb_dom025:mem001 {>= 100%}",null,"dnb_dom027:mem001 {Assets}","dnb_dom028:mem016 {Loans for consumption (personal)}","dnb_dom030:mem253 {Inside EMU area}","dnb_dom031:mem002 {Renegotiations and pure new business}","dnb_dom032:mem002 {Transaction}",null,"dnb_dom008:mem035 {Households}",null,null,null,"dnb_dom009:mem007 {> 1 year and <= 5 years}"]
["T9004HK3B","","","070","010","D20",null,"dnb_met:pi001 {Weighted percentage}",null,"dnb_dom003:EUR {Euro}","dnb_dom025:mem001 {>= 100%}","dnb_dom026:mem001 {Annualised agreed rate}","dnb_dom027:mem001 {Assets}","dnb_dom028:mem016 {Loans for consumption (personal)}","dnb_dom030:mem253 {Inside EMU area}","dnb_dom031:mem002 {Renegotiations and pure new business}","dnb_dom032:mem002 {Transaction}",null,"dnb_dom008:mem035 {Households}",null,null,null,"dnb_dom009:mem008 {> 5 years}"]
["T9004HK3B","","","070","020","E20",null,"dnb_met:mi004 {Amount}",null,"dnb_dom003:EUR {Euro}","dnb_dom025:mem001 {>= 100%}",null,"dnb_dom027:mem001 {Assets}","dnb_dom028:mem016 {Loans for consumption (personal)}","dnb_dom030:mem253 {Inside EMU area}","dnb_dom031:mem002 {Renegotiations and pure new business}","dnb_dom032:mem002 {Transaction}",null,"dnb_dom008:mem035 {Households}",null,null,null,"dnb_dom009:mem008 {> 5 years}"]

{"sheet":"Assertions","index":1,"n_rows":17,"n_cols":14,"rows_kept":17,"cut":false,"hidden":true,"merged":[]}
["ID","Changed per","Last change","Type","Threshold","Severity","Tables","Rows","Columns","Variable \nDefault Value","Sheets","Formula","Expression","Label (nl)"]
["v0001_m",null,"Add","Manual","Interval arithmetics","Non-blocking","T9004HK2A","r080, r190, r300","c030",null,null,"Pattern({T9004HK2A,c030}: r080 = r[90-110]})","$a = sum($b)","The sum of breakdowns by interest rate fixation period must be equal to the total of the maturity concerned. "]
["v0001_m",null,"Add","Manual","Interval arithmetics","Non-blocking","T9004HK3A","r080, r190, r300","c020",null,null,"Pattern({T9004HK3A,c020}: r080 = r[90-110]})","$a = sum($b)","The sum of breakdowns by interest rate fixation period must be equal to the total of the maturity concerned. "]
["v0002_m",null,"Add","Manual","Interval arithmetics","Non-blocking","T9004HK2A",null,"c030",null,null,"sum {T9004HK2A, c030, r[010-060]= sum {T9004HK2A, c030, r[070,080]","sum($a)=sum($b)","The sum of breakdowns by interest rate fixation period must be equal to sum of the original maturities."]
["v0002_m",null,"Add","Manual","Interval arithmetics","Non-blocking","T9004HK2A",null,"c030",null,null,"sum {T9004HK2A, c030, r[120-170]= sum {T9004HK2A, c030, r[180,190]","sum($a)=sum($b)","The sum of breakdowns by interest rate fixation period must be equal to sum of the original maturities."]
["v0002_m",null,"Add","Manual","Interval arithmetics","Non-blocking","T9004HK2A",null,"c030",null,null,"sum {T9004HK2A, c030, r[230-280]= sum {T9004HK2A, c030, r[290,300]","sum($a)=sum($b)","The sum of breakdowns by interest rate fixation period must be equal to sum of the original maturities."]
["v0002_m",null,"Add","Manual","Interval arithmetics","Non-blocking","T9004HK3A",null,"c020",null,null,"sum {T9004HK3A, c020, r[010-060]= sum {T9004HK3A, c020, r[070,080]","sum($a)=sum($b)","The sum of breakdowns by interest rate fixation period must be equal to sum of the original maturities."]
["v0002_m",null,"Add","Manual","Interval arithmetics","Non-blocking","T9004HK3A",null,"c020",null,null,"sum {T9004HK3A, c020, r[120-170]= sum {T9004HK3A, c020, r[180,190]","sum($a)=sum($b)","The sum of breakdowns by interest rate fixation period must be equal to sum of the original maturities."]
["v0002_m",null,"Add","Manual","Interval arithmetics","Non-blocking","T9004HK3A",null,"c020",null,null,"sum {T9004HK3A, c020, r[230-280]= sum {T9004HK3A, c020, r[290,300]","sum($a)=sum($b)","The sum of breakdowns by interest rate fixation period must be equal to sum of the original maturities."]
["v0003_m",null,"Add","Manual","Interval arithmetics","Non-blocking","T9004HK2A, T9004HK3A",null,null,null,null,null,"if ($b=0) then ($a=0) else (($a =($c*$d+$e*$f+$g*$h) div ($d+$f+$h) ))","The interest rate of other loans with maturity > 1 year must be equal to the weighted interest rate of the breakdowns by interest rate fixation period."]
["v0004_m",null,"Add","Manual","Interval arithmetics","Non-blocking","T9004HK2B","[r010-040]","c010",null,null,"{T9004HK2A,c010}: r050 = r[010-040]}","avg($a) = $b","The APRC interest rate should be greater or equal to the average interest rate on loans for house purchase."]
["v0005_m",null,"Add","Manual","Interval arithmetics","Non-blocking","T9004HK2B","[r060-080]","c010",null,null,"{T9004HK2A,c010}: r090 = r[060-080]}","avg($a) = $b","The APRC interest rate should be greater or equal to the average interest rate on personal loans."]
["v0006_m",null,"Add","Manual","Interval arithmetics","Non-blocking","T9004HK2A, T9004HK2B",null,"c030, c040",null,null,"Pattern({T9004HK2A}: c040, r010 > c030, r010)","$b > $a","For one or more posts the volume of the renegotiated loans reported is higher than the volume of the new contracts."]
["v0007_m",null,"Add","Manual","Exact","Non-blocking","T9004HK2A, T9004HK3A, T9004HK3B",null,null,"empty",null,null,"(empty($a) and empty($b)) or (not(empty($a)) and not(empty($b)))","For one or more posts a volume has been reported but no interest rate, or an interest rate has been reported but no volume."]
["v0008_m",null,"Add","Manual","Exact","Non-blocking","T9004HK2B",null,null,"empty",null,null,"(empty($a) and empty($b)) or (not(empty($a)) and not(empty($b)))","For one or more posts a volume has been reported but no interest rate, or an interest rate has been reported but no volume."]
["v0009_m",null,"Add","Manual","Interval arithmetics","Non-blocking","T9004HK3A, T9004HK2A","All",null,null,null,"Pattern({T9004HK3A, c020}: r010 > {T9004HK2A, c030}: r010)","$a > $b","For this item in HK3A a higher volume has been reported than for an simular item on HK2A."]
["v0010_m",null,"Add","Manual","Interval arithmetics","Non-blocking","T9004HK3B, T9004HK2B","All",null,null,null,"Pattern({T9004HK3B, c020}: r010 > {T9004HK2B, c030}: r010)","$a > $b","For this item in HK3B a higher volume has been reported than for an simular item on HK2B."]

{"sheet":"General data","index":2,"n_rows":251,"n_cols":23,"rows_kept":251,"cut":false,"hidden":false,"merged":[[0,6,2,6],[3,0,5,9]]}
[null,null,null,null,null,null,null,"Version:",null,"1.0.1.2",null,null,null,null,null,null,"Not applicable/All geographical areas","http://standards.iso.org/iso/17442","DNB MIR reporting","MIR","01","EUR","NL MIR 1.0.1"]
[null,null,null,null,null,null,null,null,null,null,null,null,null,null,null,null,"AFGHANISTAN","http://standards.iso.org/iso/17442",null,null,"02","AED"]
[null,null,null,null,null,null,null," ",null,null,null,null,null,null,null,null,"ALBANIA","http://standards.iso.org/iso/17442",null,null,"04","AFN"]
[null,null,null,null,null,null,null,null,null,null,null,null,null,null,null,null,"ALGERIA","http://standards.iso.org/iso/17442",null,null,"05","ALL"]
[null,null,null,null,null,null,null,null,null,null,null,null,null,null,null,null,"AMERICAN SAMOA","http://standards.iso.org/iso/17442",null,null,"07","AMD"]
[null,null,null,null,null,null,null,null,null,null,null,null,null,null,null,null,"ANDORRA","http://standards.iso.org/iso/17442",null,null,"08","ANG"]
[null,null,null,null,null,null,null,null,null,null,null,null,null,null,null,null,"ANGOLA","http://standards.iso.org/iso/17442",null,null,"10","AOA"]
[null,"General Data",null,null,null,null,null,null,null,null,null,"/General data label{B}","/General data value{E}",null,null,null,"ANGUILLA","http://standards.iso.org/iso/17442",null,null,"11","ARS"]
[null,null,null,null,null,null,null,null,null,null,null,null,null,null,null,null,"ANTARCTICA","http://standards.iso.org/iso/17442",null,null,"12","AUD"]
["*","Identifier",":","LEGALIDENTIFIER20POS",{"$f":"\"\"&D10","v":"LEGALIDENTIFIER20POS"},{"$f":"IF(D10=\"\",1,0)","v":0},null,null,null,null,null,null,null,null,null,null,"ANTIGUA AND BARBUDA","http://standards.iso.org/iso/17442",null,null,"13","AWG"]
[null,null,null,null,null,null,null,null,null,null,null,null,null,null,null,null,"ARGENTINA","http://standards.iso.org/iso/17442",null,null,"14","AZN"]
["*","Period start date",":","2018-10-01",{"$f":"D12","v":"2018-10-01"},{"$f":"IF(D12=\"\",1,0)","v":0},null,null,null,null,null,null,null,null,null,null,"ARMENIA","http://standards.iso.org/iso/17442",null,null,"15","BAM"]
[null,null,null,null,null,null,null,null,null,null,null,null,null,null,null,null,"ARUBA","http://standards.iso.org/iso/17442",null,null,"16","BBD"]
["*","Period end date",":","2018-12-31",{"$f":"D14","v":"2018-12-31"},{"$f":"IF(D14=\"\",1,0)","v":0},null,null,null,null,null,null,null,null,null,null,"AUSTRALIA","http://standards.iso.org/iso/17442",null,null,"17","BDT"]
[null,null,null,null,null,null,null,null,null,null,null,null,null,null,null,null,"AUSTRIA","http://standards.iso.org/iso/17442",null,null,"18","BGN"]
[null,"Country",":","NETHERLANDS",null,null,null,null,null,null,null,null,null,null,null,null,"AZERBAIJAN","http://standards.iso.org/iso/17442",null,null,"19","BHD"]
[null,null,null,null,null,null,null,null,null,null,null,null,null,null,null,null,"BAHAMAS","http://standards.iso.org/iso/17442",null,null,"20","BIF"]
["*","Filing Currency",":","EUR",{"$f":"\"\"&D18","v":"EUR"},{"$f":"IF(D18=\"\",1,0)","v":0},null,null,null,null,null,null,null,null,null,null,"BAHRAIN","http://standards.iso.org/iso/17442",null,null,"All","BMD"]
[null,null,null,null,null,null,null,null,null,null,null,null,null,null,null,null,"BANGLADESH","http://standards.iso.org/iso/17442",null,null,"All","BND"]
["*","Taxonomy",":","NL MIR 1.0.1",null,{"$f":"IF(D20=\"\",1,0)","v":0},null,null,null,null,null,null,null,null,null,null,"BARBADOS","http://standards.iso.org/iso/17442",null,null,null,"BOB"]
[null,null,null,null,null,null,null,null,null,null,null,null,null,null,null,null,"BELARUS","http://standards.iso.org/iso/17442",null,null,null,"BRL"]
["*","Module",":","DNB MIR reporting",{"$f":"IFERROR(VLOOKUP(D22,S:T,2,FALSE),\"\")","v":"MIR"},{"$f":"IF(D22=\"\",1,0)","v":0},null,null,null,null,null,null,null,null,null,null,"BELGIUM","http://www.swift.com",null,null,null,"BSD"]
[null,null,null,null,null,null,null,null,null,null,null,null,null,null,null,null,"BELIZE","http://standards.iso.org/iso/17442",null,null,null,"BTN"]
[null,null,null,null,null,null,null,null,null,null,null,null,null,null,null,null,"BENIN","http://standards.iso.org/iso/17442",null,null,null,"BWP"]
[null,"Advanced Requirements",null,null,null,null,null,null,null,null,null,null,null,null,null,null,"BERMUDA","http://standards.iso.org/iso/17442",null,null,null,"BYN"]
[null,null,null,null,null,null,null,null,null,null,null,null,null,null,null,null,"BHUTAN","http://standards.iso.org/iso/17442",null,null,null,"BZD"]
[null,"Identifier scheme",":",{"$f":"IFERROR(VLOOKUP(D16,Q:R,2,FALSE),R1)","v":"http://standards.iso.org/iso/17442"},{"$f":"D27","v":"http://standards.iso.org/iso/17442"},null,null,null,null,null,null,null,null,null,null,null,"BOLIVIA, PLURINATIONAL STATE OF","http://standards.iso.org/iso/17442",null,null,null,"CAD"]
[]
[null,"Monetary decimals",":",0]
[]
[null,"Monetary precision",":",0]
[null,null,null,null,null,null,null,null,null,null,null,null,null,null,null,null,"BRAZIL","http://standards.iso.org/iso/17442",null,null,null,"COP"]
[null,"Pure decimals",":",4,null,null,null,null,null,null,null,null,null,null,null,null,"BRITISH INDIAN OCEAN TERRITORY","http://standards.iso.org/iso/17442",null,null,null,"CRC"]
[null,null,null,null,null,null,null,null,null,null,null,null,null,null,null,null,"BRUNEI DARUSSALAM","http://standards.iso.org/iso/17442",null,null,null,"CUC"]
[null,"Pure precision",":",4,null,null,null,"#XBRL made simple!",null,null,null,null,null,null,null,null,"BULGARIA","http://standards.iso.org/iso/17442",null,null,null,"CUP"]
[null,null,null,null,null,null,null,null,null,null,null,null,null,null,null,null,"BURKINA FASO","http://standards.iso.org/iso/17442",null,null,null,"CVE"]
[null,"Concatenate Errors",":",false,null,null,null,null,null,null,null,null,null,null,null,null,"BURUNDI","http://standards.iso.org/iso/17442",null,null,null,"CZK"]
[null,"Additional Requirements (Country specific)",null,null,null,null,null,null,null,null,null,null,null,null,null,null,"CAMBODIA","http://standards.iso.org/iso/17442",null,null,null,"DJF"]
["BELGIUM",null,null,null,null,null,null,null,null,null,null,null,null,null,null,null,"CAMEROON","http://standards.iso.org/iso/17442",null,null,null,"DKK"]
["BELGIUM","Post Parsing features",":",null,null,{"$f":"IF(AND(A40=PP_Country,D40=\"\"),1,0)","v":0},null,null,null,null,null,null,null,null,null,null,"CANADA","http://standards.iso.org/iso/17442",null,null,null,"DOP"]
["BELGIUM",null,null,null,null,null,null,null,null,null,null,null,null,null,null,null,"CAPE VERDE","http://standards.iso.org/iso/17442",null,null,null,"DZD"]
["BELGIUM","Reporter e-mail",":",null,null,null,null,null,null,null,null,null,null,null,null,null,"CAYMAN ISLANDS","http://standards.iso.org/iso/17442",null,null,null,"EGP"]
["BELGIUM",null,null,null,null,null,null,null,null,null,null,null,null,null,null,null,"CENTRAL AFRICAN REPUBLIC","http://standards.iso.org/iso/17442",null,null,null,"ERN"]
["BELGIUM","Declarer Type",":",null,{"$f":"\"\"&D44","v":""},{"$f":"IF(AND(A44=PP_Country,D44=\"\"),1,0)","v":0},null,null,null,null,null,null,null,null,null,null,"CHAD","http://standards.iso.org/iso/17442",null,null,null,"ETB"]
["BELGIUM",null,null,null,null,null,null,null,null,null,null,null,null,null,null,null,"CHILE","http://standards.iso.org/iso/17442",null,null,null,"EUR"]
["BELGIUM","Domain",":",null,{"$f":"\"\"&D46","v":""},{"$f":"IF(AND(A46=PP_Country,D46=\"\"),1,0)","v":0},null,null,null,null,null,null,null,null,null,null,"CHINA","http://standards.iso.org/iso/17442",null,null,null,"FJD"]
["BELGIUM",null,null,null,null,null,null,null,null,null,null,null,null,null,null,null,"CHRISTMAS ISLAND","http://standards.iso.org/iso/17442",null,null,null,"FKP"]
["BELGIUM","ParsePort-specific parameters:",null,null,null,null,null,null,null,null,null,null,null,null,null,null,"COCOS (KEELING) ISLANDS","http://standards.iso.org/iso/17442",null,null,null,"GBP"]
["BELGIUM","Language",null,"EN",null,null,null,null,null,null,null,null,null,null,null,null,"COLOMBIA","http://standards.iso.org/iso/17442",null,null,null,"GEL"]
["BELGIUM","Debug mode",null,false,null,null,null,null,null,null,null,null,null,null,null,null,"COMOROS","http://standards.iso.org/iso/17442",null,null,null,"GGP"]
["BELGIUM","LookupValue fallback",null,false,null,null,null,null,null,null,null,null,null,null,null,null,"CONGO","http://standards.iso.org/iso/17442",null,null,null,"GHS"]
["BELGIUM",null,null,null,null,null,null,null,null,null,null,"//General data label{B}","//General data value{E}",null,null,null,"CONGO, THE DEMOCRATIC REPUBLIC OF THE","http://standards.iso.org/iso/17442",null,null,null,"GIP"]
["BELGIUM",null,null,null,null,null,null,null,null,null,null,null,null,null,null,null,"COOK ISLANDS","http://standards.iso.org/iso/17442",null,null,null,"GMD"]
["BELGIUM",null,null,null,null,null,null,null,null,null,null,null,null,null,null,null,"COSTA RICA","http://standards.iso.org/iso/17442",null,null,null,"GNF"]
[null,null,null,null,null,null,null,null,null,null,null,null,null,null,null,null,"CÔTE D'IVOIRE","http://standards.iso.org/iso/17442",null,null,null,"GTQ"]
[null,null,null,null,null,null,null,null,null,null,null,null,null,null,null,null,"CROATIA","http://standards.iso.org/iso/17442",null,null,null,"GYD"]
[null,null,null,null,null,null,null,null,null,null,null,null,null,null,null,null,"CUBA","http://standards.iso.org/iso/17442",null,null,null,"HKD"]
[null,null,null,null,null,null,null,null,null,null,null,null,null,null,null,null,"CURAÇAO","http://standards.iso.org/iso/17442",null,null,null,"HNL"]
[null,null,null,null,null,null,null,null,null,null,null,null,null,null,null,null,"CYPRUS","http://standards.iso.org/iso/17442",null,null,null,"HRK"]
[null,null,null,null,null,null,null,null,null,null,null,null,null,null,null,null,"CZECH REPUBLIC","http://standards.iso.org/iso/17442",null,null,null,"HTG"]
[null,null,null,null,null,null,null,null,null,null,null,null,null,null,null,null,"DENMARK","http://standards.iso.org/iso/17442",null,null,null,"HUF"]
[null,null,null,null,null,null,null,null,null,null,null,null,null,null,null,null,"DJIBOUTI","http://standards.iso.org/iso/17442",null,null,null,"IDR"]
[null,null,null,null,null,null,null,null,null,null,null,null,null,null,null,null,"DOMINICA","http://standards.iso.org/iso/17442",null,null,null,"ILS"]
[null,null,null,null,null,null,null,null,null,null,null,null,null,null,null,null,"DOMINICAN REPUBLIC","http://standards.iso.org/iso/17442",null,null,null,"IMP"]
[null,null,null,null,null,null,null,null,null,null,null,null,null,null,null,null,"ECUADOR","http://standards.iso.org/iso/17442",null,null,null,"INR"]
[null,null,null,null,null,null,null,null,null,null,null,null,null,null,null,null,"EGYPT","http://standards.iso.org/iso/17442",null,null,null,"IQD"]
[null,null,null,null,null,null,null,null,null,null,null,null,null,null,null,null,"EL SALVADOR","http://standards.iso.org/iso/17442",null,null,null,"IRR"]
[null,null,null,null,null,null,null,null,null,null,null,null,null,null,null,null,"EQUATORIAL GUINEA","http://standards.iso.org/iso/17442",null,null,null,"ISK"]
[null,null,null,null,null,null,null,null,null,null,null,null,null,null,null,null,"ERITREA","http://standards.iso.org/iso/17442",null,null,null,"JEP"]
[null,null,null,null,null,null,null,null,null,null,null,null,null,null,null,null,"ESTONIA","http://standards.iso.org/iso/17442",null,null,null,"JMD"]
[null,null,null,null,null,null,null,null,null,null,null,null,null,null,null,null,"ETHIOPIA","http://standards.iso.org/iso/17442",null,null,null,"JOD"]
[null,null,null,null,null,null,null,null,null,null,null,null,null,null,null,null,"FALKLAND ISLANDS (MALVINAS)","http://standards.iso.org/iso/17442",null,null,null,"JPY"]
[null,null,null,null,null,null,null,null,null,null,null,null,null,null,null,null,"FAROE ISLANDS","http://standards.iso.org/iso/17442",null,null,null,"KES"]
[null,null,null,null,null,null,null,null,null,null,null,null,null,null,null,null,"FIJI","http://standards.iso.org/iso/17442",null,null,null,"KGS"]
[null,null,null,null,null,null,null,null,null,null,null,null,null,null,null,null,"FINLAND","http://standards.iso.org/iso/17442",null,null,null,"KHR"]
[null,null,null,null,null,null,null,null,null,null,null,null,null,null,null,null,"FRANCE","http://standards.iso.org/iso/17442",null,null,null,"KMF"]
[null,null,null,null,null,null,null,null,null,null,null,null,null,null,null,null,"FRENCH GUIANA","http://standards.iso.org/iso/17442",null,null,null,"KPW"]
[null,null,null,null,null,null,null,null,null,null,null,null,null,null,null,null,"FRENCH POLYNESIA","http://standards.iso.org/iso/17442",null,null,null,"KRW"]
[null,null,null,null,null,null,null,null,null,null,null,null,null,null,null,null,"FRENCH SOUTHERN TERRITORIES","http://standards.iso.org/iso/17442",null,null,null,"KWD"]
[null,null,null,null,null,null,null,null,null,null,null,null,null,null,null,null,"GABON","http://standards.iso.org/iso/17442",null,null,null,"KYD"]
[null,null,null,null,null,null,null,null,null,null,null,null,null,null,null,null,"GAMBIA","http://standards.iso.org/iso/17442",null,null,null,"KZT"]
[null,null,null,null,null,null,null,null,null,null,null,null,null,null,null,null,"GEORGIA","http://standards.iso.org/iso/17442",null,null,null,"LAK"]
[null,null,null,null,null,null,null,null,null,null,null,null,null,null,null,null,"GERMANY","http://standards.iso.org/iso/17442",null,null,null,"LBP"]
[null,null,null,null,null,null,null,null,null,null,null,null,null,null,null,null,"GHANA","http://standards.iso.org/iso/17442",null,null,null,"LKR"]
[null,null,null,null,null,null,null,null,null,null,null,null,null,null,null,null,"GIBRALTAR","http://standards.iso.org/iso/17442",null,null,null,"LRD"]
[null,null,null,null,null,null,null,null,null,null,null,null,null,null,null,null,"GREECE","http://standards.iso.org/iso/17442",null,null,null,"LSL"]
[null,null,null,null,null,null,null,null,null,null,null,null,null,null,null,null,"GREENLAND","http://standards.iso.org/iso/17442",null,null,null,"LYD"]
[null,null,null,null,null,null,null,null,null,null,null,null,null,null,null,null,"GRENADA","http://standards.iso.org/iso/17442",null,null,null,"MAD"]
[null,null,null,null,null,null,null,null,null,null,null,null,null,null,null,null,"GUADELOUPE","http://standards.iso.org/iso/17442",null,null,null,"MDL"]
[null,null,null,null,null,null,null,null,null,null,null,null,null,null,null,null,"GUAM","http://standards.iso.org/iso/17442",null,null,null,"MGA"]
[null,null,null,null,null,null,null,null,null,null,null,null,null,null,null,null,"GUATEMALA","http://standards.iso.org/iso/17442",null,null,null,"MKD"]
[null,null,null,null,null,null,null,null,null,null,null,null,null,null,null,null,"GUERNSEY","http://standards.iso.org/iso/17442",null,null,null,"MMK"]
[null,null,null,null,null,null,null,null,null,null,null,null,null,null,null,null,"GUINEA","http://standards.iso.org/iso/17442",null,null,null,"MNT"]
[null,null,null,null,null,null,null,null,null,null,null,null,null,null,null,null,"GUINEA-BISSAU","http://standards.iso.org/iso/17442",null,null,null,"MOP"]
[null,null,null,null,null,null,null,null,null,null,null,null,null,null,null,null,"GUYANA","http://standards.iso.org/iso/17442",null,null,null,"MRO"]
[null,null,null,null,null,null,null,null,null,null,null,null,null,null,null,null,"HAITI","http://standards.iso.org/iso/17442",null,null,null,"MUR"]
[null,null,null,null,null,null,null,null,null,null,null,null,null,null,null,null,"HEARD ISLAND AND MCDONALD ISLANDS","http://standards.iso.org/iso/17442",null,null,null,"MVR"]
[null,null,null,null,null,null,null,null,null,null,null,null,null,null,null,null,"HOLY SEE (VATICAN CITY STATE)","http://standards.iso.org/iso/17442",null,null,null,"MWK"]
[null,null,null,null,null,null,null,null,null,null,null,null,null,null,null,null,"HONDURAS","http://standards.iso.org/iso/17442",null,null,null,"MXN"]
[null,null,null,null,null,null,null,null,null,null,null,null,null,null,null,null,"HONG KONG","http://standards.iso.org/iso/17442",null,null,null,"MYR"]
[null,null,null,null,null,null,null,null,null,null,null,null,null,null,null,null,"HUNGARY","http://standards.iso.org/iso/17442",null,null,null,"MZN"]
[null,null,null,null,null,null,null,null,null,null,null,null,null,null,null,null,"ICELAND","http://standards.iso.org/iso/17442",null,null,null,"NAD"]
[null,null,null,null,null,null,null,null,null,null,null,null,null,null,null,null,"INDIA","http://standards.iso.org/iso/17442",null,null,null,"NGN"]
[null,null,null,null,null,null,null,null,null,null,null,null,null,null,null,null,"INDONESIA","http://standards.iso.org/iso/17442",null,null,null,"NIO"]
[null,null,null,null,null,null,null,null,null,null,null,null,null,null,null,null,"IRAN, ISLAMIC REPUBLIC OF","http://standards.iso.org/iso/17442",null,null,null,"NOK"]
[null,null,null,null,null,null,null,null,null,null,null,null,null,null,null,null,"IRAQ","http://standards.iso.org/iso/17442",null,null,null,"NPR"]
[null,null,null,null,null,null,null,null,null,null,null,null,null,null,null,null,"IRELAND","http://standards.iso.org/iso/17442",null,null,null,"NZD"]
[null,null,null,null,null,null,null,null,null,null,null,null,null,null,null,null,"ISLE OF MAN","http://standards.iso.org/iso/17442",null,null,null,"OMR"]
[null,null,null,null,null,null,null,null,null,null,null,null,null,null,null,null,"ISRAEL","http://standards.iso.org/iso/17442",null,null,null,"PAB"]
[null,null,null,null,null,null,null,null,null,null,null,null,null,null,null,null,"ITALY","http://standards.iso.org/iso/17442",null,null,null,"PEN"]
[null,null,null,null,null,null,null,null,null,null,null,null,null,null,null,null,"JAMAICA","http://standards.iso.org/iso/17442",null,null,null,"PGK"]
[null,null,null,null,null,null,null,null,null,null,null,null,null,null,null,null,"JAPAN","http://standards.iso.org/iso/17442",null,null,null,"PHP"]
[null,null,null,null,null,null,null,null,null,null,null,null,null,null,null,null,"JERSEY","http://standards.iso.org/iso/17442",null,null,null,"PKR"]
[null,null,null,null,null,null,null,null,null,null,null,null,null,null,null,null,"JORDAN","http://standards.iso.org/iso/17442",null,null,null,"PLN"]
[null,null,null,null,null,null,null,null,null,null,null,null,null,null,null,null,"KAZAKHSTAN","http://standards.iso.org/iso/17442",null,null,null,"PYG"]
[null,null,null,null,null,null,null,null,null,null,null,null,null,null,null,null,"KENYA","http://standards.iso.org/iso/17442",null,null,null,"QAR"]
[null,null,null,null,null,null,null,null,null,null,null,null,null,null,null,null,"KIRIBATI","http://standards.iso.org/iso/17442",null,null,null,"RON"]
[null,null,null,null,null,null,null,null,null,null,null,null,null,null,null,null,"KOREA, DEMOCRATIC PEOPLE'S REPUBLIC OF","http://standards.iso.org/iso/17442",null,null,null,"RSD"]
[null,null,null,null,null,null,null,null,null,null,null,null,null,null,null,null,"KOREA, REPUBLIC OF","http://standards.iso.org/iso/17442",null,null,null,"RUB"]
[null,null,null,null,null,null,null,null,null,null,null,null,null,null,null,null,"KUWAIT","http://standards.iso.org/iso/17442",null,null,null,"RWF"]
[null,null,null,null,null,null,null,null,null,null,null,null,null,null,null,null,"KYRGYZSTAN","http://standards.iso.org/iso/17442",null,null,null,"SAR"]
[null,null,null,null,null,null,null,null,null,null,null,null,null,null,null,null,"LAO PEOPLE'S DEMOCRATIC REPUBLIC","http://standards.iso.org/iso/17442",null,null,null,"SBD"]
[null,null,null,null,null,null,null,null,null,null,null,null,null,null,null,null,"LATVIA","http://standards.iso.org/iso/17442",null,null,null,"SCR"]
[null,null,null,null,null,null,null,null,null,null,null,null,null,null,null,null,"LEBANON","http://standards.iso.org/iso/17442",null,null,null,"SDG"]
[null,null,null,null,null,null,null,null,null,null,null,null,null,null,null,null,"LESOTHO","http://standards.iso.org/iso/17442",null,null,null,"SEK"]
[null,null,null,null,null,null,null,null,null,null,null,null,null,null,null,null,"LIBERIA","http://standards.iso.org/iso/17442",null,null,null,"SGD"]
[null,null,null,null,null,null,null,null,null,null,null,null,null,null,null,null,"LIBYA","http://standards.iso.org/iso/17442",null,null,null,"SHP"]
[null,null,null,null,null,null,null,null,null,null,null,null,null,null,null,null,"LIECHTENSTEIN","http://standards.iso.org/iso/17442",null,null,null,"SLL"]
[null,null,null,null,null,null,null,null,null,null,null,null,null,null,null,null,"LITHUANIA","http://standards.iso.org/iso/17442",null,null,null,"SOS"]
[null,null,null,null,null,null,null,null,null,null,null,null,null,null,null,null,"LUXEMBOURG","http://www.cssf.lu",null,null,null,"SPL"]
[null,null,null,null,null,null,null,null,null,null,null,null,null,null,null,null,"MACAO","http://standards.iso.org/iso/17442",null,null,null,"SRD"]
[null,null,null,null,null,null,null,null,null,null,null,null,null,null,null,null,"MACEDONIA, THE FORMER YUGOSLAV REPUBLIC OF","http://standards.iso.org/iso/17442",null,null,null,"STD"]
[null,null,null,null,null,null,null,null,null,null,null,null,null,null,null,null,"MADAGASCAR","http://standards.iso.org/iso/17442",null,null,null,"SVC"]
[null,null,null,null,null,null,null,null,null,null,null,null,null,null,null,null,"MALAWI","http://standards.iso.org/iso/17442",null,null,null,"SYP"]
[null,null,null,null,null,null,null,null,null,null,null,null,null,null,null,null,"MALAYSIA","http://standards.iso.org/iso/17442",null,null,null,"SZL"]
[null,null,null,null,null,null,null,null,null,null,null,null,null,null,null,null,"MALDIVES","http://standards.iso.org/iso/17442",null,null,null,"THB"]
[null,null,null,null,null,null,null,null,null,null,null,null,null,null,null,null,"MALI","http://standards.iso.org/iso/17442",null,null,null,"TJS"]
[null,null,null,null,null,null,null,null,null,null,null,null,null,null,null,null,"MALTA","http://standards.iso.org/iso/17442",null,null,null,"TMT"]
[null,null,null,null,null,null,null,null,null,null,null,null,null,null,null,null,"MARSHALL ISLANDS","http://standards.iso.org/iso/17442",null,null,null,"TND"]
[null,null,null,null,null,null,null,null,null,null,null,null,null,null,null,null,"MARTINIQUE","http://standards.iso.org/iso/17442",null,null,null,"TOP"]
[null,null,null,null,null,null,null,null,null,null,null,null,null,null,null,null,"MAURITANIA","http://standards.iso.org/iso/17442",null,null,null,"TRY"]
[null,null,null,null,null,null,null,null,null,null,null,null,null,null,null,null,"MAURITIUS","http://standards.iso.org/iso/17442",null,null,null,"TTD"]
[null,null,null,null,null,null,null,null,null,null,null,null,null,null,null,null,"MAYOTTE","http://standards.iso.org/iso/17442",null,null,null,"TVD"]
[null,null,null,null,null,null,null,null,null,null,null,null,null,null,null,null,"MEXICO","http://standards.iso.org/iso/17442",null,null,null,"TWD"]
[null,null,null,null,null,null,null,null,null,null,null,null,null,null,null,null,"MICRONESIA, FEDERATED STATES OF","http://standards.iso.org/iso/17442",null,null,null,"TZS"]
[null,null,null,null,null,null,null,null,null,null,null,null,null,null,null,null,"MOLDOVA, REPUBLIC OF","http://standards.iso.org/iso/17442",null,null,null,"UAH"]
[null,null,null,null,null,null,null,null,null,null,null,null,null,null,null,null,"MONACO","http://standards.iso.org/iso/17442",null,null,null,"UGX"]
[null,null,null,null,null,null,null,null,null,null,null,null,null,null,null,null,"MONGOLIA","http://standards.iso.org/iso/17442",null,null,null,"USD"]
[null,null,null,null,null,null,null,null,null,null,null,null,null,null,null,null,"MONTENEGRO","http://standards.iso.org/iso/17442",null,null,null,"UYU"]
[null,null,null,null,null,null,null,null,null,null,null,null,null,null,null,null,"MONTSERRAT","http://standards.iso.org/iso/17442",null,null,null,"UZS"]
[null,null,null,null,null,null,null,null,null,null,null,null,null,null,null,null,"MOROCCO","http://standards.iso.org/iso/17442",null,null,null,"VEF"]
[null,null,null,null,null,null,null,null,null,null,null,null,null,null,null,null,"MOZAMBIQUE","http://standards.iso.org/iso/17442",null,null,null,"VND"]
[null,null,null,null,null,null,null,null,null,null,null,null,null,null,null,null,"MYANMAR","http://standards.iso.org/iso/17442",null,null,null,"VUV"]
[null,null,null,null,null,null,null,null,null,null,null,null,null,null,null,null,"NAMIBIA","http://standards.iso.org/iso/17442",null,null,null,"WST"]
[null,null,null,null,null,null,null,null,null,null,null,null,null,null,null,null,"NAURU","http://standards.iso.org/iso/17442",null,null,null,"XAF"]
[null,null,null,null,null,null,null,null,null,null,null,null,null,null,null,null,"NEPAL","http://standards.iso.org/iso/17442",null,null,null,"XCD"]
[null,null,null,null,null,null,null,null,null,null,null,null,null,null,null,null,"NETHERLANDS","http://standards.iso.org/iso/17442",null,null,null,"XDR"]
[null,null,null,null,null,null,null,null,null,null,null,null,null,null,null,null,"NEW CALEDONIA","http://standards.iso.org/iso/17442",null,null,null,"XOF"]
[null,null,null,null,null,null,null,null,null,null,null,null,null,null,null,null,"NEW ZEALAND","http://standards.iso.org/iso/17442",null,null,null,"XPF"]
[null,null,null,null,null,null,null,null,null,null,null,null,null,null,null,null,"NICARAGUA","http://standards.iso.org/iso/17442",null,null,null,"YER"]
[null,null,null,null,null,null,null,null,null,null,null,null,null,null,null,null,"NIGER","http://standards.iso.org/iso/17442",null,null,null,"ZAR"]
[null,null,null,null,null,null,null,null,null,null,null,null,null,null,null,null,"NIGERIA","http://standards.iso.org/iso/17442",null,null,null,"ZMW"]
[null,null,null,null,null,null,null,null,null,null,null,null,null,null,null,null,"NIUE","http://standards.iso.org/iso/17442",null,null,null,"ZWD"]
[null,null,null,null,null,null,null,null,null,null,null,null,null,null,null,null,"NORFOLK ISLAND","http://standards.iso.org/iso/17442"]
[null,null,null,null,null,null,null,null,null,null,null,null,null,null,null,null,"NORTHERN MARIANA ISLANDS","http://standards.iso.org/iso/17442"]
[null,null,null,null,null,null,null,null,null,null,null,null,null,null,null,null,"NORWAY","SC"]
[null,null,null,null,null,null,null,null,null,null,null,null,null,null,null,null,"OMAN","http://standards.iso.org/iso/17442"]
[null,null,null,null,null,null,null,null,null,null,null,null,null,null,null,null,"PAKISTAN","http://standards.iso.org/iso/17442"]
[null,null,null,null,null,null,null,null,null,null,null,null,null,null,null,null,"PALAU","http://standards.iso.org/iso/17442"]
[null,null,null,null,null,null,null,null,null,null,null,null,null,null,null,null,"PALESTINIAN TERRITORY, OCCUPIED","http://standards.iso.org/iso/17442"]
[null,null,null,null,null,null,null,null,null,null,null,null,null,null,null,null,"PANAMA","http://standards.iso.org/iso/17442"]
[null,null,null,null,null,null,null,null,null,null,null,null,null,null,null,null,"PAPUA NEW GUINEA","http://standards.iso.org/iso/17442"]
[null,null,null,null,null,null,null,null,null,null,null,null,null,null,null,null,"PARAGUAY","http://standards.iso.org/iso/17442"]
[null,null,null,null,null,null,null,null,null,null,null,null,null,null,null,null,"PERU","http://standards.iso.org/iso/17442"]
[null,null,null,null,null,null,null,null,null,null,null,null,null,null,null,null,"PHILIPPINES","http://standards.iso.org/iso/17442"]
[null,null,null,null,null,null,null,null,null,null,null,null,null,null,null,null,"PITCAIRN","http://standards.iso.org/iso/17442"]
[null,null,null,null,null,null,null,null,null,null,null,null,null,null,null,null,"POLAND","http://standards.iso.org/iso/17442"]
[null,null,null,null,null,null,null,null,null,null,null,null,null,null,null,null,"PORTUGAL","http://standards.iso.org/iso/17442"]
[null,null,null,null,null,null,null,null,null,null,null,null,null,null,null,null,"PUERTO RICO","http://standards.iso.org/iso/17442"]
[null,null,null,null,null,null,null,null,null,null,null,null,null,null,null,null,"QATAR","http://standards.iso.org/iso/17442"]
[null,null,null,null,null,null,null,null,null,null,null,null,null,null,null,null,"RÉUNION","http://standards.iso.org/iso/17442"]
[null,null,null,null,null,null,null,null,null,null,null,null,null,null,null,null,"ROMANIA","http://standards.iso.org/iso/17442"]
[null,null,null,null,null,null,null,null,null,null,null,null,null,null,null,null,"RUSSIAN FEDERATION","http://standards.iso.org/iso/17442"]
[null,null,null,null,null,null,null,null,null,null,null,null,null,null,null,null,"RWANDA","http://standards.iso.org/iso/17442"]
[null,null,null,null,null,null,null,null,null,null,null,null,null,null,null,null,"SAINT BARTHÉLEMY","http://standards.iso.org/iso/17442"]
[null,null,null,null,null,null,null,null,null,null,null,null,null,null,null,null,"SAINT HELENA, ASCENSION AND TRISTAN DA CUNHA","http://standards.iso.org/iso/17442"]
[null,null,null,null,null,null,null,null,null,null,null,null,null,null,null,null,"SAINT KITTS AND NEVIS","http://standards.iso.org/iso/17442"]
[null,null,null,null,null,null,null,null,null,null,null,null,null,null,null,null,"SAINT LUCIA","http://standards.iso.org/iso/17442"]
[null,null,null,null,null,null,null,null,null,null,null,null,null,null,null,null,"SAINT MARTIN (FRENCH PART)","http://standards.iso.org/iso/17442"]
[null,null,null,null,null,null,null,null,null,null,null,null,null,null,null,null,"SAINT PIERRE AND MIQUELON","http://standards.iso.org/iso/17442"]
[null,null,null,null,null,null,null,null,null,null,null,null,null,null,null,null,"SAINT VINCENT AND THE GRENADINES","http://standards.iso.org/iso/17442"]
[null,null,null,null,null,null,null,null,null,null,null,null,null,null,null,null,"SAMOA","http://standards.iso.org/iso/17442"]
[null,null,null,null,null,null,null,null,null,null,null,null,null,null,null,null,"SAN MARINO","http://standards.iso.org/iso/17442"]
[null,null,null,null,null,null,null,null,null,null,null,null,null,null,null,null,"SAO TOME AND PRINCIPE","http://standards.iso.org/iso/17442"]
[null,null,null,null,null,null,null,null,null,null,null,null,null,null,null,null,"SAUDI ARABIA","http://standards.iso.org/iso/17442"]
[null,null,null,null,null,null,null,null,null,null,null,null,null,null,null,null,"SENEGAL","http://standards.iso.org/iso/17442"]
[null,null,null,null,null,null,null,null,null,null,null,null,null,null,null,null,"SERBIA","http://standards.iso.org/iso/17442"]
[null,null,null,null,null,null,null,null,null,null,null,null,null,null,null,null,"SEYCHELLES","http://standards.iso.org/iso/17442"]
[null,null,null,null,null,null,null,null,null,null,null,null,null,null,null,null,"SIERRA LEONE","http://standards.iso.org/iso/17442"]
[null,null,null,null,null,null,null,null,null,null,null,null,null,null,null,null,"SINGAPORE","http://standards.iso.org/iso/17442"]
[null,null,null,null,null,null,null,null,null,null,null,null,null,null,null,null,"SINT MAARTEN (DUTCH PART)","http://standards.iso.org/iso/17442"]
[null,null,null,null,null,null,null,null,null,null,null,null,null,null,null,null,"SLOVAKIA","http://standards.iso.org/iso/17442"]
[null,null,null,null,null,null,null,null,null,null,null,null,null,null,null,null,"SLOVENIA","http://standards.iso.org/iso/17442"]
[null,null,null,null,null,null,null,null,null,null,null,null,null,null,null,null,"SOLOMON ISLANDS","http://standards.iso.org/iso/17442"]
[null,null,null,null,null,null,null,null,null,null,null,null,null,null,null,null,"SOMALIA","http://standards.iso.org/iso/17442"]
[null,null,null,null,null,null,null,null,null,null,null,null,null,null,null,null,"SOUTH AFRICA","http://standards.iso.org/iso/17442"]
[null,null,null,null,null,null,null,null,null,null,null,null,null,null,null,null,"SOUTH GEORGIA AND THE SOUTH SANDWICH ISLANDS","http://standards.iso.org/iso/17442"]
[null,null,null,null,null,null,null,null,null,null,null,null,null,null,null,null,"SOUTH SUDAN","http://standards.iso.org/iso/17442"]
[null,null,null,null,null,null,null,null,null,null,null,null,null,null,null,null,"SPAIN","http://standards.iso.org/iso/17442"]
[null,null,null,null,null,null,null,null,null,null,null,null,null,null,null,null,"SRI LANKA","http://standards.iso.org/iso/17442"]
[null,null,null,null,null,null,null,null,null,null,null,null,null,null,null,null,"SUDAN","http://standards.iso.org/iso/17442"]
[null,null,null,null,null,null,null,null,null,null,null,null,null,null,null,null,"SURINAME","http://standards.iso.org/iso/17442"]
[null,null,null,null,null,null,null,null,null,null,null,null,null,null,null,null,"SVALBARD AND JAN MAYEN","http://standards.iso.org/iso/17442"]
[null,null,null,null,null,null,null,null,null,null,null,null,null,null,null,null,"SWAZILAND","http://standards.iso.org/iso/17442"]
[null,null,null,null,null,null,null,null,null,null,null,null,null,null,null,null,"SWEDEN","http://www.fi.se/instnr"]
[null,null,null,null,null,null,null,null,null,null,null,null,null,null,null,null,"SWITZERLAND","http://standards.iso.org/iso/17442"]
[null,null,null,null,null,null,null,null,null,null,null,null,null,null,null,null,"SYRIAN ARAB REPUBLIC","http://standards.iso.org/iso/17442"]
[null,null,null,null,null,null,null,null,null,null,null,null,null,null,null,null,"TAIWAN, PROVINCE OF CHINA","http://standards.iso.org/iso/17442"]
[null,null,null,null,null,null,null,null,null,null,null,null,null,null,null,null,"TAJIKISTAN","http://standards.iso.org/iso/17442"]
[null,null,null,null,null,null,null,null,null,null,null,null,null,null,null,null,"TANZANIA, UNITED REPUBLIC OF","http://standards.iso.org/iso/17442"]
[null,null,null,null,null,null,null,null,null,null,null,null,null,null,null,null,"THAILAND","http://standards.iso.org/iso/17442"]
[null,null,null,null,null,null,null,null,null,null,null,null,null,null,null,null,"TIMOR-LESTE","http://standards.iso.org/iso/17442"]
[null,null,null,null,null,null,null,null,null,null,null,null,null,null,null,null,"TOGO","http://standards.iso.org/iso/17442"]
[null,null,null,null,null,null,null,null,null,null,null,null,null,null,null,null,"TOKELAU","http://standards.iso.org/iso/17442"]
[null,null,null,null,null,null,null,null,null,null,null,null,null,null,null,null,"TONGA","http://standards.iso.org/iso/17442"]
[null,null,null,null,null,null,null,null,null,null,null,null,null,null,null,null,"TRINIDAD AND TOBAGO","http://standards.iso.org/iso/17442"]
[null,null,null,null,null,null,null,null,null,null,null,null,null,null,null,null,"TUNISIA","http://standards.iso.org/iso/17442"]
[null,null,null,null,null,null,null,null,null,null,null,null,null,null,null,null,"TURKEY","http://standards.iso.org/iso/17442"]
[null,null,null,null,null,null,null,null,null,null,null,null,null,null,null,null,"TURKMENISTAN","http://standards.iso.org/iso/17442"]
[null,null,null,null,null,null,null,null,null,null,null,null,null,null,null,null,"TURKS AND CAICOS ISLANDS","http://standards.iso.org/iso/17442"]
[null,null,null,null,null,null,null,null,null,null,null,null,null,null,null,null,"TUVALU","http://standards.iso.org/iso/17442"]
[null,null,null,null,null,null,null,null,null,null,null,null,null,null,null,null,"UGANDA","http://standards.iso.org/iso/17442"]
[null,null,null,null,null,null,null,null,null,null,null,null,null,null,null,null,"UKRAINE","http://standards.iso.org/iso/17442"]
[null,null,null,null,null,null,null,null,null,null,null,null,null,null,null,null,"UNITED ARAB EMIRATES","http://standards.iso.org/iso/17442"]
[null,null,null,null,null,null,null,null,null,null,null,null,null,null,null,null,"UNITED KINGDOM","http://standards.iso.org/iso/17442"]
[null,null,null,null,null,null,null,null,null,null,null,null,null,null,null,null,"UNITED STATES","http://standards.iso.org/iso/17442"]
[null,null,null,null,null,null,null,null,null,null,null,null,null,null,null,null,"UNITED STATES MINOR OUTLYING ISLANDS","http://standards.iso.org/iso/17442"]
[null,null,null,null,null,null,null,null,null,null,null,null,null,null,null,null,"URUGUAY","http://standards.iso.org/iso/17442"]
[null,null,null,null,null,null,null,null,null,null,null,null,null,null,null,null,"UZBEKISTAN","http://standards.iso.org/iso/17442"]
[null,null,null,null,null,null,null,null,null,null,null,null,null,null,null,null,"VANUATU","http://standards.iso.org/iso/17442"]
[null,null,null,null,null,null,null,null,null,null,null,null,null,null,null,null,"VENEZUELA, BOLIVARIAN REPUBLIC OF","http://standards.iso.org/iso/17442"]
[null,null,null,null,null,null,null,null,null,null,null,null,null,null,null,null,"VIET NAM","http://standards.iso.org/iso/17442"]
[null,null,null,null,null,null,null,null,null,null,null,null,null,null,null,null,"VIRGIN ISLANDS, BRITISH","http://standards.iso.org/iso/17442"]
[null,null,null,null,null,null,null,null,null,null,null,null,null,null,null,null,"VIRGIN ISLANDS, U.S.","http://standards.iso.org/iso/17442"]
[null,null,null,null,null,null,null,null,null,null,null,null,null,null,null,null,"WALLIS AND FUTUNA","http://standards.iso.org/iso/17442"]
[null,null,null,null,null,null,null,null,null,null,null,null,null,null,null,null,"WESTERN SAHARA","http://standards.iso.org/iso/17442"]
[null,null,null,null,null,null,null,null,null,null,null,null,null,null,null,null,"YEMEN","http://standards.iso.org/iso/17442"]
[null,null,null,null,null,null,null,null,null,null,null,null,null,null,null,null,"ZAMBIA","http://standards.iso.org/iso/17442"]
[null,null,null,null,null,null,null,null,null,null,null,null,null,null,null,null,"ZIMBABWE","http://standards.iso.org/iso/17442"]
[null,null,null,null,null,null,null,null,null,null,null,null,null,null,null,null,"ÅLAND ISLANDS","http://standards.iso.org/iso/17442"]
[null,null,null,null,null,null,null,null,null,null,null,null,null,null,null,null,"Other Countries","http://standards.iso.org/iso/17442"]

{"sheet":"Index","index":3,"n_rows":9,"n_cols":3,"rows_kept":9,"cut":false,"hidden":false,"merged":[[2,1,2,3]]}
[]
[]
[null,"Table Index MIR"]
[]
[null,"Template","Reporting status"]
[null,"Table group 0: General information"]
[null,"Table group 9004HK1 : MFI Statistics on interest rates, weighted average interest rates on outstanding amounts of Dutch MFIs"]
[null,"Table group 9004HK2 : MFI Statistics on interest rates, weighted average interest rates on all new business of Dutch MFIs"]
[null,"Table group 9004HK3 : MFI Statistics on interest rates, weighted interest rates on new business with collateral and/or guarantees (if cover >= 100%) of Dutch MFIs"]

{"sheet":"Taxonomy","index":4,"n_rows":16,"n_cols":10,"rows_kept":16,"cut":false,"hidden":true,"merged":[]}
["Object","Table","Prefix","Label (nl)","Module"]
["Framework",null,null,"DNB MIR reporting","DNB-NR"]
["Normative code",null,null,null,"MIR-2018-01"]
["Publication date",null,null,null,"2017-12-31"]
["Taxonomy",null,null,"MIR reporting","MIR"]
["Module",null,null,"MFI statistics on interest rates","MIR"]
["Table group","TG000",{"$f":"IF(INDEX($E$6:I7,ROW()-5,MATCH('General data'!$E$22,Taxonomy!$E$6:$E$6,0))=\"X\",\"/\",\"!\")","v":"!"},"Table group 0: General information",null,null,null,null,null,{"$f":"IF(Index!C6=\"reported\",\"@ForceFilingCode:true\",IF(Index!C6=\"not reported\",\"@ForceFilingCode:false\",\"\"))","v":""}]
["Table","Info",{"$f":"IF(INDEX($E$6:I8,ROW()-5,MATCH('General data'!$E$22,Taxonomy!$E$6:$E$6,0))=\"X\",\"/\",\"!\")","v":"/"},"Info - General information","X"]
["Table group","TG9004HK1",{"$f":"IF(INDEX($E$6:I9,ROW()-5,MATCH('General data'!$E$22,Taxonomy!$E$6:$E$6,0))=\"X\",\"/\",\"!\")","v":"!"},"Table group 9004HK1 : MFI Statistics on interest rates, weighted average interest rates on outstanding amounts of Dutch MFIs",null,null,null,null,null,{"$f":"IF(Index!C7=\"reported\",\"@ForceFilingCode:true\",IF(Index!C7=\"not reported\",\"@ForceFilingCode:false\",\"\"))","v":""}]
["Table","T9004HK1",{"$f":"IF(INDEX($E$6:I10,ROW()-5,MATCH('General data'!$E$22,Taxonomy!$E$6:$E$6,0))=\"X\",\"/\",\"!\")","v":"/"},"Weighted interest percentages of all outstanding amounts denominated in euros of Dutch MFIs","X"]
["Table group","TG9004HK2",{"$f":"IF(INDEX($E$6:I11,ROW()-5,MATCH('General data'!$E$22,Taxonomy!$E$6:$E$6,0))=\"X\",\"/\",\"!\")","v":"!"},"Table group 9004HK2 : MFI Statistics on interest rates, weighted average interest rates on all new business of Dutch MFIs",null,null,null,null,null,{"$f":"IF(Index!C8=\"reported\",\"@ForceFilingCode:true\",IF(Index!C8=\"not reported\",\"@ForceFilingCode:false\",\"\"))","v":""}]
["Table","T9004HK2A",{"$f":"IF(INDEX($E$6:I12,ROW()-5,MATCH('General data'!$E$22,Taxonomy!$E$6:$E$6,0))=\"X\",\"/\",\"!\")","v":"/"},"Weighted interest percentages and volumes of all outstanding amounts denominated in euros of Dutch Non Financial Corporations","X"]
["Table","T9004HK2B",{"$f":"IF(INDEX($E$6:I13,ROW()-5,MATCH('General data'!$E$22,Taxonomy!$E$6:$E$6,0))=\"X\",\"/\",\"!\")","v":"/"},"Weighted interest percentages and volumes of all outstanding amounts denominated in euros of Dutch Households","X"]
["Table group","TG9004HK3",{"$f":"IF(INDEX($E$6:I14,ROW()-5,MATCH('General data'!$E$22,Taxonomy!$E$6:$E$6,0))=\"X\",\"/\",\"!\")","v":"!"},"Table group 9004HK3 : MFI Statistics on interest rates, weighted interest rates on new business with collateral and/or guarantees (if cover >= 100%) of Dutch MFIs",null,null,null,null,null,{"$f":"IF(Index!C9=\"reported\",\"@ForceFilingCode:true\",IF(Index!C9=\"not reported\",\"@ForceFilingCode:false\",\"\"))","v":""}]
["Table","T9004HK3A",{"$f":"IF(INDEX($E$6:I15,ROW()-5,MATCH('General data'!$E$22,Taxonomy!$E$6:$E$6,0))=\"X\",\"/\",\"!\")","v":"/"},{"$f":"+T9004HK3A!B5","v":"Weighted interest percentages and volumes of all new contracts denominated in euros with collateral/guarantees (coverage >= 100%) of Dutch Non Financial Corporations"},"X"]
["Table","T9004HK3B",{"$f":"IF(INDEX($E$6:I16,ROW()-5,MATCH('General data'!$E$22,Taxonomy!$E$6:$E$6,0))=\"X\",\"/\",\"!\")","v":"/"},{"$f":"+T9004HK3B!B5","v":"Weighted interest percentages and volumes of all new contracts denominated in euros with collateral/guarantees (coverage >= 100%) of Dutch Households"},"X"]

{"sheet":"XBRL Errors","index":5,"n_rows":1,"n_cols":2,"rows_kept":1,"cut":false,"hidden":false,"merged":[]}
["Timestamp:","Error:"]

{"sheet":"Info","index":6,"n_rows":13,"n_cols":11,"rows_kept":13,"cut":false,"hidden":false,"merged":[[4,1,4,3],[6,1,7,2]]}
[]
[]
[]
[]
[null,"Info - General information",null,null,null,"Metric"]
[]
[null,null,null,"Responsable for reporting"]
[null,null,null,"010",null,null,null,null,null,{"$f":"Taxonomy!$C$8 & $B$5& \" Rows {\"& COLUMN(C9) & \"}\"&Taxonomy!$J$7","v":"/Info - General information Rows {3}"},{"$f":"Taxonomy!$C$8&$B$5& \" Columns {\"&COLUMN(Info!D9)&\"}\"&Taxonomy!$J$7","v":"/Info - General information Columns {4}"}]
[null,"Contact details"]
[null,"Name","010",null,null,"Name contact person {si}"]
[null,"Telephone number","020",null,null,"Telephone number {si}"]
[null,"e-mail address","030",null,null,"Email address {si}"]
[null,null,null,null,null,null,null,null,null,{"$f":"Taxonomy!$C$8&Taxonomy!$C$8& $B$5& \" Rows {\"&COLUMN(Info!C14)&\"}\"&Taxonomy!$J$7","v":"//Info - General information Rows {3}"},{"$f":"Taxonomy!$C$8&Taxonomy!$C$8& $B$5& \" Columns {\"&COLUMN(Info!D14)&\"}\"&Taxonomy!$J$7","v":"//Info - General information Columns {4}"}]

{"sheet":"T9004HK1","index":7,"n_rows":64,"n_cols":16,"rows_kept":64,"cut":false,"hidden":false,"merged":[[4,1,4,4],[6,3,6,4],[6,1,8,2]]}
[]
[null,null,null,null,null,null,"Denomination currency\nCurrency","Counterparty country/group\nCountry","Interest rate methodology\nInterest rate methodology"]
[null,null,null,null,null,null,"Euro","Inside EMU area","Annualised agreed rate"]
[]
[null,"Weighted interest percentages of all outstanding amounts denominated in euros of Dutch MFIs.",null,null,null,null,"Balance side\nBalance side","Balance item\nBalance item","Original maturity\nTime interval","Remaining maturity\nTime interval","Interest rate reset\nInterest rate reset","Period of notice\nTime interval"]
[]
[null,null,null,"Weighted interest rates"]
[null,null,null,"Non-financial corporations","Households"]
[null,null,null,"010","020",null,null,null,null,null,null,null,null,null,{"$f":"Taxonomy!$C$10&\"Weighted interest percentages of all outstanding amounts denominated in euros of Dutch MFIs Rows {\" & COLUMN(C9) & \"} \" &Taxonomy!J9","v":"/Weighted interest percentages of all outstanding amounts denominated in euros of Dutch MFIs Rows {3} "},{"$f":"Taxonomy!$C$10&\"Weighted interest percentages of all outstanding amounts denominated in euros of Dutch MFIs Columns {\" & COLUMN(D9) & \"}\"","v":"/Weighted interest percentages of all outstanding amounts denominated in euros of Dutch MFIs Columns {4}"}]
[null,"Assets"]
[]
[null,"Loans granted and deposits placed with original maturity > 1 years"]
[null,"- Of which, remaining maturity <= 1 years","010",null,null,null,"Assets","Loans granted and deposits placed","> 1 year","<= 1 year"]
[null,"- Of which, remaining maturity > 1 years"]
[null,"- with interest rate reset within 12 months","020",null,null,null,"Assets","Loans granted and deposits placed","> 1 year","> 1 year","within 12 months"]
[null,"- without interest rate reset within 12 months","030",null,null,null,"Assets","Loans granted and deposits placed","> 1 year","> 1 year","not within 12 months"]
[null,""]
[null,"Loans granted and deposits placed with original maturity > 2 years"]
[null,"- Of which, remaining maturity <= 2 years","040",null,null,null,"Assets","Loans granted and deposits placed","> 2 years","<= 2 years"]
[null,"- Of which, remaining maturity > 2 years"]
[null,"- with interest rate reset within 24 months","050",null,null,null,"Assets","Loans granted and deposits placed","> 2 years","> 2 years","within 24 months"]
[null,"- without interest rate reset within 24 months","060",null,null,null,"Assets","Loans granted and deposits placed","> 2 years","> 2 years","not within 24 months"]
[]
[null,"Loans for house purchases"]
[null,"- maturity <= 1 year","070",null,null,null,"Assets","Loans for house purchases","<= 1 year"]
[null,"- 1 year < maturity <= 5 year","080",null,null,null,"Assets","Loans for house purchases","> 1 year and <= 5 years"]
[null,"- maturity > 5 year","090",null,null,null,"Assets","Loans for house purchases","> 5 years"]
[]
[null,"Loans for consumption (personal)"]
[null,"- maturity <= 1 year","100",null,null,null,"Assets","Loans for consumption (personal)","<= 1 year"]
[null,"- 1 year < maturity <= 5 year","110",null,null,null,"Assets","Loans for consumption (personal)","> 1 year and <= 5 years"]
[null,"- maturity > 5 year","120",null,null,null,"Assets","Loans for consumption (personal)","> 5 years"]
[]
[null,"Revolving loans","130",null,null,null,"Assets","Revolving loans"]
[]
[null,"Overdrafts","140",null,null,null,"Assets","Overdrafts"]
[]
[null,"Credit cards (extended credit)","150",null,null,null,"Assets","Extended credit"]
[]
[null,"Other loans"]
[null,"- maturity <= 1 year","160",null,null,null,"Assets","Other loans","<= 1 year"]
[null,"- 1 year < maturity <= 5 year","170",null,null,null,"Assets","Other loans","> 1 year and <= 5 years"]
[null,"- maturity > 5 year","180",null,null,null,"Assets","Other loans","> 5 years"]
[]
[null,"Liabilities",""]
[null,"",""]
[null,"Overnight deposits","190",null,null,null,"Liabilities","Overnight deposits liabilities"]
[]
[null,"Deposits  with agreed maturity"]
[null,"- maturity <= 2 years","200",null,null,null,"Liabilities","Deposits with agreed maturity","<= 2 years"]
[null,"- maturity > 2 year","210",null,null,null,"Liabilities","Deposits with agreed maturity","> 2 years"]
[]
[null,"Deposits redeemable at notice"]
[null,"- notice <= 3 months","220",null,null,null,"Liabilities","Deposits redeemable at notice",null,null,null,"<= 3 months"]
[null,"- notice > 3 months","230",null,null,null,"Liabilities","Deposits redeemable at notice",null,null,null,"> 3 months"]
[null,"",""]
[null,"Repos","240",null,null,null,"Liabilities","Repos liabilities"]
[]
[null,"Long term loans (> 2 years)","250",null,null,null,"Liabilities","Long term loans received","> 2 years"]
[null,"",null,null,null,null,null,null,null,null,null,null,null,null,{"$f":"Taxonomy!$C$10&Taxonomy!$C$10&\"Weighted interest percentages of all outstanding amounts denominated in euros of Dutch MFIs Rows {\" & COLUMN(C60) & \"}\"","v":"//Weighted interest percentages of all outstanding amounts denominated in euros of Dutch MFIs Rows {3}"},{"$f":"Taxonomy!$C$10&Taxonomy!$C$10&\"Weighted interest percentages of all outstanding amounts denominated in euros of Dutch MFIs Columns {\" & COLUMN(E60) & \"}\"","v":"//Weighted interest percentages of all outstanding amounts denominated in euros of Dutch MFIs Columns {5}"}]
[null,"Metric",null,"Weighted percentage {pi} ","Weighted percentage {pi} "]
[null,"Measure\nMeasure",null,"Outstanding","Outstanding"]
[null,"Type of measure\nType of measure",null,"End of period","End of period"]
[null,"Counterparty sector\nSector",null,"Non-financial corporations","Households"]

{"sheet":"T9004HK2A","index":8,"n_rows":68,"n_cols":18,"rows_kept":68,"cut":false,"hidden":false,"merged":[[6,3,6,4],[6,5,6,6],[4,1,4,6],[6,1,8,2]]}
[]
[null,null,null,null,null,null,null,null,"Denomination currency\nCurrency","Counterparty country/group\nCountry","Counterparty sector\nSector"]
[null,null,null,null,null,null,null,null,"Euro","Inside EMU area","Non-financial corporations"]
[]
[null,"Weighted interest percentages and volumes of all outstanding amounts denominated in euros of Dutch Non Financial Corporations",null,null,null,null,null,null,"Balance side\nBalance side","Balance item\nBalance item","Amount category\nAmount category","Original maturity\nTime interval","Interest rate fixation\nTime interval"]
[]
[null,null,null,"Interest Rates",null,"Volumes"]
[null,null,null,"Total","of which weighted interest rate on renegotiated new business","Total","of which volume of renegotiated new business"]
[null,null,null,"010","020","030","040",null,null,null,null,null,null,null,null,null,{"$f":"Taxonomy!$C$12&\"Weighted interest percentages and volumes on all new business denominated in euros of Dutch MFI's with Non Financial Corporations Rows {\" & COLUMN(C9) & \"} \" &Taxonomy!J11","v":"/Weighted interest percentages and volumes on all new business denominated in euros of Dutch MFI's with Non Financial Corporations Rows {3} "},{"$f":"Taxonomy!$C$12&\"Weighted interest percentages and volumes on all new business denominated in euros of Dutch MFI's with Non Financial Corporations Columns {\" & COLUMN(D9) & \"}\"","v":"/Weighted interest percentages and volumes on all new business denominated in euros of Dutch MFI's with Non Financial Corporations Columns {4}"}]
[null,"Assets"]
[null,""]
[null,"Other loans <= EUR 0.25 million (with breakdown of interest rate fixation)"]
[null,"- floating interest and <= 3 months interest fixation","010",null,null,null,null,null,"Assets","Other loans","<= 0.25 million",null,"<= 3 months"]
[null,"- > 3 months - 1 year interest fixation","020",null,null,null,null,null,"Assets","Other loans","<= 0.25 million",null,"> 3 months and <= 1 year"]
[null,"- > 1 year - 3 years interest fixation","030",null,null,null,null,null,"Assets","Other loans","<= 0.25 million",null,"> 1 year and <= 3 years"]
[null,"- > 3 year - 5 years interest fixation","040",null,null,null,null,null,"Assets","Other loans","<= 0.25 million",null,"> 3 years and <= 5 years"]
[null,"- > 5 years and <= 10 years interest fixation","050",null,null,null,null,null,"Assets","Other loans","<= 0.25 million",null,"> 5 years and <= 10 years"]
[null,"- > 10 years interest fixation","060",null,null,null,null,null,"Assets","Other loans","<= 0.25 million",null,"> 10 years"]
[null,"Other loans <= EUR 0.25 million (with breakdown of maturity and interest rate fixation)"]
[null,"- maturity <= 1 year","070",null,null,null,null,null,"Assets","Other loans","<= 0.25 million","<= 1 year "]
[null,"- maturity > 1 year","080",{"$f":"IF(COUNT(D22:D24,F21:F24)=0,\"\",IF(F21<>0,(D22*F22+D23*F23+D24*F24)/(F22+F23+F24),0))","v":""},null,{"$f":"IF(COUNT(F22:F24)=0,\"\",F22+F23+F24)","v":""},null,null,"Assets","Other loans","<= 0.25 million","> 1 year"]
[null,"- original maturity > 1 year; and floating interest and <=1 year interest fixation","090",null,null,null,null,null,"Assets","Other loans","<= 0.25 million","> 1 year","<= 1 year "]
[null,"- original maturity > 1 year; and > 1 year and <=5 year interest fixation","100",null,null,null,null,null,"Assets","Other loans","<= 0.25 million","> 1 year","> 1 year and <= 5 years"]
[null,"- original maturity > 1 year; and > 5 year interest fixation","110",null,null,null,null,null,"Assets","Other loans","<= 0.25 million","> 1 year","> 5 years"]
[null,""]
[null,"Other loans in excess of EUR 0.25 to EUR 1 million (with breakdown by interest fixation)"]
[null,"- floating interest and <= 3 months interest fixation","120",null,null,null,null,null,"Assets","Other loans","> 0.25 and <= 1 million",null,"<= 3 months"]
[null,"- > 3 months - 1 year interest fixation","130",null,null,null,null,null,"Assets","Other loans","> 0.25 and <= 1 million",null,"> 3 months and <= 1 year"]
[null,"- > 1 year - 3 years interest fixation","140",null,null,null,null,null,"Assets","Other loans","> 0.25 and <= 1 million",null,"> 1 year and <= 3 years"]
[null,"- > 3 year - 5 years interest fixation","150",null,null,null,null,null,"Assets","Other loans","> 0.25 and <= 1 million",null,"> 3 years and <= 5 years"]
[null,"- > 5 years and <= 10 years interest fixation","160",null,null,null,null,null,"Assets","Other loans","> 0.25 and <= 1 million",null,"> 5 years and <= 10 years"]
[null,"- > 10 years interest fixation","170",null,null,null,null,null,"Assets","Other loans","> 0.25 and <= 1 million",null,"> 10 years"]
[null,"Other loans in excess of EUR 0.25 to EUR 1 million (with breakdown by maturity and interest fixation)"]
[null,"- maturity <= 1 year","180",null,null,null,null,null,"Assets","Other loans","> 0.25 and <= 1 million","<= 1 year "]
[null,"- maturity > 1 year","190",{"$f":"IF(COUNT(D36:D38,F35:F38)=0,\"\",IF(F35<>0,(D36*F36+D37*F37+D38*F38)/(F36+F37+F38),0))","v":""},null,{"$f":"IF(COUNT(F36:F38)=0,\"\",F36+F37+F38)","v":""},null,null,"Assets","Other loans","> 0.25 and <= 1 million","> 1 year"]
[null,"- original maturity > 1 year; and floating interest and <=1 year interest fixation","200",null,null,null,null,null,"Assets","Other loans","> 0.25 and <= 1 million","> 1 year","<= 1 year "]
[null,"- original maturity > 1 year; and > 1 year and <=5 year interest fixation","210",null,null,null,null,null,"Assets","Other loans","> 0.25 and <= 1 million","> 1 year","> 1 year and <= 5 years"]
[null,"- original maturity > 1 year; and > 5 year interest fixation","220",null,null,null,null,null,"Assets","Other loans","> 0.25 and <= 1 million","> 1 year","> 5 years"]
[null,""]
[null,"Other loans in excess of EUR 1 million (with breakdown by interest fixation)"]
[null,"- floating interest and <= 3 months interest fixation","230",null,null,null,null,null,"Assets","Other loans","> 1 million",null,"<= 3 months"]
[null,"- > 3 months - 1 year interest fixation","240",null,null,null,null,null,"Assets","Other loans","> 1 million",null,"> 3 months and <= 1 year"]
[null,"- > 1 year - 3 years interest fixation","250",null,null,null,null,null,"Assets","Other loans","> 1 million",null,"> 1 year and <= 3 years"]
[null,"- > 3 year - 5 years interest fixation","260",null,null,null,null,null,"Assets","Other loans","> 1 million",null,"> 3 years and <= 5 years"]
[null,"- > 5 years and <= 10 years interest fixation","270",null,null,null,null,null,"Assets","Other loans","> 1 million",null,"> 5 years and <= 10 years"]
[null,"- > 10 years interest fixation","280",null,null,null,null,null,"Assets","Other loans","> 1 million",null,"> 10 years"]
[null,"Other loans in excess of EUR 1 million (with breakdown by maturity and interest fixation)"]
[null,"- maturity <= 1 year","290",null,null,null,null,null,"Assets","Other loans","> 1 million","<= 1 year "]
[null,"- maturity > 1 year","300",{"$f":"IF(COUNT(D50:D52,F49:F52)=0,\"\",IF(F49<>0,(D50*F50+D51*F51+D52*F52)/(F50+F51+F52),0))","v":""},null,{"$f":"IF(COUNT(F50:F52)=0,\"\",F50+F51+F52)","v":""},null,null,"Assets","Other loans","> 1 million","> 1 year"]
[null,"- original maturity > 1 year; and floating interest and <=1 year interest fixation","310",null,null,null,null,null,"Assets","Other loans","> 1 million","> 1 year","<= 1 year "]
[null,"- original maturity > 1 year; and > 1 year and <=5 year interest fixation","320",null,null,null,null,null,"Assets","Other loans","> 1 million","> 1 year","> 1 year and <= 5 years"]
[null,"- original maturity > 1 year; and > 5 year interest fixation","330",null,null,null,null,null,"Assets","Other loans","> 1 million","> 1 year","> 5 years"]
[null,""]
[null,"Liabilities"]
[null,""]
[null,"Deposits with agreed maturity"]
[null,"- maturity <= 1 year","340",null,null,null,null,null,"Liabilities","Deposits with agreed maturity",null,"<= 1 year "]
[null,"- 1 year < maturity <= 2 year","350",null,null,null,null,null,"Liabilities","Deposits with agreed maturity",null,"> 1 year and <= 2 years"]
[null,"- maturity > 2 year","360",null,null,null,null,null,"Liabilities","Deposits with agreed maturity",null,"> 2 years"]
[null,""]
[null,"Repos","370",null,null,null,null,null,"Liabilities","Repos liabilities"]
[null,""]
[null,"Long term loans (> 2 years)","380",null,null,null,null,null,"Liabilities","Long term loans received",null,"> 2 years"]
[null,null,null,null,null,null,null,null,null,null,null,null,null,null,null,null,{"$f":"Taxonomy!$C$12&Taxonomy!$C$12&\"Weighted interest percentages and volumes on all new business denominated in euros of Dutch MFI's with Non Financial Corporations Rows {\" & COLUMN(C64) & \"}\"","v":"//Weighted interest percentages and volumes on all new business denominated in euros of Dutch MFI's with Non Financial Corporations Rows {3}"},{"$f":"Taxonomy!$C$12&Taxonomy!$C$12&\"Weighted interest percentages and volumes on all new business denominated in euros of Dutch MFI's with Non Financial Corporations Columns {\" & COLUMN(G64) & \"}\"","v":"//Weighted interest percentages and volumes on all new business denominated in euros of Dutch MFI's with Non Financial Corporations Columns {7}"}]
[null,"Metric",null,"Weighted percentage {pi} ","Weighted percentage {pi} ","Amount {mi} ","Amount {mi} "]
[null,"Measure\nMeasure",null,"Renegotiations and pure new business","Renegotiations","Renegotiations and pure new business","Renegotiations"]
[null,"Type of measure\nType of measure",null,"Transaction","Transaction","Transaction","Transaction"]
[null,"Interest rate methodology\nInterest rate methodology",null,"Annualised agreed rate","Annualised agreed rate",null,null,null," "]

{"sheet":"T9004HK2B","index":9,"n_rows":45,"n_cols":24,"rows_kept":45,"cut":false,"hidden":false,"merged":[[6,3,6,4],[6,5,6,6],[6,1,8,2],[4,1,4,6]]}
[]
[null,null,null,null,null,null,null,null,"Denomination currency\nCurrency","Counterparty country/group\nCountry","Counterparty sector\nSector"]
[null,null,null,null,null,null,null,null,"Euro","Inside EMU area","Households"]
[]
[null,"Weighted interest percentages and volumes of all outstanding amounts denominated in euros of Dutch Households",null,null,null,null,null,null,"Balance side\nBalance side","Balance item\nBalance item","Interest rate methodology\nInterest rate methodology","Original maturity\nTime interval","Interest rate fixation\nTime interval"]
[]
[null,null,null,"Interest Rates",null,"Volumes"]
[null,null,null,"Total","of which weighted interest rate on renegotiated new business","Total","of which volume of renegotiated new business"]
[null,null,null,"010","020","030","040",null,null,null,null,null,null,null,null,null,null,null,null,null,null,null,{"$f":"Taxonomy!$C$13&\"Weighted interest percentages and volumes on all new business denominated in euros of Dutch MFI's with households Rows {\" & COLUMN(C9) & \"} \" &Taxonomy!J11","v":"/Weighted interest percentages and volumes on all new business denominated in euros of Dutch MFI's with households Rows {3} "},{"$f":"Taxonomy!$C$13&\"Weighted interest percentages and volumes on all new business denominated in euros of Dutch MFI's with households Columns {\" & COLUMN(D9) & \"}\"","v":"/Weighted interest percentages and volumes on all new business denominated in euros of Dutch MFI's with households Columns {4}"}]
[null,"Assets"]
[null,""]
[null,"Loans for house purchases"]
[null,"- floating interest and <= 1 year interest fixation","010",null,null,null,null,null,"Assets","Loans for house purchases","Annualised agreed rate",null,"<= 1 year"]
[null,"- > 1 year and <= 5 years interest fixation ","020",null,null,null,null,null,"Assets","Loans for house purchases","Annualised agreed rate",null,"> 1 year and <= 5 years"]
[null,"- > 5 years and <= 10 years interest fixation","030",null,null,null,null,null,"Assets","Loans for house purchases","Annualised agreed rate",null,"> 5 years and <= 10 years"]
[null,"- > 10 years interest fixation","040",null,null,null,null,null,"Assets","Loans for house purchases","Annualised agreed rate",null,"> 10 years"]
[null,""]
[null,"Housing loans under APRC methodology","050",null,null,null,null,null,"Assets","Loans for house purchases","Annual percentage rate of charge"]
[null,""]
[null,"Loans for consumption (personal)"]
[null,"- floating interest and <= 1 year interest fixation","060",null,null,null,null,null,"Assets","Loans for consumption (personal)","Annualised agreed rate",null,"<= 1 year"]
[null,"- > 1 year and <= 5 years interest fixation ","070",null,null,null,null,null,"Assets","Loans for consumption (personal)","Annualised agreed rate",null,"> 1 year and <= 5 years"]
[null,"- > 5 years interest fixation","080",null,null,null,null,null,"Assets","Loans for consumption (personal)","Annualised agreed rate",null,"> 5 years"]
[null,""]
[null,"Loans for consumption purposes under APRC methodology","090",null,null,null,null,null,"Assets","Loans for consumption (personal)","Annual percentage rate of charge"]
[null,""]
[null,"Other loans"]
[null,"- floating interest and <= 1 year interest fixation","100",null,null,null,null,null,"Assets","Other loans","Annualised agreed rate",null,"<= 1 year"]
[null,"- > 1 year and <= 5 years interest fixation ","110",null,null,null,null,null,"Assets","Other loans","Annualised agreed rate",null,"> 1 year and <= 5 years"]
[null,"- > 5 years interest fixation","120",null,null,null,null,null,"Assets","Other loans","Annualised agreed rate",null,"> 5 years"]
[null,""]
[null,"Liabilities"]
[null,""]
[null,"Deposits with agreed maturity"]
[null,"- maturity <= 1 year","130",null,null,null,null,null,"Liabilities","Deposits with agreed maturity","Annualised agreed rate","<= 1 year"]
[null,"- 1 year < maturity <= 2 year","140",null,null,null,null,null,"Liabilities","Deposits with agreed maturity","Annualised agreed rate","> 1 year and <= 2 years"]
[null,"- maturity > 2 year","150",null,null,null,null,null,"Liabilities","Deposits with agreed maturity","Annualised agreed rate","> 2 years"]
[null,""]
[null,"Repos","160",null,null,null,null,null,"Liabilities","Repos liabilities","Annualised agreed rate"]
[null,""]
[null,"Long term loans (> 2 years)","170",null,null,null,null,null,"Liabilities","Long term loans received","Annualised agreed rate","> 2 years"]
[null,null,null,null,null,null,null,null,null,null,null,null,null,null,null,null,null,null,null,null,null,null,{"$f":"Taxonomy!$C$13&Taxonomy!$C$13&\"Weighted interest percentages and volumes on all new business denominated in euros of Dutch MFI's with households Rows {\" & COLUMN(C42) & \"}\"","v":"//Weighted interest percentages and volumes on all new business denominated in euros of Dutch MFI's with households Rows {3}"},{"$f":"Taxonomy!$C$13&Taxonomy!$C$13&\"Weighted interest percentages and volumes on all new business denominated in euros of Dutch MFI's with households Columns {\" & COLUMN(G42) & \"}\"","v":"//Weighted interest percentages and volumes on all new business denominated in euros of Dutch MFI's with households Columns {7}"}]
[null,"Metric",null,"Weighted percentage {pi} ","Weighted percentage {pi} ","Amount {mi} ","Amount {mi} "]
[null,"Measure\nMeasure",null,"Renegotiations and pure new business","Renegotiations","Renegotiations and pure new business","Renegotiations"]
[null,"Type of measure\nType of measure",null,"Transaction","Transaction","Transaction","Transaction"]

{"sheet":"T9004HK3A","index":10,"n_rows":59,"n_cols":18,"rows_kept":59,"cut":false,"hidden":false,"merged":[[4,1,4,4],[6,1,7,2]]}
[]
[null,null,null,null,null,null,"Denomination currency\nCurrency","Counterparty country/group\nCountry","Counterparty sector\nSector","Balance side\nBalance side","Collateral and/or guarantees\nCollateral and/or guarantees"]
[null,null,null,null,null,null,"Euro","Inside EMU area","Non-financial corporations","Assets",">= 100%"]
[]
[null,"Weighted interest percentages and volumes of all new contracts denominated in euros with collateral/guarantees (coverage >= 100%) of Dutch Non Financial Corporations",null,null,null,null,"Balance item\nBalance item","Amount category\nAmount category","Original maturity\nTime interval","Interest rate fixation\nTime interval"]
[]
[null,null,null,"Weighted interest rates","Volume of new business"]
[null,null,null,"010","020",null,null,null,null,null,null,null,null,null,null,null,{"$f":"Taxonomy!$C$15&\"Weighted interest percentages and volumes on all new business denominated in euros with collateral/guarantees (coverage >= 100%) with Non Financial Corporations Rows {\" & COLUMN(C8) & \"} \" &Taxonomy!J14","v":"/Weighted interest percentages and volumes on all new business denominated in euros with collateral/guarantees (coverage >= 100%) with Non Financial Corporations Rows {3} "},{"$f":"Taxonomy!$C$15&\"Weighted interest percentages and volumes on all new business denominated in euros with collateral/guarantees (coverage >= 100%) with Non Financial Corporations Columns {\" & COLUMN(D8) & \"}\"","v":"/Weighted interest percentages and volumes on all new business denominated in euros with collateral/guarantees (coverage >= 100%) with Non Financial Corporations Columns {4}"}]
[null,"Assets"]
[]
[null,"Other loans <= EUR 0.25 million (with breakdown of interest rate fixation)"]
[null,"- floating interest and <= 3 months interest fixation","010",null,null,null,"Other loans","<= 0.25 million",null,"<= 3 months"]
[null,"- > 3 months - 1 year interest fixation","020",null,null,null,"Other loans","<= 0.25 million",null,"> 3 months and <= 1 year"]
[null,"- > 1 year - 3 years interest fixation","030",null,null,null,"Other loans","<= 0.25 million",null,"> 1 year and <= 3 years"]
[null,"- > 3 year - 5 years interest fixation","040",null,null,null,"Other loans","<= 0.25 million",null,"> 3 years and <= 5 years"]
[null,"- > 5 years and <= 10 years interest fixation","050",null,null,null,"Other loans","<= 0.25 million",null,"> 5 years and <= 10 years"]
[null,"- > 10 years interest fixation","060",null,null,null,"Other loans","<= 0.25 million",null,"> 10 years"]
[null,"Other loans <= EUR 0.25 million (with breakdown of maturity and interest rate fixation)"]
[null,"- maturity <= 1 year","070",null,null,null,"Other loans","<= 0.25 million","<= 1 year"]
[null,"- maturity > 1 year","080",{"$f":"IF(COUNT(D21:D23,E20:E23)=0,\"\",IF(E20<>0,(D21*E21+D22*E22+D23*E23)/(E21+E22+E23),0))","v":""},{"$f":"IF(COUNT(E21:E23)=0,\"\",E21+E22+E23)","v":""},null,"Other loans","<= 0.25 million","> 1 year"]
[null,"- original maturity > 1 year; and floating interest and <=1 year interest fixation","090",null,null,null,"Other loans","<= 0.25 million","> 1 year","<= 1 year "]
[null,"- original maturity > 1 year; and > 1 year and <=5 year interest fixation","100",null,null,null,"Other loans","<= 0.25 million","> 1 year","> 1 year and <= 5 years"]
[null,"- original maturity > 1 year; and > 5 year interest fixation","110",null,null,null,"Other loans","<= 0.25 million","> 1 year","> 5 years"]
[]
[null,"Other loans in excess of EUR 0.25 to EUR 1 million (with breakdown by interest fixation)"]
[null,"- floating interest and <= 3 months interest fixation","120",null,null,null,"Other loans","> 0.25 and <= 1 million",null,"<= 3 months"]
[null,"- > 3 months - 1 year interest fixation","130",null,null,null,"Other loans","> 0.25 and <= 1 million",null,"> 3 months and <= 1 year"]
[null,"- > 1 year - 3 years interest fixation","140",null,null,null,"Other loans","> 0.25 and <= 1 million",null,"> 1 year and <= 3 years"]
[null,"- > 3 year - 5 years interest fixation","150",null,null,null,"Other loans","> 0.25 and <= 1 million",null,"> 3 years and <= 5 years"]
[null,"- > 5 years and <= 10 years interest fixation","160",null,null,null,"Other loans","> 0.25 and <= 1 million",null,"> 5 years and <= 10 years"]
[null,"- > 10 years interest fixation","170",null,null,null,"Other loans","> 0.25 and <= 1 million",null,"> 10 years"]
[null,"Other loans in excess of EUR 0.25 to EUR 1 million (with breakdown by maturity and interest fixation)"]
[null,"- maturity <= 1 year","180",null,null,null,"Other loans","> 0.25 and <= 1 million","<= 1 year"]
[null,"- maturity > 1 year","190",{"$f":"IF(COUNT(D35:D37,E34:E37)=0,\"\",IF(E34<>0,(D35*E35+D36*E36+D37*E37)/(E35+E36+E37),0))","v":""},{"$f":"IF(COUNT(E35:E37)=0,\"\",E35+E36+E37)","v":""},null,"Other loans","> 0.25 and <= 1 million","> 1 year"]
[null,"- original maturity > 1 year; and floating interest and <=1 year interest fixation","200",null,null,null,"Other loans","> 0.25 and <= 1 million","> 1 year","<= 1 year "]
[null,"- original maturity > 1 year; and > 1 year and <=5 year interest fixation","210",null,null,null,"Other loans","> 0.25 and <= 1 million","> 1 year","> 1 year and <= 5 years"]
[null,"- original maturity > 1 year; and > 5 year interest fixation","220",null,null,null,"Other loans","> 0.25 and <= 1 million","> 1 year","> 5 years"]
[]
[null,"Other loans in excess of EUR 1 million (with breakdown by interest fixation)"]
[null,"- floating interest and <= 3 months interest fixation","230",null,null,null,"Other loans","> 1 million",null,"<= 3 months"]
[null,"- > 3 months - 1 year interest fixation","240",null,null,null,"Other loans","> 1 million",null,"> 3 months and <= 1 year"]
[null,"- > 1 year - 3 years interest fixation","250",null,null,null,"Other loans","> 1 million",null,"> 1 year and <= 3 years"]
[null,"- > 3 year - 5 years interest fixation","260",null,null,null,"Other loans","> 1 million",null,"> 3 years and <= 5 years"]
[null,"- > 5 years and <= 10 years interest fixation","270",null,null,null,"Other loans","> 1 million",null,"> 5 years and <= 10 years"]
[null,"- > 10 years interest fixation","280",null,null,null,"Other loans","> 1 million",null,"> 10 years"]
[null,"Other loans in excess of EUR 1 million (with breakdown by maturity and interest fixation)"]
[null,"- maturity <= 1 year","290",null,null,null,"Other loans","> 1 million","<= 1 year"]
[null,"- maturity > 1 year","300",{"$f":"IF(COUNT(D49:D51,E48:E51)=0,\"\",IF(E48<>0,(D49*E49+D50*E50+D51*E51)/(E49+E50+E51),0))","v":""},{"$f":"IF(COUNT(E49:E51)=0,\"\",E49+E50+E51)","v":""},null,"Other loans","> 1 million","> 1 year"]
[null,"- original maturity > 1 year; and floating interest and <=1 year interest fixation","310",null,null,null,"Other loans","> 1 million","> 1 year","<= 1 year "]
[null,"- original maturity > 1 year; and > 1 year and <=5 year interest fixation","320",null,null,null,"Other loans","> 1 million","> 1 year","> 1 year and <= 5 years"]
[null,"- original maturity > 1 year; and > 5 year interest fixation","330",null,null,null,"Other loans","> 1 million","> 1 year","> 5 years"]
[null,null,null,null,null,null,null,null,null,null,null,null,null,null,null,null,{"$f":"Taxonomy!$C$15&Taxonomy!$C$15&\"Weighted interest percentages and volumes on all new business denominated in euros with collateral/guarantees (coverage >= 100%) with Non Financial Corporations Rows {\" & COLUMN(C52) & \"}\"","v":"//Weighted interest percentages and volumes on all new business denominated in euros with collateral/guarantees (coverage >= 100%) with Non Financial Corporations Rows {3}"},{"$f":"Taxonomy!$C$15&Taxonomy!$C$15&\"Weighted interest percentages and volumes on all new business denominated in euros with collateral/guarantees (coverage >= 100%) with Non Financial Corporations Columns {\" & COLUMN(E52) & \"}\"","v":"//Weighted interest percentages and volumes on all new business denominated in euros with collateral/guarantees (coverage >= 100%) with Non Financial Corporations Columns {5}"}]
[null,"Metric",null,"Weighted percentage {pi} ","Amount {mi} "]
[null,"Measure\nMeasure",null,"Renegotiations and pure new business","Renegotiations and pure new business"]
[null,"Type of measure\nType of measure",null,"Transaction","Transaction"]
[null,"Interest rate methodology\nInterest rate methodology",null,"Annualised agreed rate"]
[]
[]
[null,null,null,null," "]

{"sheet":"T9004HK3B","index":11,"n_rows":25,"n_cols":17,"rows_kept":25,"cut":false,"hidden":false,"merged":[[4,1,4,4],[6,1,7,2]]}
[]
[null,null,null,null,null,null,"Denomination currency\nCurrency","Counterparty country/group\nCountry","Counterparty sector\nSector","Balance side\nBalance side","Collateral and/or guarantees\nCollateral and/or guarantees"]
[null,null,null,null,null,null,"Euro","Inside EMU area","Households","Assets",">= 100%"]
[]
[null,"Weighted interest percentages and volumes of all new contracts denominated in euros with collateral/guarantees (coverage >= 100%) of Dutch Households",null,null,null,null,"Balance item\nBalance item","Interest rate fixation\nTime interval"]
[]
[null,null,null,"Weighted interest rates","Volume of new business"]
[null,null,null,"010","020",null,null,null,null,null,null,null,null,null,null,{"$f":"Taxonomy!$C$16&\"Weighted interest percentages and volumes on all new business denominated in euros with collateral/guarantees (coverage >= 100%) with  Households Rows {\" & COLUMN(C8) & \"} \" &Taxonomy!J14","v":"/Weighted interest percentages and volumes on all new business denominated in euros with collateral/guarantees (coverage >= 100%) with  Households Rows {3} "},{"$f":"Taxonomy!$C$16&\"Weighted interest percentages and volumes on all new business denominated in euros with collateral/guarantees (coverage >= 100%) with  Households Columns {\" & COLUMN(D8) & \"}\"","v":"/Weighted interest percentages and volumes on all new business denominated in euros with collateral/guarantees (coverage >= 100%) with  Households Columns {4}"}]
[null,"Assets"]
[]
[null,"Loans for house purchases"]
[null,"- floating interest and <= 1 year interest fixation","010",null,null,null,"Loans for house purchases","<= 1 year "]
[null,"- > 1 year and <= 5 years interest fixation ","020",null,null,null,"Loans for house purchases","> 1 year and <= 5 years"]
[null,"- > 5 years and <= 10 years interest fixation","030",null,null,null,"Loans for house purchases","> 5 years and <= 10 years"]
[null,"- > 10 years interest fixation","040",null,null,null,"Loans for house purchases","> 10 years"]
[]
[null,"Loans for consumption (personal)"]
[null,"- floating interest and <= 1 year interest fixation","050",null,null,null,"Loans for consumption (personal)","<= 1 year "]
[null,"- > 1 year and <= 5 years interest fixation ","060",null,null,null,"Loans for consumption (personal)","> 1 year and <= 5 years"]
[null,"- > 5 years interest fixation","070",null,null,null,"Loans for consumption (personal)","> 5 years"]
[null,null,null,null,null,null,null,null,null,null,null,null,null,null,null,{"$f":"Taxonomy!$C$16&Taxonomy!$C$16&\"Weighted interest percentages and volumes on all new business denominated in euros with collateral/guarantees (coverage >= 100%) with  Households Rows {\" & COLUMN(C21) & \"}\"","v":"//Weighted interest percentages and volumes on all new business denominated in euros with collateral/guarantees (coverage >= 100%) with  Households Rows {3}"},{"$f":"Taxonomy!$C$16&Taxonomy!$C$16&\"Weighted interest percentages and volumes on all new business denominated in euros with collateral/guarantees (coverage >= 100%) with  Households Columns {\" & COLUMN(E21) & \"}\"","v":"//Weighted interest percentages and volumes on all new business denominated in euros with collateral/guarantees (coverage >= 100%) with  Households Columns {5}"}]
[null,"Metric",null,"Weighted percentage {pi} ","Amount {mi} "]
[null,"Measure\nMeasure",null,"Renegotiations and pure new business","Renegotiations and pure new business"]
[null,"Type of measure\nType of measure",null,"Transaction","Transaction"]
[null,"Interest rate methodology\nInterest rate methodology",null,"Annualised agreed rate"]

{"sheet":"Data types and cell colors","index":12,"n_rows":12,"n_cols":3,"rows_kept":12,"cut":false,"hidden":true,"merged":[]}
[]
[null,"Color","Description"]
[null,"{bi}","Boolean"]
[null,"{di}","Date"]
[null,"{ii}","Integer"]
[null,"{mi}","Monetary"]
[null,"{pi}","Percentage"]
[null,"{ei}","QName (Enumeration)"]
[null,"{si}","String"]
[null,"Italic","Key for (merged) open table"]
[null,null,"Dimensions, Domains and Metrics"]
[null,null,"Excluded for reporting"]